Directorate,Department,Expenditure Type,Ref.Doc.1,Vendor Name,Expenditure Amount (exc VAT),Payment Date
Assurance,Assurance,Professional Services,60092249,ASSOCIATION OF ELECTORAL ADMINISTRA,924.00,23/11/2017
Assurance,Assurance,Consultants Fees,80013494,BIRMINGHAM CITY COUNCIL,533.59,21/11/2017
Assurance,Assurance,Consultants Fees,80013842,PUBLISH - REDACT NAME,"1,229.30",21/11/2017
Assurance,Assurance,Advertising,60089587,ASSOCIATION OF ELECTORAL ADMINISTRA,535.00,08/11/2017
Assurance,Assurance,Subscriptions,60089632,ASSOCIATION OF ELECTORAL ADMINISTRA,237.50,08/11/2017
Assurance,Assurance,Printing-Contract,60090873,ELECTORAL REFORM SERVICES,"20,026.83",08/11/2017
Assurance,Assurance,Printing-Contract,60090936,ELECTORAL REFORM SERVICES,"56,200.19",08/11/2017
Assurance,Assurance,Equipment and Materials Purcha,60092221,SHRED-IT,362.10,29/11/2017
Assurance,Assurance,Training,60091587,CIPFA BUSINESS LIMITED,250.00,30/11/2017
Assurance,Assurance,Training,60087600,LLG LEGAL TRAINING,430.00,15/11/2017
Assurance,Assurance,Training,60089265,LLG LEGAL TRAINING,215.00,15/11/2017
Assurance,Assurance,Training,60089270,LLG LEGAL TRAINING,215.00,15/11/2017
Assurance,Assurance,Rents,60091414,THE GREEK CYPRIOT COMMUNITY TRUST,120.00,10/11/2017
Assurance,Assurance,Other Indirect Employee Expens,80014102,MAYOR OF ENFIELD,100.00,30/11/2017
Assurance,Assurance,Rents,10013911,BARNET & SOUTHGATE COLLEGE,150.00,06/11/2017
Assurance,Assurance,Training,60091272,CENTRE FOR PUBLIC SCRUTINY LTD,195.00,15/11/2017
Assurance,Assurance,Training,60091567,CIPFA BUSINESS LIMITED,500.00,30/11/2017
Assurance,Assurance,Rents,80013699,HARTLEY HALL,100.00,10/11/2017
Assurance,Assurance,Catering Recharge,80013895,THE AMBER ARTS,16.00,20/11/2017
Assurance,Assurance,Catering Recharge,80013896,THE HIVE FOUND,50.00,20/11/2017
Assurance,Assurance,Professional Services,80013533,HENDON SEATRA,611.00,03/11/2017
Assurance,Assurance,Professional Services,60090832,PRICEWATERHOUSE COOPERS,"30,973.44",23/11/2017
Assurance,Assurance,Subscriptions,60091419,AMAS LTD,150.00,15/11/2017
Assurance,Assurance,General Office Expenses,40002628,OFFICE DEPOT UK LTD,0.96,08/11/2017
Assurance,Assurance,Equipment and Materials Purcha,60091590,PRIME PRODUCTION LTD,54.50,27/11/2017
Central Expenses,Central Expenses,Joint Authorities - Third Part,60085241,LONDON BOROUGH OF HARINGEY,"71,500.99",01/11/2017
Central Expenses,Central Expenses,Joint Authorities - Third Part,60090905,LONDON BOROUGH OF HARINGEY,"71,500.99",03/11/2017
Central Expenses,Central Expenses,Other Establishments - Third P,60089107,TRANSPORT FOR LONDON,"110,817.86",01/11/2017
Central Expenses,Central Expenses,Insurance Claims,60089818,CITY SUBURBAN TREE SURGEONS LTD,"1,777.00",08/11/2017
Central Expenses,Central Expenses,Insurance Claims,60092033,CLYDE & CO LLP,615.00,21/11/2017
Central Expenses,Central Expenses,Insurance Claims,60092041,CLYDE & CO LLP,"2,130.00",21/11/2017
Central Expenses,Central Expenses,Insurance Claims,60092358,CLYDE & CO LLP,"2,310.00",27/11/2017
Central Expenses,Central Expenses,Insurance Claims,60092390,CLYDE & CO LLP,"3,285.00",27/11/2017
Central Expenses,Central Expenses,Insurance Claims,80013399,DWP COMPENSATION RECOVERY UNIT,647.00,07/11/2017
Central Expenses,Central Expenses,Insurance Claims,80013404,DWP COMPENSATION RECOVERY UNIT,637.00,07/11/2017
Central Expenses,Central Expenses,Insurance Claims,80013412,DWP COMPENSATION RECOVERY UNIT,647.00,07/11/2017
Central Expenses,Central Expenses,Insurance Claims,80013415,DWP COMPENSATION RECOVERY UNIT,665.00,07/11/2017
Central Expenses,Central Expenses,Insurance Claims,80013420,DWP COMPENSATION RECOVERY UNIT,781.00,07/11/2017
Central Expenses,Central Expenses,Insurance Claims,80013663,DWP COMPENSATION RECOVERY UNIT,665.00,09/11/2017
Central Expenses,Central Expenses,Insurance Claims,80013757,DWP COMPENSATION RECOVERY UNIT,665.00,16/11/2017
Central Expenses,Central Expenses,Insurance Claims,80013776,DWP COMPENSATION RECOVERY UNIT,665.00,16/11/2017
Central Expenses,Central Expenses,Insurance Claims,80013917,DWP COMPENSATION RECOVERY UNIT,866.00,21/11/2017
Central Expenses,Central Expenses,Insurance Claims,60090834,GLENDALE COUNTRYSIDE LTD,320.00,23/11/2017
Central Expenses,Central Expenses,Insurance Claims,60090910,GLENDALE COUNTRYSIDE LTD,80.98,23/11/2017
Central Expenses,Central Expenses,Insurance Claims,60091778,GRISTWOOD & TOM LTD,120.00,29/11/2017
Central Expenses,Central Expenses,Insurance Claims,60091183,JOHNSON AUSTIN PARTNERSHIP LLP,"1,270.00",10/11/2017
Central Expenses,Central Expenses,Insurance Claims,20035154,OAK LODGE SCHOOL ACADEMY,"1,204.79",24/11/2017
Central Expenses,Central Expenses,Insurance Claims,80014000,IME LAW LIMITED,"2,340.00",29/11/2017
Central Expenses,Central Expenses,Insurance Claims,80014030,PUBLISH - REDACT NAME,665.00,29/11/2017
Central Expenses,Central Expenses,Insurance Claims,80014045,STEPHENSONS SOLICITORS,"5,105.10",29/11/2017
Central Expenses,Central Expenses,Insurance Claims,80013366,PUBLISH - REDACT NAME,834.64,07/11/2017
Central Expenses,Central Expenses,Insurance Claims,80013395,HARWOODS SOLICITORS,"1,899.20",07/11/2017
Central Expenses,Central Expenses,Insurance Claims,80013400,BL CLAIMS SOLICITORS,"8,882.00",07/11/2017
Central Expenses,Central Expenses,Insurance Claims,80013402,PUBLISH - REDACT NAME,209.98,07/11/2017
Central Expenses,Central Expenses,Insurance Claims,80013414,PUBLISH - REDACT NAME,"1,811.54",07/11/2017
Central Expenses,Central Expenses,Insurance Claims,80013424,ENTERPRISE RE,546.38,07/11/2017
Central Expenses,Central Expenses,Insurance Claims,80013502,PUBLISH - REDACT NAME,"1,368.00",07/11/2017
Central Expenses,Central Expenses,Insurance Claims,80013510,PUBLISH - REDACT NAME,"3,500.00",07/11/2017
Central Expenses,Central Expenses,Insurance Claims,80013553,PUBLISH - REDACT NAME,405.00,07/11/2017
Central Expenses,Central Expenses,Insurance Claims,80013584,BLR PROPERTY MAINTENANCE,320.00,07/11/2017
Central Expenses,Central Expenses,Insurance Claims,80013585,PUBLISH - REDACT NAME,"1,000.00",07/11/2017
Central Expenses,Central Expenses,Insurance Claims,80013662,BAKERS SOLICITORS,"4,952.25",09/11/2017
Central Expenses,Central Expenses,Insurance Claims,80013664,REYNOLD SPORT,"23,250.00",09/11/2017
Central Expenses,Central Expenses,Insurance Claims,80013679,SIMPSON MILLA,"2,025.00",09/11/2017
Central Expenses,Central Expenses,Insurance Claims,80013708,PUBLISH - REDACT NAME,155.00,10/11/2017
Central Expenses,Central Expenses,Insurance Claims,80013710,IME LAW LTD,456.00,10/11/2017
Central Expenses,Central Expenses,Insurance Claims,80013718,PUBLISH - REDACT NAME,"1,500.00",10/11/2017
Central Expenses,Central Expenses,Insurance Claims,80013756,PUBLISH - REDACT NAME,"15,182.94",16/11/2017
Central Expenses,Central Expenses,Insurance Claims,80013764,PUBLISH - REDACT NAME,162.00,16/11/2017
Central Expenses,Central Expenses,Insurance Claims,80013771,PUBLISH - REDACT NAME,180.00,16/11/2017
Central Expenses,Central Expenses,Insurance Claims,80013774,PUBLISH - REDACT NAME,"9,350.00",16/11/2017
Central Expenses,Central Expenses,Insurance Claims,80013796,RT PERFORMANCE,"3,858.78",16/11/2017
Central Expenses,Central Expenses,Insurance Claims,80013844,PUBLISH - REDACT NAME,532.50,17/11/2017
Central Expenses,Central Expenses,Insurance Claims,80013899,ROYAL FREE LON,25.00,20/11/2017
Central Expenses,Central Expenses,Insurance Claims,80013916,SLATER GORDON,"11,353.30",21/11/2017
Central Expenses,Central Expenses,Insurance Claims,80013931,ST ANDREWS MED,50.00,22/11/2017
Central Expenses,Central Expenses,Insurance Claims,80013948,BL CLAIMS LLP,"57,500.00",23/11/2017
Central Expenses,Central Expenses,Insurance Claims,80013982,PUBLISH - REDACT NAME,"1,321.56",24/11/2017
Central Expenses,Central Expenses,Insurance Claims,80012685,CHURCHILL MOT,"2,825.38",03/11/2017
Central Expenses,Central Expenses,Insurance Claims,80013394,PUBLISH - REDACT NAME,"5,267.50",03/11/2017
Central Expenses,Central Expenses,Insurance Claims,80013397,GEOFFREY LEAV,"5,000.00",03/11/2017
Central Expenses,Central Expenses,Insurance Claims,80013423,LONDON & QUADRANT,186.72,03/11/2017
Central Expenses,Central Expenses,Insurance Claims,80013498,PUBLISH - REDACT NAME,50.00,03/11/2017
Central Expenses,Central Expenses,Insurance Claims,80013419,BDE LAW LTD,"1,000.00",07/11/2017
Central Expenses,Central Expenses,Insurance Claims,80013594,WHITTINGTON H,50.00,07/11/2017
Central Expenses,Central Expenses,Insurance Claims,80013598,ROYAL FREE LONDON,10.00,07/11/2017
Central Expenses,Central Expenses,Insurance Claims,80013870,PUBLISH - REDACT NAME,"16,815.40",17/11/2017
Central Expenses,Central Expenses,Insurance Claims,80013586,SLATER & GORDON SOLICITORS,360.00,07/11/2017
Central Expenses,Central Expenses,Insurance Claims,80013872,SLATER & GORDON SOLICITORS,"1,560.00",17/11/2017
Central Expenses,Central Expenses,Insurance Claims,60089343,WEIGHTMANS LLP,"1,000.00",02/11/2017
Central Expenses,Central Expenses,Insurance Claims,60091358,WEIGHTMANS LLP,310.50,28/11/2017
Central Expenses,Central Expenses,Insurance Claims,60091820,WEIGHTMANS LLP,"2,002.00",23/11/2017
Central Expenses,Central Expenses,Insurance Claims,60092038,WEIGHTMANS LLP,199.00,21/11/2017
Central Expenses,Central Expenses,Insurance Claims,80013411,HODGE JONES & ALLEN SOLICITORS,"16,080.00",07/11/2017
Central Expenses,Central Expenses,Other Establishments - Third P,EBX0200718,TRANSPORT TRADING LIMITED,"3,791,746.00",29/11/2017
Central Expenses,Central Expenses,Other Establishments - Third P,EBX0199556,LEE VALLEY REGIONAL PARK AUTH.,"30,430.52",11/11/2017
Commercial,Customer Support Group,Building Repairs & Maintenance,60033397,HERTEL (UK) LTD,40.83,07/11/2017
Commercial,Customer Support Group,Building Repairs & Maintenance,60033423,HERTEL (UK) LTD,40.83,07/11/2017
Commercial,Customer Support Group,Building Repairs & Maintenance,60033427,HERTEL (UK) LTD,40.83,07/11/2017
Commercial,Customer Support Group,Building Repairs & Maintenance,60033455,HERTEL (UK) LTD,40.83,07/11/2017
Commercial,Customer Support Group,Building Repairs & Maintenance,60033589,HERTEL (UK) LTD,40.83,07/11/2017
Commercial,Customer Support Group,Building Repairs & Maintenance,60033643,HERTEL (UK) LTD,40.83,06/11/2017
Commercial,Customer Support Group,Building Repairs & Maintenance,60033655,HERTEL (UK) LTD,40.83,07/11/2017
Commercial,Customer Support Group,Building Repairs & Maintenance,60033725,HERTEL (UK) LTD,40.83,07/11/2017
Commercial,Customer Support Group,Building Repairs & Maintenance,60033741,HERTEL (UK) LTD,40.83,07/11/2017
Commercial,Customer Support Group,Building Repairs & Maintenance,60033788,HERTEL (UK) LTD,40.83,07/11/2017
Commercial,Customer Support Group,Building Repairs & Maintenance,60091089,AJS LTD,296.87,07/11/2017
Commercial,Customer Support Group,Building Repairs & Maintenance,60091107,AJS LTD,296.87,07/11/2017
Commercial,Customer Support Group,Building Repairs & Maintenance,60092499,AJS LTD,296.87,27/11/2017
Commercial,Customer Support Group,Building Repairs & Maintenance,60033621,HERTEL (UK) LTD,40.83,07/11/2017
Commercial,Customer Support Group,Building Repairs & Maintenance,60048924,HERTEL (UK) LTD,40.83,07/11/2017
Commercial,Customer Support Group,Building Repairs & Maintenance,60090669,HERTEL (UK) LTD,34.91,01/11/2017
Commercial,Customer Support Group,Building Repairs & Maintenance,60090688,HERTEL (UK) LTD,34.91,08/11/2017
Commercial,Customer Support Group,Building Repairs & Maintenance,60090691,HERTEL (UK) LTD,34.91,01/11/2017
Commercial,Customer Support Group,Building Repairs & Maintenance,60090707,HERTEL (UK) LTD,34.91,08/11/2017
Commercial,Customer Support Group,Building Repairs & Maintenance,60090716,HERTEL (UK) LTD,34.91,08/11/2017
Commercial,Customer Support Group,Building Repairs & Maintenance,60090719,HERTEL (UK) LTD,34.91,08/11/2017
Commercial,Customer Support Group,Building Repairs & Maintenance,60090729,HERTEL (UK) LTD,34.91,08/11/2017
Commercial,Customer Support Group,Building Repairs & Maintenance,60090739,HERTEL (UK) LTD,34.91,01/11/2017
Commercial,Customer Support Group,Building Repairs & Maintenance,60090746,HERTEL (UK) LTD,34.91,08/11/2017
Commercial,Customer Support Group,Building Repairs & Maintenance,60090755,HERTEL (UK) LTD,34.91,01/11/2017
Commercial,Customer Support Group,Building Repairs & Maintenance,60090857,HERTEL (UK) LTD,34.91,03/11/2017
Commercial,Customer Support Group,Building Repairs & Maintenance,60090870,HERTEL (UK) LTD,34.91,03/11/2017
Commercial,Customer Support Group,Building Repairs & Maintenance,60090889,HERTEL (UK) LTD,34.91,03/11/2017
Commercial,Customer Support Group,Building Repairs & Maintenance,60091132,HERTEL (UK) LTD,34.91,08/11/2017
Commercial,Customer Support Group,Building Repairs & Maintenance,60091141,HERTEL (UK) LTD,34.91,08/11/2017
Commercial,Customer Support Group,Building Repairs & Maintenance,60091144,HERTEL (UK) LTD,34.91,08/11/2017
Commercial,Customer Support Group,Building Repairs & Maintenance,60091150,HERTEL (UK) LTD,34.91,08/11/2017
Commercial,Customer Support Group,Building Repairs & Maintenance,60091163,HERTEL (UK) LTD,34.91,08/11/2017
Commercial,Customer Support Group,Building Repairs & Maintenance,60091166,HERTEL (UK) LTD,34.91,08/11/2017
Commercial,Customer Support Group,Building Repairs & Maintenance,60091173,HERTEL (UK) LTD,34.91,08/11/2017
Commercial,Customer Support Group,Building Repairs & Maintenance,60091188,HERTEL (UK) LTD,34.91,08/11/2017
Commercial,Customer Support Group,Building Repairs & Maintenance,60091201,HERTEL (UK) LTD,34.91,08/11/2017
Commercial,Customer Support Group,Building Repairs & Maintenance,60091202,HERTEL (UK) LTD,34.91,08/11/2017
Commercial,Customer Support Group,Building Repairs & Maintenance,60091214,HERTEL (UK) LTD,34.91,08/11/2017
Commercial,Customer Support Group,Building Repairs & Maintenance,60091223,HERTEL (UK) LTD,34.91,08/11/2017
Commercial,Customer Support Group,Building Repairs & Maintenance,60091228,HERTEL (UK) LTD,34.91,08/11/2017
Commercial,Customer Support Group,Building Repairs & Maintenance,60091254,HERTEL (UK) LTD,34.91,08/11/2017
Commercial,Customer Support Group,Building Repairs & Maintenance,60091260,HERTEL (UK) LTD,34.91,08/11/2017
Commercial,Customer Support Group,Building Repairs & Maintenance,60091262,HERTEL (UK) LTD,34.91,08/11/2017
Commercial,Customer Support Group,Building Repairs & Maintenance,60091276,HERTEL (UK) LTD,34.91,08/11/2017
Commercial,Customer Support Group,Building Repairs & Maintenance,60091278,HERTEL (UK) LTD,34.91,08/11/2017
Commercial,Customer Support Group,Building Repairs & Maintenance,60091287,HERTEL (UK) LTD,34.91,08/11/2017
Commercial,Customer Support Group,Building Repairs & Maintenance,60091329,HERTEL (UK) LTD,24.94,09/11/2017
Commercial,Customer Support Group,Building Repairs & Maintenance,60092226,LIFT & ENGINEERING SERVICES LTD,66.94,27/11/2017
Commercial,Customer Support Group,Building Repairs & Maintenance,60092258,LIFT & ENGINEERING SERVICES LTD,66.94,27/11/2017
Commercial,Customer Support Group,Building Repairs & Maintenance,60092293,LIFT & ENGINEERING SERVICES LTD,66.94,27/11/2017
Commercial,Customer Support Group,Building Repairs & Maintenance,60083579,S W BRUCE & CO LTD,"1,140.00",28/11/2017
Commercial,Customer Support Group,Building Repairs & Maintenance,60083631,S W BRUCE & CO LTD,570.00,28/11/2017
Commercial,Customer Support Group,Cleaning and domestic material,60091026,CHURCHILL CONTRACT SERVICES,"1,032.37",30/11/2017
Commercial,Customer Support Group,Equipment and Materials Purcha,60090696,DAY PLANT HIRE CO LIMITED,"1,336.14",02/11/2017
Commercial,Customer Support Group,Water Services,60090770,AFFINITY WATER LIMITED,641.04,27/11/2017
Commercial,Customer Support Group,Water Services,60091846,ANGEL SPRINGS LTD,15.50,29/11/2017
Commercial,Customer Support Group,Other Services,60091029,BLUE 9 SECURITY LIMITED,"21,918.63",09/11/2017
Commercial,Customer Support Group,Building Repairs & Maintenance,60090083,BRIAR ASSOCIATES,210.00,09/11/2017
Commercial,Customer Support Group,Telephones Calls,60092561,BRITISH TELECOM PLC,125.86,28/11/2017
Commercial,Customer Support Group,Cleaning and domestic material,60090951,CHURCHILL CONTRACT SERVICES,"11,562.54",30/11/2017
Commercial,Customer Support Group,Building Repairs & Maintenance,60073278,HERTEL (UK) LTD,34.91,10/11/2017
Commercial,Customer Support Group,Building Repairs & Maintenance,60090887,HERTEL (UK) LTD,300.00,03/11/2017
Commercial,Customer Support Group,Building Repairs & Maintenance,60091238,HERTEL (UK) LTD,34.91,08/11/2017
Commercial,Customer Support Group,Cleaning and domestic material,60091417,HERTFORDSHIRE SUPPLIES   COUNTY CO,377.82,22/11/2017
Commercial,Customer Support Group,Cleaning and domestic material,60091502,HERTFORDSHIRE SUPPLIES   COUNTY CO,"2,339.22",10/11/2017
Commercial,Customer Support Group,Gas,60090455,KENT COUNTY COUNCIL (KCS),"1,684.68",08/11/2017
Commercial,Customer Support Group,Electricity,60090575,LASERFORM INTERNATIONAL LTD,"5,304.06",17/11/2017
Commercial,Customer Support Group,Rubbish Collection,60091037,PREMIER SHREDDING,55.00,08/11/2017
Commercial,Customer Support Group,Building Repairs & Maintenance,60090597,S W BRUCE & CO LTD,"1,920.50",24/11/2017
Commercial,Customer Support Group,Publications,10013925,TV LICENSING,147.00,28/11/2017
Commercial,Customer Support Group,Furniture-Purchase-Repair,60087300,LYCO DIRECT LTD,(22.50),23/11/2017
Commercial,Customer Support Group,Water Services,60091847,ANGEL SPRINGS LTD,200.00,29/11/2017
Commercial,Customer Support Group,Other Services,60091083,BLUE 9 SECURITY LIMITED,"6,492.34",09/11/2017
Commercial,Customer Support Group,Cleaning and domestic material,60090966,CHURCHILL CONTRACT SERVICES,"1,133.45",30/11/2017
Commercial,Customer Support Group,Building Repairs & Maintenance,60092691,COLT INTERNATIONAL LTD,"1,072.00",29/11/2017
Commercial,Customer Support Group,Electricity,60090737,E-ON ENERGY,153.18,01/11/2017
Commercial,Customer Support Group,Equipment and Materials Purcha,60089220,EVAC & CHAIR INTERNATIONAL LTD,490.00,02/11/2017
Commercial,Customer Support Group,Equipment and Materials Purcha,60089734,EVAC & CHAIR INTERNATIONAL LTD,552.50,09/11/2017
Commercial,Customer Support Group,Building Repairs & Maintenance,60091140,HERTEL (UK) LTD,34.91,08/11/2017
Commercial,Customer Support Group,Building Repairs & Maintenance,60091314,HERTEL (UK) LTD,"1,170.70",09/11/2017
Commercial,Customer Support Group,Building Repairs & Maintenance,60091332,HERTEL (UK) LTD,110.00,09/11/2017
Commercial,Customer Support Group,Cleaning and domestic material,60091506,HERTFORDSHIRE SUPPLIES   COUNTY CO,173.34,22/11/2017
Commercial,Customer Support Group,Furniture-Purchase-Repair,60090981,LYCO DIRECT LTD,81.00,23/11/2017
Commercial,Customer Support Group,Building Repairs & Maintenance,60089426,S W BRUCE & CO LTD,479.75,02/11/2017
Commercial,Customer Support Group,Electricity,60090035,KENT COUNTY COUNCIL (KCS),(603.84),28/11/2017
Commercial,Customer Support Group,Electricity,60090072,KENT COUNTY COUNCIL (KCS),"(1,188.44)",28/11/2017
Commercial,Customer Support Group,Electricity,60090075,KENT COUNTY COUNCIL (KCS),"(1,753.32)",28/11/2017
Commercial,Customer Support Group,Building Repairs & Maintenance,60091129,HERTEL (UK) LTD,34.91,08/11/2017
Commercial,Customer Support Group,Building Repairs & Maintenance,60091164,HERTEL (UK) LTD,34.91,08/11/2017
Commercial,Customer Support Group,Building Repairs & Maintenance,60091286,HERTEL (UK) LTD,34.91,08/11/2017
Commercial,Customer Support Group,Building Repairs & Maintenance,60091301,HERTEL (UK) LTD,75.00,09/11/2017
Commercial,Customer Support Group,Building Repairs & Maintenance,60091354,HERTEL (UK) LTD,75.00,09/11/2017
Commercial,Customer Support Group,Gas,60090052,KENT COUNTY COUNCIL (KCS),183.32,10/11/2017
Commercial,Customer Support Group,Gas,60090060,KENT COUNTY COUNCIL (KCS),123.38,10/11/2017
Commercial,Customer Support Group,Electricity,60092001,KENT COUNTY COUNCIL (KCS),303.76,28/11/2017
Commercial,Customer Support Group,Electricity,60092024,KENT COUNTY COUNCIL (KCS),"1,411.78",28/11/2017
Commercial,Customer Support Group,Gas,60064381,CALOR GAS LIMITED,(4.76),07/11/2017
Commercial,Customer Support Group,Building Repairs & Maintenance,60090679,CHARLES WILSON ENGINEERS LTD,820.00,03/11/2017
Commercial,Customer Support Group,Building Repairs & Maintenance,60090752,CHARLES WILSON ENGINEERS LTD,252.00,03/11/2017
Commercial,Customer Support Group,Electricity,60089881,KENT COUNTY COUNCIL (KCS),184.26,10/11/2017
Commercial,Customer Support Group,Electricity,60089970,KENT COUNTY COUNCIL (KCS),"1,462.37",10/11/2017
Commercial,Customer Support Group,Electricity,60090734,KENT COUNTY COUNCIL (KCS),359.71,16/11/2017
Commercial,Customer Support Group,Other Services,60090984,BLUE 9 SECURITY LIMITED,"11,584.08",09/11/2017
Commercial,Customer Support Group,Cleaning and domestic material,60090961,CHURCHILL CONTRACT SERVICES,"7,329.82",30/11/2017
Commercial,Customer Support Group,Cleaning and domestic material,60092304,CHURCHILL CONTRACT SERVICES,351.00,30/11/2017
Commercial,Customer Support Group,Cleaning and domestic material,60091401,HERTFORDSHIRE COUNTY COUNCIL,"2,277.32",22/11/2017
Commercial,Customer Support Group,Equipment and Materials Purcha,60089368,HSM (UK) LTD.,288.00,02/11/2017
Commercial,Customer Support Group,Service Charges,60091813,MIDDLESEX UNIVERSITY,"19,789.16",16/11/2017
Commercial,Customer Support Group,Building Repairs & Maintenance,60092793,NORTH LONDON CATERING EQUIPMENT,95.00,30/11/2017
Commercial,Customer Support Group,Consumable Catering Supplies,60092813,NORTH LONDON CATERING EQUIPMENT,211.90,30/11/2017
Commercial,Customer Support Group,Rubbish Collection,60091018,PREMIER SHREDDING,66.00,08/11/2017
Commercial,Customer Support Group,Furniture-Purchase-Repair,60090427,SCREWFIX DIRECT LTD,99.73,07/11/2017
Commercial,Customer Support Group,Furniture-Purchase-Repair,60090667,SCREWFIX DIRECT LTD,56.42,06/11/2017
Commercial,Customer Support Group,Building Repairs & Maintenance,60091168,WMF UNITED KINGDOM LTD,237.00,08/11/2017
Commercial,Customer Support Group,Building Repairs & Maintenance,60091184,WMF UNITED KINGDOM LTD,120.00,08/11/2017
Commercial,Customer Support Group,Building Repairs & Maintenance,60091256,WMF UNITED KINGDOM LTD,40.00,08/11/2017
Commercial,Customer Support Group,Other Services,60092404,BLUE 9 SECURITY LIMITED,13.43,30/11/2017
Commercial,Customer Support Group,Cleaning and domestic material,60091027,CHURCHILL CONTRACT SERVICES,661.80,30/11/2017
Commercial,Customer Support Group,Building Repairs & Maintenance,60091158,HERTEL (UK) LTD,34.91,08/11/2017
Commercial,Customer Support Group,Building Repairs & Maintenance,60091347,HERTEL (UK) LTD,150.00,09/11/2017
Commercial,Customer Support Group,Gas,60090030,KENT COUNTY COUNCIL (KCS),73.95,10/11/2017
Commercial,Customer Support Group,CSG Services Contract Payment,60091727,CAPITA BUSINESS SERVICES LTD,"34,690.00",23/11/2017
Commercial,Customer Support Group,CSG Services Contract Payment,60091766,CAPITA BUSINESS SERVICES LTD,"168,876.00",23/11/2017
Commercial,Customer Support Group,CSG Services Contract Payment,60089827,CAPITA BUSINESS SERVICES LTD,"11,108.10",17/11/2017
Commercial,Customer Support Group,CSG Services Contract Payment,60089939,CAPITA BUSINESS SERVICES LTD,"14,583.00",07/11/2017
Commercial,Customer Support Group,CSG Services Contract Payment,60090539,CAPITA BUSINESS SERVICES LTD,"56,490.80",23/11/2017
Commercial,Customer Support Group,CSG Services Contract Payment,60091719,CAPITA BUSINESS SERVICES LTD,"10,675.05",23/11/2017
Commercial,Customer Support Group,CSG Services Contract Payment,60092094,CAPITA BUSINESS SERVICES LTD,"1,059,766.46",30/11/2017
Commercial,Customer Support Group,CSG Services Contract Payment,60092138,CAPITA BUSINESS SERVICES LTD,"180,335.60",30/11/2017
Commercial,Customer Support Group,CSG Services Contract Payment,60092168,CAPITA BUSINESS SERVICES LTD,"34,169.17",30/11/2017
Commercial,Customer Support Group,Water Services,60088124,AFFINITY WATER LIMITED,191.03,01/11/2017
Commercial,Customer Support Group,Water Services,60088144,AFFINITY WATER LIMITED,224.25,01/11/2017
Commercial,Customer Support Group,Water Services,60088146,AFFINITY WATER LIMITED,50.00,01/11/2017
Commercial,Customer Support Group,Water Services,60088148,AFFINITY WATER LIMITED,189.88,01/11/2017
Commercial,Customer Support Group,Building Repairs & Maintenance,60091296,AFFINITY WATER LIMITED,17.75,09/11/2017
Commercial,Customer Support Group,Building Repairs & Maintenance,60091103,AJS LTD,"1,425.00",07/11/2017
Commercial,Customer Support Group,Other Services,60091055,BLUE 9 SECURITY LIMITED,214.88,09/11/2017
Commercial,Customer Support Group,Other Services,60091101,BLUE 9 SECURITY LIMITED,53.72,09/11/2017
Commercial,Customer Support Group,Other Services,60091116,BLUE 9 SECURITY LIMITED,416.33,09/11/2017
Commercial,Customer Support Group,Electricity,60090584,BRITISH GAS BUSINESS,37.66,07/11/2017
Commercial,Customer Support Group,Water Services,60090824,CASTLE WATER LTD,218.03,02/11/2017
Commercial,Customer Support Group,Cleaning and domestic material,60090968,CHURCHILL CONTRACT SERVICES,658.45,30/11/2017
Commercial,Customer Support Group,Cleaning and domestic material,60091015,CHURCHILL CONTRACT SERVICES,294.16,30/11/2017
Commercial,Customer Support Group,Electricity,60090697,E-ON ENERGY,63.41,02/11/2017
Commercial,Customer Support Group,Electricity,60090720,E-ON ENERGY,27.81,01/11/2017
Commercial,Customer Support Group,Building Repairs & Maintenance,60090694,GRISTWOOD & TOM LTD,"2,660.00",22/11/2017
Commercial,Customer Support Group,Building Repairs & Maintenance,60033634,HERTEL (UK) LTD,40.83,07/11/2017
Commercial,Customer Support Group,Building Repairs & Maintenance,60034611,HERTEL (UK) LTD,70.00,07/11/2017
Commercial,Customer Support Group,Building Repairs & Maintenance,60034715,HERTEL (UK) LTD,70.00,07/11/2017
Commercial,Customer Support Group,Building Repairs & Maintenance,60049050,HERTEL (UK) LTD,40.83,07/11/2017
Commercial,Customer Support Group,Building Repairs & Maintenance,60071513,HERTEL (UK) LTD,34.91,08/11/2017
Commercial,Customer Support Group,Building Repairs & Maintenance,60087821,HERTEL (UK) LTD,34.91,06/11/2017
Commercial,Customer Support Group,Building Repairs & Maintenance,60090595,HERTEL (UK) LTD,34.91,01/11/2017
Commercial,Customer Support Group,Building Repairs & Maintenance,60090683,HERTEL (UK) LTD,34.91,09/11/2017
Commercial,Customer Support Group,Building Repairs & Maintenance,60090685,HERTEL (UK) LTD,34.91,08/11/2017
Commercial,Customer Support Group,Building Repairs & Maintenance,60090700,HERTEL (UK) LTD,34.91,01/11/2017
Commercial,Customer Support Group,Building Repairs & Maintenance,60090710,HERTEL (UK) LTD,34.91,01/11/2017
Commercial,Customer Support Group,Building Repairs & Maintenance,60090711,HERTEL (UK) LTD,34.91,02/11/2017
Commercial,Customer Support Group,Building Repairs & Maintenance,60090723,HERTEL (UK) LTD,34.91,09/11/2017
Commercial,Customer Support Group,Building Repairs & Maintenance,60090732,HERTEL (UK) LTD,34.91,02/11/2017
Commercial,Customer Support Group,Building Repairs & Maintenance,60090733,HERTEL (UK) LTD,34.91,02/11/2017
Commercial,Customer Support Group,Building Repairs & Maintenance,60090738,HERTEL (UK) LTD,34.91,02/11/2017
Commercial,Customer Support Group,Building Repairs & Maintenance,60090740,HERTEL (UK) LTD,34.91,08/11/2017
Commercial,Customer Support Group,Building Repairs & Maintenance,60090743,HERTEL (UK) LTD,39.79,09/11/2017
Commercial,Customer Support Group,Building Repairs & Maintenance,60090749,HERTEL (UK) LTD,34.91,01/11/2017
Commercial,Customer Support Group,Building Repairs & Maintenance,60090751,HERTEL (UK) LTD,34.91,01/11/2017
Commercial,Customer Support Group,Building Repairs & Maintenance,60090753,HERTEL (UK) LTD,34.91,08/11/2017
Commercial,Customer Support Group,Building Repairs & Maintenance,60090864,HERTEL (UK) LTD,34.91,03/11/2017
Commercial,Customer Support Group,Building Repairs & Maintenance,60090876,HERTEL (UK) LTD,34.91,03/11/2017
Commercial,Customer Support Group,Building Repairs & Maintenance,60090906,HERTEL (UK) LTD,34.91,03/11/2017
Commercial,Customer Support Group,Building Repairs & Maintenance,60090912,HERTEL (UK) LTD,34.91,03/11/2017
Commercial,Customer Support Group,Building Repairs & Maintenance,60091134,HERTEL (UK) LTD,34.91,08/11/2017
Commercial,Customer Support Group,Building Repairs & Maintenance,60091145,HERTEL (UK) LTD,34.91,08/11/2017
Commercial,Customer Support Group,Building Repairs & Maintenance,60091146,HERTEL (UK) LTD,34.91,08/11/2017
Commercial,Customer Support Group,Building Repairs & Maintenance,60091149,HERTEL (UK) LTD,34.91,08/11/2017
Commercial,Customer Support Group,Building Repairs & Maintenance,60091152,HERTEL (UK) LTD,34.91,08/11/2017
Commercial,Customer Support Group,Building Repairs & Maintenance,60091153,HERTEL (UK) LTD,34.91,08/11/2017
Commercial,Customer Support Group,Building Repairs & Maintenance,60091157,HERTEL (UK) LTD,34.91,08/11/2017
Commercial,Customer Support Group,Building Repairs & Maintenance,60091159,HERTEL (UK) LTD,34.91,09/11/2017
Commercial,Customer Support Group,Building Repairs & Maintenance,60091176,HERTEL (UK) LTD,34.91,09/11/2017
Commercial,Customer Support Group,Building Repairs & Maintenance,60091177,HERTEL (UK) LTD,34.91,08/11/2017
Commercial,Customer Support Group,Building Repairs & Maintenance,60091181,HERTEL (UK) LTD,34.91,08/11/2017
Commercial,Customer Support Group,Building Repairs & Maintenance,60091193,HERTEL (UK) LTD,34.91,08/11/2017
Commercial,Customer Support Group,Building Repairs & Maintenance,60091194,HERTEL (UK) LTD,34.91,08/11/2017
Commercial,Customer Support Group,Building Repairs & Maintenance,60091196,HERTEL (UK) LTD,34.91,08/11/2017
Commercial,Customer Support Group,Building Repairs & Maintenance,60091197,HERTEL (UK) LTD,34.91,08/11/2017
Commercial,Customer Support Group,Building Repairs & Maintenance,60091198,HERTEL (UK) LTD,34.91,08/11/2017
Commercial,Customer Support Group,Building Repairs & Maintenance,60091213,HERTEL (UK) LTD,34.91,08/11/2017
Commercial,Customer Support Group,Building Repairs & Maintenance,60091216,HERTEL (UK) LTD,34.91,08/11/2017
Commercial,Customer Support Group,Building Repairs & Maintenance,60091224,HERTEL (UK) LTD,34.91,08/11/2017
Commercial,Customer Support Group,Building Repairs & Maintenance,60091227,HERTEL (UK) LTD,34.91,08/11/2017
Commercial,Customer Support Group,Building Repairs & Maintenance,60091235,HERTEL (UK) LTD,34.91,08/11/2017
Commercial,Customer Support Group,Building Repairs & Maintenance,60091237,HERTEL (UK) LTD,34.91,08/11/2017
Commercial,Customer Support Group,Building Repairs & Maintenance,60091240,HERTEL (UK) LTD,34.91,08/11/2017
Commercial,Customer Support Group,Building Repairs & Maintenance,60091243,HERTEL (UK) LTD,34.91,08/11/2017
Commercial,Customer Support Group,Building Repairs & Maintenance,60091245,HERTEL (UK) LTD,34.91,08/11/2017
Commercial,Customer Support Group,Building Repairs & Maintenance,60091246,HERTEL (UK) LTD,34.91,08/11/2017
Commercial,Customer Support Group,Building Repairs & Maintenance,60091247,HERTEL (UK) LTD,34.91,08/11/2017
Commercial,Customer Support Group,Building Repairs & Maintenance,60091251,HERTEL (UK) LTD,34.91,08/11/2017
Commercial,Customer Support Group,Building Repairs & Maintenance,60091258,HERTEL (UK) LTD,34.91,08/11/2017
Commercial,Customer Support Group,Building Repairs & Maintenance,60091261,HERTEL (UK) LTD,34.91,08/11/2017
Commercial,Customer Support Group,Building Repairs & Maintenance,60091263,HERTEL (UK) LTD,34.91,08/11/2017
Commercial,Customer Support Group,Building Repairs & Maintenance,60091268,HERTEL (UK) LTD,34.91,08/11/2017
Commercial,Customer Support Group,Building Repairs & Maintenance,60091275,HERTEL (UK) LTD,34.91,08/11/2017
Commercial,Customer Support Group,Building Repairs & Maintenance,60091277,HERTEL (UK) LTD,34.91,08/11/2017
Commercial,Customer Support Group,Building Repairs & Maintenance,60091279,HERTEL (UK) LTD,34.91,08/11/2017
Commercial,Customer Support Group,Building Repairs & Maintenance,60091288,HERTEL (UK) LTD,34.91,08/11/2017
Commercial,Customer Support Group,Building Repairs & Maintenance,60091289,HERTEL (UK) LTD,34.91,08/11/2017
Commercial,Customer Support Group,Building Repairs & Maintenance,60091293,HERTEL (UK) LTD,"5,545.00",09/11/2017
Commercial,Customer Support Group,Building Repairs & Maintenance,60091302,HERTEL (UK) LTD,189.00,09/11/2017
Commercial,Customer Support Group,Building Repairs & Maintenance,60091304,HERTEL (UK) LTD,34.91,10/11/2017
Commercial,Customer Support Group,Building Repairs & Maintenance,60091310,HERTEL (UK) LTD,75.00,09/11/2017
Commercial,Customer Support Group,Building Repairs & Maintenance,60091311,HERTEL (UK) LTD,34.91,10/11/2017
Commercial,Customer Support Group,Building Repairs & Maintenance,60091313,HERTEL (UK) LTD,168.00,09/11/2017
Commercial,Customer Support Group,Building Repairs & Maintenance,60091316,HERTEL (UK) LTD,34.91,09/11/2017
Commercial,Customer Support Group,Building Repairs & Maintenance,60091318,HERTEL (UK) LTD,150.00,09/11/2017
Commercial,Customer Support Group,Building Repairs & Maintenance,60091326,HERTEL (UK) LTD,104.74,09/11/2017
Commercial,Customer Support Group,Building Repairs & Maintenance,60091327,HERTEL (UK) LTD,34.91,10/11/2017
Commercial,Customer Support Group,Building Repairs & Maintenance,60091333,HERTEL (UK) LTD,"3,558.00",09/11/2017
Commercial,Customer Support Group,Building Repairs & Maintenance,60091334,HERTEL (UK) LTD,480.00,09/11/2017
Commercial,Customer Support Group,Building Repairs & Maintenance,60091337,HERTEL (UK) LTD,104.74,09/11/2017
Commercial,Customer Support Group,Building Repairs & Maintenance,60091338,HERTEL (UK) LTD,75.00,09/11/2017
Commercial,Customer Support Group,Building Repairs & Maintenance,60091339,HERTEL (UK) LTD,34.91,10/11/2017
Commercial,Customer Support Group,Building Repairs & Maintenance,60091345,HERTEL (UK) LTD,475.00,09/11/2017
Commercial,Customer Support Group,Building Repairs & Maintenance,60091346,HERTEL (UK) LTD,252.00,09/11/2017
Commercial,Customer Support Group,Building Repairs & Maintenance,60091348,HERTEL (UK) LTD,45.00,09/11/2017
Commercial,Customer Support Group,Building Repairs & Maintenance,60091350,HERTEL (UK) LTD,104.74,09/11/2017
Commercial,Customer Support Group,Building Repairs & Maintenance,60091355,HERTEL (UK) LTD,34.91,09/11/2017
Commercial,Customer Support Group,Building Repairs & Maintenance,60091360,HERTEL (UK) LTD,189.00,09/11/2017
Commercial,Customer Support Group,Building Repairs & Maintenance,60091362,HERTEL (UK) LTD,180.00,09/11/2017
Commercial,Customer Support Group,Building Repairs & Maintenance,60091363,HERTEL (UK) LTD,173.25,09/11/2017
Commercial,Customer Support Group,Building Repairs & Maintenance,60091364,HERTEL (UK) LTD,34.91,09/11/2017
Commercial,Customer Support Group,Building Repairs & Maintenance,60091365,HERTEL (UK) LTD,150.00,09/11/2017
Commercial,Customer Support Group,Building Repairs & Maintenance,60091367,HERTEL (UK) LTD,179.55,09/11/2017
Commercial,Customer Support Group,Building Repairs & Maintenance,60091370,HERTEL (UK) LTD,189.00,09/11/2017
Commercial,Customer Support Group,Building Repairs & Maintenance,60091374,HERTEL (UK) LTD,34.91,09/11/2017
Commercial,Customer Support Group,Building Repairs & Maintenance,60091377,HERTEL (UK) LTD,34.91,10/11/2017
Commercial,Customer Support Group,Building Repairs & Maintenance,60091384,HERTEL (UK) LTD,34.91,10/11/2017
Commercial,Customer Support Group,Building Repairs & Maintenance,60091385,HERTEL (UK) LTD,126.00,09/11/2017
Commercial,Customer Support Group,Building Repairs & Maintenance,60091387,HERTEL (UK) LTD,34.91,09/11/2017
Commercial,Customer Support Group,Gas,60085359,KENT COUNTY COUNCIL (KCS),60.07,09/11/2017
Commercial,Customer Support Group,Gas,60085372,KENT COUNTY COUNCIL (KCS),66.15,09/11/2017
Commercial,Customer Support Group,Gas,60085393,KENT COUNTY COUNCIL (KCS),40.46,09/11/2017
Commercial,Customer Support Group,Gas,60085395,KENT COUNTY COUNCIL (KCS),56.21,09/11/2017
Commercial,Customer Support Group,Gas,60085404,KENT COUNTY COUNCIL (KCS),46.12,09/11/2017
Commercial,Customer Support Group,Gas,60085426,KENT COUNTY COUNCIL (KCS),59.23,09/11/2017
Commercial,Customer Support Group,Gas,60085431,KENT COUNTY COUNCIL (KCS),56.15,10/11/2017
Commercial,Customer Support Group,Electricity,60090175,KENT COUNTY COUNCIL (KCS),118.51,09/11/2017
Commercial,Customer Support Group,Gas,60090322,KENT COUNTY COUNCIL (KCS),148.84,08/11/2017
Commercial,Customer Support Group,Gas,60090327,KENT COUNTY COUNCIL (KCS),53.30,08/11/2017
Commercial,Customer Support Group,Electricity,60090348,KENT COUNTY COUNCIL (KCS),233.56,09/11/2017
Commercial,Customer Support Group,Gas,60090365,KENT COUNTY COUNCIL (KCS),188.72,08/11/2017
Commercial,Customer Support Group,Gas,60090367,KENT COUNTY COUNCIL (KCS),41.34,08/11/2017
Commercial,Customer Support Group,Gas,60090377,KENT COUNTY COUNCIL (KCS),53.40,08/11/2017
Commercial,Customer Support Group,Gas,60090378,KENT COUNTY COUNCIL (KCS),71.54,08/11/2017
Commercial,Customer Support Group,Gas,60090526,KENT COUNTY COUNCIL (KCS),257.51,08/11/2017
Commercial,Customer Support Group,Electricity,60090613,KENT COUNTY COUNCIL (KCS),485.31,09/11/2017
Commercial,Customer Support Group,Electricity,60090614,KENT COUNTY COUNCIL (KCS),196.66,09/11/2017
Commercial,Customer Support Group,Electricity,60090634,KENT COUNTY COUNCIL (KCS),64.50,09/11/2017
Commercial,Customer Support Group,Electricity,60090642,KENT COUNTY COUNCIL (KCS),45.75,09/11/2017
Commercial,Customer Support Group,Electricity,60090662,KENT COUNTY COUNCIL (KCS),570.18,09/11/2017
Commercial,Customer Support Group,Electricity,60090673,KENT COUNTY COUNCIL (KCS),"1,580.85",09/11/2017
Commercial,Customer Support Group,Electricity,60091034,KENT COUNTY COUNCIL (KCS),156.85,13/11/2017
Commercial,Customer Support Group,Electricity,60090491,LASERFORM INTERNATIONAL LTD,808.62,17/11/2017
Commercial,Customer Support Group,Service Charges,60091858,LAZARI INVESTMENTS LTD,"27,966.24",16/11/2017
Commercial,Customer Support Group,Building Repairs & Maintenance,60086894,LEE SECURITY LONDON LIMITED,177.20,06/11/2017
Commercial,Customer Support Group,Building Repairs & Maintenance,60090525,LEE SECURITY LONDON LIMITED,229.40,03/11/2017
Commercial,Customer Support Group,Building Repairs & Maintenance,60090552,LEE SECURITY LONDON LIMITED,98.00,03/11/2017
Commercial,Customer Support Group,Building Repairs & Maintenance,60090678,LEE SECURITY LONDON LIMITED,83.00,23/11/2017
Commercial,Customer Support Group,Building Repairs & Maintenance,60090942,LEE SECURITY LONDON LIMITED,484.00,06/11/2017
Commercial,Customer Support Group,Building Repairs & Maintenance,60090948,LEE SECURITY LONDON LIMITED,489.00,06/11/2017
Commercial,Customer Support Group,Building Repairs & Maintenance,60090975,LEE SECURITY LONDON LIMITED,83.00,06/11/2017
Commercial,Customer Support Group,Building Repairs & Maintenance,60090989,LEE SECURITY LONDON LIMITED,793.00,08/11/2017
Commercial,Customer Support Group,Building Repairs & Maintenance,60091022,LEE SECURITY LONDON LIMITED,"1,011.00",06/11/2017
Commercial,Customer Support Group,Building Repairs & Maintenance,60091047,LEE SECURITY LONDON LIMITED,"1,680.00",06/11/2017
Commercial,Customer Support Group,Building Repairs & Maintenance,60092283,LIFT & ENGINEERING SERVICES LTD,133.88,27/11/2017
Commercial,Customer Support Group,Consultants Fees,60090218,MEMS LTD T/A MEMS POWER GENERATION,"1,490.00",16/11/2017
Commercial,Customer Support Group,Building Repairs & Maintenance,60087137,OAKRAY LIMITED,108.00,06/11/2017
Commercial,Customer Support Group,Building Repairs & Maintenance,60087138,OAKRAY LIMITED,61.00,06/11/2017
Commercial,Customer Support Group,Building Repairs & Maintenance,60087144,OAKRAY LIMITED,304.00,06/11/2017
Commercial,Customer Support Group,Building Repairs & Maintenance,60087151,OAKRAY LIMITED,365.00,06/11/2017
Commercial,Customer Support Group,Building Repairs & Maintenance,60087164,OAKRAY LIMITED,81.00,03/11/2017
Commercial,Customer Support Group,Building Repairs & Maintenance,60087166,OAKRAY LIMITED,81.00,03/11/2017
Commercial,Customer Support Group,Building Repairs & Maintenance,60087173,OAKRAY LIMITED,81.00,03/11/2017
Commercial,Customer Support Group,Building Repairs & Maintenance,60087175,OAKRAY LIMITED,45.00,03/11/2017
Commercial,Customer Support Group,Building Repairs & Maintenance,60087180,OAKRAY LIMITED,122.00,03/11/2017
Commercial,Customer Support Group,Building Repairs & Maintenance,60087187,OAKRAY LIMITED,58.00,03/11/2017
Commercial,Customer Support Group,Building Repairs & Maintenance,60087190,OAKRAY LIMITED,281.00,03/11/2017
Commercial,Customer Support Group,Building Repairs & Maintenance,60087194,OAKRAY LIMITED,68.00,06/11/2017
Commercial,Customer Support Group,Building Repairs & Maintenance,60087198,OAKRAY LIMITED,81.00,06/11/2017
Commercial,Customer Support Group,Building Repairs & Maintenance,60087214,OAKRAY LIMITED,165.00,06/11/2017
Commercial,Customer Support Group,Building Repairs & Maintenance,60087219,OAKRAY LIMITED,64.00,06/11/2017
Commercial,Customer Support Group,Building Repairs & Maintenance,60087232,OAKRAY LIMITED,23.00,06/11/2017
Commercial,Customer Support Group,Building Repairs & Maintenance,60087238,OAKRAY LIMITED,20.00,06/11/2017
Commercial,Customer Support Group,Building Repairs & Maintenance,60087243,OAKRAY LIMITED,165.00,06/11/2017
Commercial,Customer Support Group,Building Repairs & Maintenance,60087256,OAKRAY LIMITED,21.00,03/11/2017
Commercial,Customer Support Group,Building Repairs & Maintenance,60087264,OAKRAY LIMITED,122.00,03/11/2017
Commercial,Customer Support Group,Building Repairs & Maintenance,60087269,OAKRAY LIMITED,61.00,03/11/2017
Commercial,Customer Support Group,Building Repairs & Maintenance,60087272,OAKRAY LIMITED,918.00,03/11/2017
Commercial,Customer Support Group,Building Repairs & Maintenance,60087274,OAKRAY LIMITED,108.00,03/11/2017
Commercial,Customer Support Group,Building Repairs & Maintenance,60087299,OAKRAY LIMITED,38.00,03/11/2017
Commercial,Customer Support Group,Building Repairs & Maintenance,60087315,OAKRAY LIMITED,108.00,03/11/2017
Commercial,Customer Support Group,Building Repairs & Maintenance,60087334,OAKRAY LIMITED,293.00,03/11/2017
Commercial,Customer Support Group,Building Repairs & Maintenance,60087337,OAKRAY LIMITED,176.00,03/11/2017
Commercial,Customer Support Group,Building Repairs & Maintenance,60087344,OAKRAY LIMITED,108.75,03/11/2017
Commercial,Customer Support Group,Building Repairs & Maintenance,60087353,OAKRAY LIMITED,20.00,03/11/2017
Commercial,Customer Support Group,Building Repairs & Maintenance,60087357,OAKRAY LIMITED,30.00,03/11/2017
Commercial,Customer Support Group,Building Repairs & Maintenance,60087360,OAKRAY LIMITED,20.00,03/11/2017
Commercial,Customer Support Group,Building Repairs & Maintenance,60087363,OAKRAY LIMITED,108.00,03/11/2017
Commercial,Customer Support Group,Building Repairs & Maintenance,60091525,OAKRAY LIMITED,135.00,29/11/2017
Commercial,Customer Support Group,Building Repairs & Maintenance,60091537,OAKRAY LIMITED,96.00,30/11/2017
Commercial,Customer Support Group,Building Repairs & Maintenance,60091544,OAKRAY LIMITED,128.00,29/11/2017
Commercial,Customer Support Group,Building Repairs & Maintenance,60091564,OAKRAY LIMITED,96.00,30/11/2017
Commercial,Customer Support Group,Building Repairs & Maintenance,60091583,OAKRAY LIMITED,80.00,30/11/2017
Commercial,Customer Support Group,Building Repairs & Maintenance,60090695,RGE SERVICES,3.50,01/11/2017
Commercial,Customer Support Group,Subscriptions,60092323,RICS,"1,020.00",24/11/2017
Commercial,Customer Support Group,Building Repairs & Maintenance,60085609,S W BRUCE & CO LTD,"1,500.75",28/11/2017
Commercial,Customer Support Group,Building Repairs & Maintenance,60089366,S W BRUCE & CO LTD,324.00,24/11/2017
Commercial,Customer Support Group,Building Repairs & Maintenance,60090612,S W BRUCE & CO LTD,57.00,24/11/2017
Commercial,Customer Support Group,Building Repairs & Maintenance,60090626,S W BRUCE & CO LTD,805.00,24/11/2017
Commercial,Customer Support Group,Building Repairs & Maintenance,60090636,S W BRUCE & CO LTD,143.00,24/11/2017
Commercial,Customer Support Group,Building Repairs & Maintenance,60090651,S W BRUCE & CO LTD,"2,212.80",24/11/2017
Commercial,Customer Support Group,Building Repairs & Maintenance,60090664,S W BRUCE & CO LTD,394.33,24/11/2017
Commercial,Customer Support Group,Building Repairs & Maintenance,60092437,S W BRUCE & CO LTD,"1,435.20",29/11/2017
Commercial,Customer Support Group,Building Repairs & Maintenance,60092342,THE BARNETGROUP LIMITED,"82,263.77",24/11/2017
Commercial,Customer Support Group,Gas,60091086,TOTAL GAS & POWER LTD,"1,016.18",07/11/2017
Commercial,Customer Support Group,Gas,60092313,TOTAL GAS & POWER LTD,"1,135.65",24/11/2017
Commercial,Customer Support Group,Ttl IT & Comms,60090877,VODAFONE LTD (BILLS ONLY),506.95,06/11/2017
Commercial,Customer Support Group,Miscellaneous Expenses,80013885,SCANCOIN LTD,255.04,22/11/2017
Commercial,Customer Support Group,Professional Services,60090483,ROSSENDALES (COLLECT) LTD,506.78,08/11/2017
Commercial,Customer Support Group,Professional Services,60090882,ROSSENDALES (COLLECT) LTD,577.06,24/11/2017
Commercial,Customer Support Group,Building Repairs & Maintenance,60033467,HERTEL (UK) LTD,40.83,07/11/2017
Commercial,Customer Support Group,Postage,60090500,ROYAL MAIL GROUP LIMITED,"(1,491.47)",08/11/2017
Commercial,Customer Support Group,Postage,60091600,ENVOPRINT,238.55,13/11/2017
Commercial,Customer Support Group,Postage,60091575,FALDER MATTHEWS LTD,590.00,20/11/2017
Commercial,Customer Support Group,Postage,60091608,FALDER MATTHEWS LTD,692.00,20/11/2017
Commercial,Customer Support Group,Postage,60091662,FALDER MATTHEWS LTD,490.00,15/11/2017
Commercial,Customer Support Group,Postage,60090628,FINANCIAL DATA MANAGEMENT LTD,422.00,01/11/2017
Commercial,Customer Support Group,Postage,60087131,GLS EDUCATIONAL SUPPLIES LTD,539.70,08/11/2017
Commercial,Customer Support Group,Postage,60087805,GLS EDUCATIONAL SUPPLIES LTD,467.74,08/11/2017
Commercial,Customer Support Group,Postage,60091407,WEMBLEY LAMINATIONS LTD:,124.20,15/11/2017
Commercial,Customer Support Group,Postage,60091416,WEMBLEY LAMINATIONS LTD:,251.40,13/11/2017
Commercial,Customer Support Group,Other Services,60091010,BLUE 9 SECURITY LIMITED,"22,773.84",09/11/2017
Commercial,Customer Support Group,Gas,60090432,CALOR GAS LIMITED,142.11,07/11/2017
Commercial,Customer Support Group,Cleaning and domestic material,60091395,HERTFORDSHIRE SUPPLIES   COUNTY CO,339.71,13/11/2017
Commercial,Customer Support Group,Gas,60090641,KENT COUNTY COUNCIL (KCS),314.76,09/11/2017
Commercial,Customer Support Group,Gas,60090659,KENT COUNTY COUNCIL (KCS),412.70,09/11/2017
Commercial,Customer Support Group,Rents,60092017,NETWORK RAIL ACCOUNTS RECEIVABLE,"20,375.00",20/11/2017
Commercial,Customer Support Group,Furniture-Purchase-Repair,60087257,SCREWFIX DIRECT LTD,116.25,09/11/2017
Commercial,Customer Support Group,CSG Services Contract Payment,60090744,CAPITA BUSINESS SERVICES LTD,"21,573.07",09/11/2017
Commercial,Customer Support Group,Building Repairs & Maintenance,60033548,HERTEL (UK) LTD,204.15,07/11/2017
Commercial,Customer Support Group,Building Repairs & Maintenance,60033636,HERTEL (UK) LTD,204.15,06/11/2017
Commercial,Customer Support Group,Building Repairs & Maintenance,60033680,HERTEL (UK) LTD,204.15,07/11/2017
Commercial,HB LAW,Legal Disbursements,60089997,LONDON BOROUGH OF HARROW,"115,080.09",13/11/2017
Commercial,HB LAW,Legal Disbursements,60090004,LONDON BOROUGH OF HARROW,"98,337.16",13/11/2017
Commercial,HB LAW,Legal Disbursements,60090051,LONDON BOROUGH OF HARROW,"195,325.00",13/11/2017
Commercial,HB LAW,Legal Disbursements,60090073,LONDON BOROUGH OF HARROW,"113,485.69",13/11/2017
Commercial,HB LAW,Legal Disbursements,60090103,LONDON BOROUGH OF HARROW,"133,270.90",13/11/2017
Commercial,Housing Needs Resources,Miscellaneous Expenses,60091463,THE BARNETGROUP LIMITED,"4,338.00",10/11/2017
Commercial,Housing Needs Resources,Miscellaneous Expenses,60091465,THE BARNETGROUP LIMITED,"12,711.00",10/11/2017
Commercial,Housing Needs Resources,Miscellaneous Expenses,60091473,THE BARNETGROUP LIMITED,"11,695.00",10/11/2017
Commercial,Housing Needs Resources,Private Contractors - Third Pa,60091503,THE BARNETGROUP LIMITED,"11,695.00",15/11/2017
Commercial,Housing Needs Resources,Other Services,60091938,THE BARNETGROUP LIMITED,"23,800.61",17/11/2017
Commercial,Housing Needs Resources,Other Services,60091941,THE BARNETGROUP LIMITED,"12,642.54",17/11/2017
Commercial,Housing Needs Resources,Private Contractors - Third Pa,60091968,THE BARNETGROUP LIMITED,"1,853,222.33",17/11/2017
Commercial,HRA,Consultants Fees,60086147,P P C R ASSOCIATES LTD,826.70,09/11/2017
Commercial,HRA,Consultants Fees,60086157,P P C R ASSOCIATES LTD,498.35,09/11/2017
Commercial,HRA,Consultants Fees,60086188,P P C R ASSOCIATES LTD,695.36,09/11/2017
Commercial,HRA,Consultants Fees,60092707,P P C R ASSOCIATES LTD,170.00,29/11/2017
Commercial,HRA,Consultants Fees,60089658,PRIORITY ESTATES PROJECT LTD,"1,955.80",08/11/2017
Commercial,HRA,Consultants Fees,60091895,PRIORITY ESTATES PROJECT LTD,"1,746.25",17/11/2017
Commercial,HRA,Consultants Fees,60091923,PRIORITY ESTATES PROJECT LTD,"2,654.30",28/11/2017
Commercial,HRA,Consultants Fees,60091412,THE BARNETGROUP LIMITED,785.97,13/11/2017
Commercial,HRA,Consultants Fees,60091421,THE BARNETGROUP LIMITED,669.53,13/11/2017
Commercial,HRA,Consultants Fees,60091439,THE BARNETGROUP LIMITED,756.86,13/11/2017
Commercial,HRA,Consultants Fees,60091508,THE BARNETGROUP LIMITED,698.64,13/11/2017
Commercial,HRA,Consultants Fees,60091509,THE BARNETGROUP LIMITED,"1,222.62",13/11/2017
Commercial,HRA,Other Services,60091413,THE BARNETGROUP LIMITED,"19,514.13",15/11/2017
Commercial,HRA,Other Services,60091438,THE BARNETGROUP LIMITED,"24,791.04",15/11/2017
Commercial,HRA,Other Services,60091455,THE BARNETGROUP LIMITED,"6,300.00",15/11/2017
Commercial,HRA,Other Services,60091482,THE BARNETGROUP LIMITED,"30,324.54",15/11/2017
Commercial,HRA,Other Services,60091513,THE BARNETGROUP LIMITED,"2,494.21",13/11/2017
Commercial,HRA,Other Services,60091593,THE BARNETGROUP LIMITED,"1,110.80",13/11/2017
Commercial,HRA,Other Services,60091653,THE BARNETGROUP LIMITED,"1,790.00",13/11/2017
Commercial,HRA,Consultants Fees,60089037,HOUSING FINANCE ASSOCIATES LTD,"2,400.00",01/11/2017
Commercial,HRA,Private Contractors - Third Pa,60091452,THE BARNETGROUP LIMITED,"17,154.28",10/11/2017
Commercial,HRA,Other Services,60091953,THE BARNETGROUP LIMITED,"2,048,526.26",17/11/2017
Commercial,HRA,Private Contractors - Third Pa,80013393,PUBLISH - REDACT NAME,"3,500.00",09/11/2017
Commercial,HRA,Private Contractors - Third Pa,80013619,PUBLISH - REDACT NAME,"3,500.00",09/11/2017
Commercial,HRA,Private Contractors - Third Pa,80013726,EVERATTS CLIE,"1,000.00",13/11/2017
Commercial,Parking & Infrastructure,Equipment and Materials Purcha,60091391,BARNET LOCK CENTRE LTD.,7.75,13/11/2017
Commercial,Parking & Infrastructure,Equipment and Materials Purcha,60091078,GLASDON UK LTD,428.28,28/11/2017
Commercial,Parking & Infrastructure,Equipment and Materials Purcha,60087979,GREENHAM TRADING LIMITED,639.40,29/11/2017
Commercial,Parking & Infrastructure,Equipment and Materials Purcha,60089123,GREENHAM TRADING LIMITED,339.00,02/11/2017
Commercial,Parking & Infrastructure,Equipment and Materials Purcha,60089808,GREENHAM TRADING LIMITED,65.00,09/11/2017
Commercial,Parking & Infrastructure,Equipment and Materials Purcha,60091125,GREENHAM TRADING LIMITED,"1,296.18",30/11/2017
Commercial,Parking & Infrastructure,Equipment and Materials Purcha,60089443,KB INDUSTRIES UK LTD,"1,488.00",07/11/2017
Commercial,Parking & Infrastructure,Equipment and Materials Purcha,60090810,KLOECKNER METALS UK,145.00,16/11/2017
Commercial,Parking & Infrastructure,Equipment and Materials Purcha,60091084,KLOECKNER METALS UK,292.00,23/11/2017
Commercial,Parking & Infrastructure,Equipment and Materials Purcha,60089481,LAFARGE TARMAC TRADING LIMITED,124.93,02/11/2017
Commercial,Parking & Infrastructure,Equipment and Materials Purcha,60089573,LAFARGE TARMAC TRADING LIMITED,107.36,07/11/2017
Commercial,Parking & Infrastructure,Equipment and Materials Purcha,60089974,LAFARGE TARMAC TRADING LIMITED,121.72,09/11/2017
Commercial,Parking & Infrastructure,Equipment and Materials Purcha,60090208,LAFARGE TARMAC TRADING LIMITED,121.02,15/11/2017
Commercial,Parking & Infrastructure,Equipment and Materials Purcha,60090268,LAFARGE TARMAC TRADING LIMITED,236.19,09/11/2017
Commercial,Parking & Infrastructure,Equipment and Materials Purcha,60090761,LAFARGE TARMAC TRADING LIMITED,96.62,23/11/2017
Commercial,Parking & Infrastructure,Equipment and Materials Purcha,60090872,LAFARGE TARMAC TRADING LIMITED,230.34,23/11/2017
Commercial,Parking & Infrastructure,Equipment and Materials Purcha,60090960,LAFARGE TARMAC TRADING LIMITED,247.90,23/11/2017
Commercial,Parking & Infrastructure,Equipment and Materials Purcha,60091020,LAFARGE TARMAC TRADING LIMITED,224.48,28/11/2017
Commercial,Parking & Infrastructure,Equipment and Materials Purcha,60091072,LAFARGE TARMAC TRADING LIMITED,96.62,30/11/2017
Commercial,Parking & Infrastructure,Equipment and Materials Purcha,60090533,RENNICK UK LTD,401.10,22/11/2017
Commercial,Parking & Infrastructure,Equipment and Materials Purcha,60090690,RENNICK UK LTD,802.20,23/11/2017
Commercial,Parking & Infrastructure,Equipment and Materials Purcha,60091383,WM SMITH & SONS LIMITED,119.20,09/11/2017
Commercial,Parking & Infrastructure,Equipment and Materials Purcha,60089525,METDESK LTD,"5,014.40",08/11/2017
Commercial,Parking & Infrastructure,Equipment and Materials Purcha,60092378,KLOECKNER METALS UK,74.00,24/11/2017
Commercial,Parking & Infrastructure,Equipment and Materials Purcha,60091112,TOUCAN TOOL CO.LTD,23.42,13/11/2017
Commercial,Parking & Infrastructure,Fees and Charges,60090357,REDCORN LTD,"1,005.00",15/11/2017
Commercial,Parking & Infrastructure,Miscellaneous Expenses,60091952,LEWISHAM COUNCIL,"15,443.74",17/11/2017
Commercial,Parking & Infrastructure,Other Services,60089127,LONDON COUNCILS,"40,184.00",02/11/2017
Commercial,Parking & Infrastructure,Other Services,60091305,LONDON COUNCILS,"40,144.32",30/11/2017
Commercial,Parking & Infrastructure,Professional Services,60091674,NSL LTD,"61,222.17",13/11/2017
Commercial,Parking & Infrastructure,Other Services,60091888,NSL LTD,"3,119.70",24/11/2017
Commercial,Parking & Infrastructure,Software Licences & Support,60091891,NSL LTD,"36,003.43",24/11/2017
Commercial,Parking & Infrastructure,Software Licences & Support,60091907,NSL LTD,"8,160.33",24/11/2017
Commercial,Parking & Infrastructure,Professional Services,60091912,NSL LTD,"947,457.48",24/11/2017
Commercial,Parking & Infrastructure,Miscellaneous Expenses,60085874,OPENVIEW SECURITY SOLUTIONS LTD,"17,550.18",10/11/2017
Commercial,Parking & Infrastructure,Miscellaneous Expenses,60090267,OPENVIEW SECURITY SOLUTIONS LTD,"39,795.29",21/11/2017
Commercial,Parking & Infrastructure,Miscellaneous Expenses,60090364,OPENVIEW SECURITY SOLUTIONS LTD,"1,400.00",16/11/2017
Commercial,Parking & Infrastructure,Miscellaneous Expenses,60091884,OPENVIEW SECURITY SOLUTIONS LTD,"28,391.35",23/11/2017
Commercial,Parking & Infrastructure,Other Services,60090479,PARKEON LIMITED,"2,391.68",22/11/2017
Commercial,Parking & Infrastructure,Other Services,60090511,PARKEON LIMITED,810.00,22/11/2017
Commercial,Parking & Infrastructure,Other Services,10013907,BARNET LIGHTING SERVICES LTD,"(12,682.00)",09/11/2017
Commercial,Parking & Infrastructure,Other Services,60090356,BARNET LIGHTING SERVICES LTD,"449,426.59",09/11/2017
Commercial,Parking & Infrastructure,Other Services,60092361,BARNET LIGHTING SERVICES LTD,"530,410.31",27/11/2017
Commercial,Public Health,Other Transfer Payments to Soc,60089858,CENTRAL LONDONCOMMUNITY HEALTHCARE,"356,000.00",10/11/2017
Commercial,Public Health,Professional Services,60089914,CENTRAL LONDONCOMMUNITY HEALTHCARE,"85,834.00",02/11/2017
Commercial,Public Health,Professional Services,60089844,CENTRAL LONDONCOMMUNITY HEALTHCARE,"9,583.00",02/11/2017
Commercial,Public Health,Other Transfer Payments to Soc,60089957,CENTRAL LONDONCOMMUNITY HEALTHCARE,"29,167.00",02/11/2017
Commercial,Public Health,Professional Services,60089917,CENTRAL LONDONCOMMUNITY HEALTHCARE,"4,917.00",02/11/2017
Commercial,Regional Enterprise,Legal and Court Fees,80014043,SCOTT COHEN SOLICITORS,"5,795.00",29/11/2017
Commercial,Regional Enterprise,Other Services,60092282,CONWAY AECOM LTD,"21,165.24",23/11/2017
Commercial,Regional Enterprise,Other Services,60087085,AFFINITY WATER LIMITED,73.55,09/11/2017
Commercial,Regional Enterprise,Other Services,60090762,AFFINITY WATER LIMITED,46.85,02/11/2017
Commercial,Regional Enterprise,Other Services,60090802,AFFINITY WATER LIMITED,22.07,02/11/2017
Commercial,Regional Enterprise,Other Services,60091179,CASTLE WATER LTD,128.75,17/11/2017
Commercial,Regional Enterprise,Other Services,60091190,CASTLE WATER LTD,137.58,17/11/2017
Commercial,Regional Enterprise,Other Services,60091220,CASTLE WATER LTD,43.63,17/11/2017
Commercial,Regional Enterprise,Other Services,60091230,CASTLE WATER LTD,58.46,17/11/2017
Commercial,Regional Enterprise,Other Services,60091170,KENT COUNTY COUNCIL (KCS),41.16,13/11/2017
Commercial,Regional Enterprise,Other Services,60091210,KENT COUNTY COUNCIL (KCS),52.74,13/11/2017
Commercial,Regional Enterprise,Other Services,60091217,KENT COUNTY COUNCIL (KCS),25.46,13/11/2017
Commercial,Regional Enterprise,Other Services,60091253,KENT COUNTY COUNCIL (KCS),32.58,13/11/2017
Commercial,Regional Enterprise,Other Services,60090847,CONWAY AECOM LTD,81.90,23/11/2017
Commercial,Regional Enterprise,Other Services,60090923,CONWAY AECOM LTD,86.49,23/11/2017
Commercial,Regional Enterprise,Advertising,60085901,TMP (UK) LTD,422.00,09/11/2017
Commercial,Regional Enterprise,Advertising,60086296,TMP (UK) LTD,342.00,09/11/2017
Commercial,Regional Enterprise,Advertising,60089673,TMP (UK) LTD,342.00,22/11/2017
Commercial,Regional Enterprise,Advertising,60090139,TMP (UK) LTD,170.00,23/11/2017
Commercial,Regional Enterprise,Advertising,60090701,TMP (UK) LTD,969.20,30/11/2017
Commercial,Regional Enterprise,Advertising,60090725,TMP (UK) LTD,90.00,23/11/2017
Commercial,Regional Enterprise,Advertising,60091162,TMP (UK) LTD,233.00,22/11/2017
Commercial,Regional Enterprise,Advertising,60092090,TMP (UK) LTD,179.00,22/11/2017
Commercial,Regional Enterprise,Advertising,60092123,TMP (UK) LTD,90.00,22/11/2017
Commercial,Regional Enterprise,Advertising,60092140,TMP (UK) LTD,170.00,22/11/2017
Commercial,Regional Enterprise,Advertising,60092173,TMP (UK) LTD,170.00,22/11/2017
Commercial,Regional Enterprise,Advertising,60092179,TMP (UK) LTD,90.00,22/11/2017
Commercial,Regional Enterprise,Advertising,60092189,TMP (UK) LTD,179.00,22/11/2017
Commercial,Regional Enterprise,Advertising,60092531,TMP (UK) LTD,714.00,28/11/2017
Commercial,Regional Enterprise,Advertising,60092566,TMP (UK) LTD,287.00,30/11/2017
Commercial,Regional Enterprise,Advertising,60092659,TMP (UK) LTD,287.00,30/11/2017
Commercial,Regional Enterprise,Other Services,60092224,CONWAY AECOM LTD,"3,304.09",23/11/2017
Commercial,Regional Enterprise,Professional Services,60088434,WATES LIVING SPACE,706.84,02/11/2017
Commercial,Regional Enterprise,Professional Services,60090996,WATES LIVING SPACE,"1,455.28",28/11/2017
Commercial,Regional Enterprise,Other Services,60090838,CONWAY AECOM LTD,15.36,23/11/2017
Commercial,Regional Enterprise,Other Services,60090844,CONWAY AECOM LTD,58.23,21/11/2017
Commercial,Regional Enterprise,Other Services,60090852,CONWAY AECOM LTD,16.38,21/11/2017
Commercial,Regional Enterprise,Other Services,60090934,CONWAY AECOM LTD,21.88,21/11/2017
Commercial,Regional Enterprise,Other Services,60092229,CONWAY AECOM LTD,15.87,23/11/2017
Commercial,Regional Enterprise,Other Services,60092305,CONWAY AECOM LTD,22.19,23/11/2017
Commercial,Regional Enterprise,Advertising,60091012,TMP (UK) LTD,368.00,22/11/2017
Commercial,Regional Enterprise,Other Services,60089403,CONWAY AECOM LTD,91.39,17/11/2017
Commercial,Regional Enterprise,Other Services,60089919,CONWAY AECOM LTD,332.43,01/11/2017
Commercial,Regional Enterprise,Other Services,60089921,CONWAY AECOM LTD,294.25,01/11/2017
Commercial,Regional Enterprise,Other Services,60089937,CONWAY AECOM LTD,173.02,01/11/2017
Commercial,Regional Enterprise,Other Services,60092615,CONWAY AECOM LTD,34.92,28/11/2017
Commercial,Regional Enterprise,Other Services,60074693,CONWAY AECOM LTD,322.83,10/11/2017
Commercial,Regional Enterprise,Other Services,60079264,CONWAY AECOM LTD,759.60,17/11/2017
Commercial,Regional Enterprise,Other Services,60079293,CONWAY AECOM LTD,886.20,17/11/2017
Commercial,Regional Enterprise,Other Services,60082179,CONWAY AECOM LTD,949.50,17/11/2017
Commercial,Regional Enterprise,Other Services,60083029,CONWAY AECOM LTD,493.74,17/11/2017
Commercial,Regional Enterprise,Other Services,60083241,CONWAY AECOM LTD,"1,164.72",17/11/2017
Commercial,Regional Enterprise,Other Services,60083710,CONWAY AECOM LTD,582.36,17/11/2017
Commercial,Regional Enterprise,Other Services,60084008,CONWAY AECOM LTD,"1,164.72",17/11/2017
Commercial,Regional Enterprise,Other Services,60085222,CONWAY AECOM LTD,"1,025.46",20/11/2017
Commercial,Regional Enterprise,Other Services,60085232,CONWAY AECOM LTD,607.68,20/11/2017
Commercial,Regional Enterprise,Other Services,60085233,CONWAY AECOM LTD,"1,019.13",20/11/2017
Commercial,Regional Enterprise,Other Services,60085262,CONWAY AECOM LTD,911.52,20/11/2017
Commercial,Regional Enterprise,Other Services,60085272,CONWAY AECOM LTD,487.41,20/11/2017
Commercial,Regional Enterprise,Other Services,60085274,CONWAY AECOM LTD,949.50,20/11/2017
Commercial,Regional Enterprise,Other Services,60085299,CONWAY AECOM LTD,303.84,20/11/2017
Commercial,Regional Enterprise,Other Services,60085306,CONWAY AECOM LTD,455.76,20/11/2017
Commercial,Regional Enterprise,Other Services,60085331,CONWAY AECOM LTD,"1,063.44",20/11/2017
Commercial,Regional Enterprise,Other Services,60088040,CONWAY AECOM LTD,"2,228.16",20/11/2017
Commercial,Regional Enterprise,Other Services,60088041,CONWAY AECOM LTD,860.88,17/11/2017
Commercial,Regional Enterprise,Other Services,60088044,CONWAY AECOM LTD,"1,417.92",20/11/2017
Commercial,Regional Enterprise,Other Services,60088046,CONWAY AECOM LTD,"1,740.75",20/11/2017
Commercial,Regional Enterprise,Other Services,60088051,CONWAY AECOM LTD,"2,025.60",20/11/2017
Commercial,Regional Enterprise,Other Services,60088068,CONWAY AECOM LTD,696.30,20/11/2017
Commercial,Regional Enterprise,Other Services,60088069,CONWAY AECOM LTD,886.20,20/11/2017
Commercial,Regional Enterprise,Other Services,60088070,CONWAY AECOM LTD,"1,329.30",20/11/2017
Commercial,Regional Enterprise,Other Services,60088077,CONWAY AECOM LTD,"1,316.64",20/11/2017
Commercial,Regional Enterprise,Other Services,60088084,CONWAY AECOM LTD,"1,139.40",20/11/2017
Commercial,Regional Enterprise,Other Services,60088087,CONWAY AECOM LTD,455.76,20/11/2017
Commercial,Regional Enterprise,Other Services,60088102,CONWAY AECOM LTD,911.52,20/11/2017
Commercial,Regional Enterprise,Other Services,60088107,CONWAY AECOM LTD,"1,139.40",20/11/2017
Commercial,Regional Enterprise,Other Services,60088109,CONWAY AECOM LTD,683.64,20/11/2017
Commercial,Regional Enterprise,Other Services,60089824,CONWAY AECOM LTD,759.60,01/11/2017
Commercial,Regional Enterprise,Other Services,60089849,CONWAY AECOM LTD,854.55,01/11/2017
Commercial,Regional Enterprise,Other Services,60089870,CONWAY AECOM LTD,341.82,01/11/2017
Commercial,Regional Enterprise,Other Services,60089882,CONWAY AECOM LTD,797.58,01/11/2017
Commercial,Regional Enterprise,Other Services,60089904,CONWAY AECOM LTD,"1,329.30",01/11/2017
Commercial,Regional Enterprise,Other Services,60089907,CONWAY AECOM LTD,"1,164.72",01/11/2017
Commercial,Regional Enterprise,Other Services,60089912,CONWAY AECOM LTD,360.81,01/11/2017
Commercial,Regional Enterprise,Other Services,60089916,CONWAY AECOM LTD,211.00,01/11/2017
Commercial,Regional Enterprise,Other Services,60089944,CONWAY AECOM LTD,683.64,01/11/2017
Commercial,Regional Enterprise,Other Services,60089951,CONWAY AECOM LTD,183.57,01/11/2017
Commercial,Regional Enterprise,Other Services,60089952,CONWAY AECOM LTD,"1,234.35",01/11/2017
Commercial,Regional Enterprise,Other Services,60089960,CONWAY AECOM LTD,316.50,01/11/2017
Commercial,Regional Enterprise,Other Services,60089966,CONWAY AECOM LTD,911.52,01/11/2017
Commercial,Regional Enterprise,Other Services,60089975,CONWAY AECOM LTD,780.70,10/11/2017
Commercial,Regional Enterprise,Other Services,60089981,CONWAY AECOM LTD,"1,417.92",01/11/2017
Commercial,Regional Enterprise,Other Services,60090263,CONWAY AECOM LTD,278.52,17/11/2017
Commercial,Regional Enterprise,Other Services,60091436,CONWAY AECOM LTD,436.77,17/11/2017
Commercial,Regional Enterprise,Other Services,60091498,CONWAY AECOM LTD,"1,367.28",17/11/2017
Commercial,Regional Enterprise,Other Services,60092037,CONWAY AECOM LTD,397.50,30/11/2017
Commercial,Regional Enterprise,Other Services,60092075,CONWAY AECOM LTD,807.04,30/11/2017
Commercial,Regional Enterprise,Grant Payments,80013884,DP BUILDERS DISABLED ADAPTATIONS,"1,548.00",23/11/2017
Commercial,Regional Enterprise,Grant Payments,80013986,DP BUILDERS DISABLED ADAPTATIONS,126.00,30/11/2017
Commercial,Regional Enterprise,Grant Payments,80013712,MCP PROPERTY SERVICES LTD,"2,598.75",16/11/2017
Commercial,Regional Enterprise,Grant Payments,80013535,PUBLISH - REDACT NAME,"2,414.00",03/11/2017
Commercial,Regional Enterprise,Grant Payments,80013857,PUBLISH - REDACT NAME,463.31,20/11/2017
Commercial,Regional Enterprise,Grant Payments,80013993,BRITISH GAS SE,630.00,24/11/2017
Commercial,Regional Enterprise,Other Establishments - Third P,80013536,TFL,"80,806.29",03/11/2017
Commercial,Regional Enterprise,Consultants Fees,60092191,GOWLING WLG,678.96,28/11/2017
Commercial,Regional Enterprise,Consultants Fees,60092194,GOWLING WLG,"10,404.00",29/11/2017
Commercial,Regional Enterprise,Consultants Fees,60092213,GOWLING WLG,"3,614.40",23/11/2017
Commercial,Regional Enterprise,Advertising,60092275,TMP (UK) LTD,130.00,24/11/2017
Commercial,Regional Enterprise,Consultants Fees,60090570,URBAN MICROCLIMATE LTD,400.00,23/11/2017
Commercial,Regional Enterprise,Consultants Fees,60092219,GOWLING WLG,"1,728.86",28/11/2017
Commercial,Regional Enterprise,Consultants Fees,60092236,GOWLING WLG,"3,100.03",28/11/2017
Commercial,Regional Enterprise,Consultants Fees,60092239,GOWLING WLG,178.85,28/11/2017
Commercial,Regional Enterprise,Consultants Fees,60092255,GOWLING WLG,278.21,28/11/2017
Commercial,Regional Enterprise,Consultants Fees,60092263,GOWLING WLG,972.00,24/11/2017
Commercial,Regional Enterprise,Consultants Fees,60092278,GOWLING WLG,"1,994.94",28/11/2017
Commercial,Regional Enterprise,Consultants Fees,60092280,GOWLING WLG,231.84,28/11/2017
Commercial,Regional Enterprise,Consultants Fees,60090826,OPEN CITY ARCHITECTURE,"1,625.00",28/11/2017
Commercial,Regional Enterprise,Ttl IT & Comms,60091443,THE BARNETGROUP LIMITED,231.53,10/11/2017
Commercial,Regional Enterprise,Professional Services,60090620,RE (REGIONAL ENTERPRISE) LIMITED,"123,313.00",01/11/2017
Commercial,Regional Enterprise,Professional Services,60090657,RE (REGIONAL ENTERPRISE) LIMITED,"334,852.00",01/11/2017
Commercial,Regional Enterprise,Cleaning and domestic material,60090947,CHURCHILL CONTRACT SERVICES,488.56,30/11/2017
Commercial,Regional Enterprise,Grant Payments,80013509,DOMESTIC LIFT,"6,120.00",03/11/2017
Commercial,Regional Enterprise,Grant Payments,80013596,BG BUILDING SO,"18,823.80",07/11/2017
Commercial,Regional Enterprise,Grant Payments,80013602,PUBLISH - REDACT NAME,"5,123.47",08/11/2017
Commercial,Regional Enterprise,Grant Payments,80013867,PUBLISH - REDACT NAME,"10,216.60",20/11/2017
Commercial,Regional Enterprise,Grant Payments,80013984,PUBLISH - REDACT NAME,"3,075.00",27/11/2017
Commercial,Regional Enterprise,Grant Payments,80013613,ACCESS & AUTOMATION LTD,"6,140.00",08/11/2017
Commercial,Regional Enterprise,Grant Payments,80013511,AMWELL CONSTRUCTION LTD,614.00,03/11/2017
Commercial,Regional Enterprise,Grant Payments,80013541,AMWELL CONSTRUCTION LTD,"3,910.00",03/11/2017
Commercial,Regional Enterprise,Grant Payments,80013603,AMWELL CONSTRUCTION LTD,"4,550.00",07/11/2017
Commercial,Regional Enterprise,Grant Payments,80013606,AMWELL CONSTRUCTION LTD,"10,539.00",08/11/2017
Commercial,Regional Enterprise,Grant Payments,80013732,AMWELL CONSTRUCTION LTD,"4,140.90",15/11/2017
Commercial,Regional Enterprise,Grant Payments,80013734,AMWELL CONSTRUCTION LTD,511.00,15/11/2017
Commercial,Regional Enterprise,Grant Payments,80013769,AMWELL CONSTRUCTION LTD,"5,681.00",15/11/2017
Commercial,Regional Enterprise,Grant Payments,80013778,AMWELL CONSTRUCTION LTD,"6,189.00",15/11/2017
Commercial,Regional Enterprise,Grant Payments,80013735,ARTHUR J. FERRYMAN ASSOCIATES,"5,309.62",15/11/2017
Commercial,Regional Enterprise,Grant Payments,80013989,ARTHUR J. FERRYMAN ASSOCIATES,"1,322.52",27/11/2017
Commercial,Regional Enterprise,Grant Payments,80013570,DOLPHIN MOBILITY LTD.,"2,750.00",07/11/2017
Commercial,Regional Enterprise,Grant Payments,80013548,DP BUILDERS DISABLED ADAPTATIONS,"4,910.00",09/11/2017
Commercial,Regional Enterprise,Grant Payments,80013590,DP BUILDERS DISABLED ADAPTATIONS,"7,755.00",15/11/2017
Commercial,Regional Enterprise,Grant Payments,80013863,DP BUILDERS DISABLED ADAPTATIONS,"4,417.00",23/11/2017
Commercial,Regional Enterprise,Grant Payments,80013886,DP BUILDERS DISABLED ADAPTATIONS,"16,019.00",23/11/2017
Commercial,Regional Enterprise,Grant Payments,80013951,DP BUILDERS DISABLED ADAPTATIONS,"5,998.00",30/11/2017
Commercial,Regional Enterprise,Grant Payments,80013974,DP BUILDERS DISABLED ADAPTATIONS,"6,975.00",30/11/2017
Commercial,Regional Enterprise,Grant Payments,80013523,H D PROPERTY SERVICES LTD,"5,038.00",03/11/2017
Commercial,Regional Enterprise,Grant Payments,80013543,H D PROPERTY SERVICES LTD,"2,596.00",06/11/2017
Commercial,Regional Enterprise,Grant Payments,80013646,H D PROPERTY SERVICES LTD,"5,122.00",08/11/2017
Commercial,Regional Enterprise,Grant Payments,80013675,H D PROPERTY SERVICES LTD,"5,049.00",09/11/2017
Commercial,Regional Enterprise,Grant Payments,80013780,H D PROPERTY SERVICES LTD,"5,561.00",21/11/2017
Commercial,Regional Enterprise,Grant Payments,80013702,SOUTH HERTFORDSHIRE,"11,949.00",10/11/2017
Commercial,Regional Enterprise,Grant Payments,80013724,SOUTH HERTFORDSHIRE,"4,450.95",15/11/2017
Commercial,Regional Enterprise,Grant Payments,80013782,SOUTH HERTFORDSHIRE,"3,958.00",17/11/2017
Commercial,Regional Enterprise,Grant Payments,80013988,SOUTH HERTFORDSHIRE,"11,416.00",27/11/2017
Commercial,Regional Enterprise,Grant Payments,80013733,STANNAH STAIRLIFTS LTD,"5,523.00",15/11/2017
Commercial,Regional Enterprise,Grant Payments,80013785,STANNAH STAIRLIFTS LTD,"5,557.00",17/11/2017
Commercial,Regional Enterprise,Grant Payments,80013998,STANNAH STAIRLIFTS LTD,"4,606.00",27/11/2017
Commercial,Regional Enterprise,Grant Payments,80013322,TOTAL HYGIENE LIMITED,255.00,21/11/2017
Commercial,Regional Enterprise,Grant Payments,80013530,TOTAL HYGIENE LIMITED,"4,185.00",30/11/2017
Commercial,Regional Enterprise,Grant Payments,80013563,PUBLISH - REDACT NAME,"2,000.00",07/11/2017
Commercial,Regional Enterprise,Grant Payments,80013656,PUBLISH - REDACT NAME,"5,586.00",08/11/2017
Commercial,Regional Enterprise,Grant Payments,80013773,PUBLISH - REDACT NAME,"5,502.00",15/11/2017
Commercial,Regional Enterprise,Other Services,60091856,BARNET LIGHTING SERVICES LTD,"1,022.97",16/11/2017
Commercial,Regional Enterprise,Other Services,60091453,CONWAY AECOM LTD,588.27,21/11/2017
Commercial,Regional Enterprise,Other Services,60091799,BARNET LIGHTING SERVICES LTD,500.00,16/11/2017
Commercial,Regional Enterprise,Other Services,60082370,GRISTWOOD & TOM LTD,"54,055.85",22/11/2017
Commercial,Regional Enterprise,Other Services,60084940,GRISTWOOD & TOM LTD,"25,944.15",22/11/2017
Commercial,Regional Enterprise,Other Services,60091097,CONWAY AECOM LTD,"11,442.06",07/11/2017
Commercial,Regional Enterprise,Other Services,60092554,CONWAY AECOM LTD,792.95,30/11/2017
Commercial,Regional Enterprise,Other Services,60092581,CONWAY AECOM LTD,689.38,28/11/2017
Commercial,Regional Enterprise,Other Services,60092664,CONWAY AECOM LTD,954.11,28/11/2017
Commercial,Regional Enterprise,Other Services,60092573,CONWAY AECOM LTD,"14,733.47",28/11/2017
Commercial,Regional Enterprise,Other Services,60092666,CONWAY AECOM LTD,"3,971.53",28/11/2017
Commercial,Regional Enterprise,Other Services,60091726,CYCLE CONFIDENT LTD,"17,914.92",30/11/2017
Commercial,Regional Enterprise,Other Services,60089802,SELECTAMARK SECURITY SYSTEMS PLC,"1,899.00",09/11/2017
Commercial,Regional Enterprise,Other Services,60091427,KELTIC CLOTHING,24.90,30/11/2017
Commercial,Regional Enterprise,Other Services,60092348,THE RIOT ACT LIMITED,"4,760.00",24/11/2017
Commercial,Regional Enterprise,Other Services,60091966,BARNET LIGHTING SERVICES LTD,500.00,21/11/2017
Commercial,Regional Enterprise,Equipment and Materials Purcha,60090814,CONWAY AECOM LTD,"23,862.47",21/11/2017
Commercial,Regional Enterprise,Other Services,60087071,TRAFFIC SURVEY PARTNERS (TSP) LTD,"3,310.00",09/11/2017
Commercial,Regional Enterprise,Other Services,60090408,TRAFFIC SURVEY PARTNERS (TSP) LTD,"1,400.00",09/11/2017
Commercial,Regional Enterprise,Other Services,60090768,CONWAY AECOM LTD,20.17,21/11/2017
Commercial,Regional Enterprise,Other Services,60091049,CONWAY AECOM LTD,"13,097.43",28/11/2017
Commercial,Regional Enterprise,Other Services,60092262,CONWAY AECOM LTD,"20,000.00",23/11/2017
Commercial,Regional Enterprise,Other Services,60092241,CONWAY AECOM LTD,"14,995.90",28/11/2017
Commercial,Regional Enterprise,Advertising,60089693,TMP (UK) LTD,"1,582.50",24/11/2017
Commercial,Regional Enterprise,Other Services,60091808,BARNET LIGHTING SERVICES LTD,59.23,16/11/2017
Commercial,Regional Enterprise,Other Services,60091816,BARNET LIGHTING SERVICES LTD,785.47,16/11/2017
Commercial,Regional Enterprise,Other Services,60090925,CONWAY AECOM LTD,39.10,21/11/2017
Commercial,Regional Enterprise,Other Services,60092296,CONWAY AECOM LTD,39.10,23/11/2017
Commercial,Regional Enterprise,Other Services,60086535,CONWAY AECOM LTD,"9,207.56",09/11/2017
Commercial,Regional Enterprise,Other Services,60086618,CONWAY AECOM LTD,"7,403.22",09/11/2017
Commercial,Regional Enterprise,Other Services,60086652,CONWAY AECOM LTD,"30,926.46",09/11/2017
Commercial,Regional Enterprise,Other Services,60087070,CONWAY AECOM LTD,994.14,09/11/2017
Commercial,Regional Enterprise,Other Services,60087111,CONWAY AECOM LTD,"2,438.68",09/11/2017
Commercial,Regional Enterprise,Other Services,60088989,CONWAY AECOM LTD,147.24,09/11/2017
Commercial,Regional Enterprise,Other Services,60089041,CONWAY AECOM LTD,253.56,10/11/2017
Commercial,Regional Enterprise,Other Services,60089079,CONWAY AECOM LTD,147.96,09/11/2017
Commercial,Regional Enterprise,Other Services,60092516,CONWAY AECOM LTD,"1,080.49",28/11/2017
Commercial,Regional Enterprise,Other Services,60092519,CONWAY AECOM LTD,"1,080.49",28/11/2017
Commercial,Regional Enterprise,Other Services,60092523,CONWAY AECOM LTD,"14,254.88",28/11/2017
Commercial,Regional Enterprise,Other Services,60092524,CONWAY AECOM LTD,136.25,28/11/2017
Commercial,Regional Enterprise,Other Services,60092544,CONWAY AECOM LTD,137.53,28/11/2017
Commercial,Regional Enterprise,Other Services,60092547,CONWAY AECOM LTD,135.29,28/11/2017
Commercial,Regional Enterprise,Other Services,60092556,CONWAY AECOM LTD,"1,080.49",28/11/2017
Commercial,Regional Enterprise,Other Services,60092562,CONWAY AECOM LTD,135.29,28/11/2017
Commercial,Regional Enterprise,Other Services,60092564,CONWAY AECOM LTD,"21,951.75",28/11/2017
Commercial,Regional Enterprise,Other Services,60092565,CONWAY AECOM LTD,140.63,28/11/2017
Commercial,Regional Enterprise,Other Services,60092571,CONWAY AECOM LTD,"1,080.49",28/11/2017
Commercial,Regional Enterprise,Other Services,60092577,CONWAY AECOM LTD,"52,297.61",28/11/2017
Commercial,Regional Enterprise,Other Services,60092578,CONWAY AECOM LTD,162.61,28/11/2017
Commercial,Regional Enterprise,Other Services,60092588,CONWAY AECOM LTD,138.08,28/11/2017
Commercial,Regional Enterprise,Other Services,60092594,CONWAY AECOM LTD,"19,992.03",28/11/2017
Commercial,Regional Enterprise,Other Services,60092596,CONWAY AECOM LTD,"19,442.59",28/11/2017
Commercial,Regional Enterprise,Other Services,60092597,CONWAY AECOM LTD,"2,005.85",28/11/2017
Commercial,Regional Enterprise,Other Services,60092606,CONWAY AECOM LTD,377.00,28/11/2017
Commercial,Regional Enterprise,Other Services,60092607,CONWAY AECOM LTD,"19,875.25",28/11/2017
Commercial,Regional Enterprise,Other Services,60092610,CONWAY AECOM LTD,"10,756.82",28/11/2017
Commercial,Regional Enterprise,Other Services,60092629,CONWAY AECOM LTD,"15,532.42",28/11/2017
Commercial,Regional Enterprise,Other Services,60092630,CONWAY AECOM LTD,"3,574.59",28/11/2017
Commercial,Regional Enterprise,Other Services,60092633,CONWAY AECOM LTD,135.28,28/11/2017
Commercial,Regional Enterprise,Other Services,60092634,CONWAY AECOM LTD,135.29,28/11/2017
Commercial,Regional Enterprise,Other Services,60092636,CONWAY AECOM LTD,135.29,28/11/2017
Commercial,Regional Enterprise,Other Services,60092649,CONWAY AECOM LTD,"2,005.85",28/11/2017
Commercial,Regional Enterprise,Other Services,60092655,CONWAY AECOM LTD,135.29,28/11/2017
Commercial,Regional Enterprise,Other Services,60092658,CONWAY AECOM LTD,171.93,28/11/2017
Commercial,Regional Enterprise,Other Services,60092661,CONWAY AECOM LTD,"1,080.49",28/11/2017
Commercial,Regional Enterprise,Other Services,60092260,CONWAY AECOM LTD,"10,276.16",23/11/2017
Commercial,Regional Enterprise,Other Services,60092217,CONWAY AECOM LTD,"13,817.15",23/11/2017
Commercial,Regional Enterprise,Other Services,60092218,CONWAY AECOM LTD,"3,824.41",23/11/2017
Commercial,Regional Enterprise,Other Services,60092233,CONWAY AECOM LTD,"1,776.57",29/11/2017
Commercial,Regional Enterprise,Other Services,60092259,CONWAY AECOM LTD,"2,408.93",29/11/2017
Commercial,Regional Enterprise,Other Services,60090994,CONWAY AECOM LTD,"925,000.00",06/11/2017
Commercial,Regional Enterprise,Consultants Fees,60092509,BOLT & HEEKS LTD,"21,501.29",30/11/2017
Commercial,Regional Enterprise,Capital Construction and Works,60091500,CONWAY AECOM LTD,"36,269.20",23/11/2017
Commercial,Regional Enterprise,Other Services,60092641,CONWAY AECOM LTD,"16,014.84",28/11/2017
Commercial,Regional Enterprise,Consultants Fees,60089956,CROWN MORAN HOTEL,"7,210.00",08/11/2017
Commercial,Regional Enterprise,Consultants Fees,60090604,EVERSHEDS LLP,"56,918.47",07/11/2017
Commercial,Regional Enterprise,Consultants Fees,60092154,GOWLING WLG,"5,000.00",28/11/2017
Commercial,Regional Enterprise,Consultants Fees,60092170,GOWLING WLG,950.54,28/11/2017
Commercial,Regional Enterprise,Consultants Fees,60092172,GOWLING WLG,"15,473.00",23/11/2017
Commercial,Regional Enterprise,Consultants Fees,60092176,GOWLING WLG,"3,988.02",28/11/2017
Commercial,Regional Enterprise,Consultants Fees,60092195,GOWLING WLG,457.06,28/11/2017
Commercial,Regional Enterprise,Consultants Fees,60092211,GOWLING WLG,"1,371.17",28/11/2017
Commercial,Regional Enterprise,Consultants Fees,60089845,NETWORK RAIL ACCOUNTS RECEIVABLE,"147,884.13",17/11/2017
Commercial,Regional Enterprise,Consultants Fees,60082749,THE PALM HOTEL LTD,416.67,06/11/2017
Commissioning,Commissioning,Professional Services,10013902,GENERAL DYNAMICS INFORMATION TECHNOLOGY,"5,385.72",08/11/2017
Commissioning,Commissioning,Cleaning and domestic material,60091045,CHURCHILL CONTRACT SERVICES,664.48,30/11/2017
Commissioning,Commissioning,Capital Construction and Works,60092706,MOBILISE PUBLIC LTD,"3,467.50",30/11/2017
Commissioning,Commissioning,Building Repairs & Maintenance,60090396,HARROW GREEN LTD,"1,158.80",24/11/2017
Commissioning,Commissioning,Equipment and Materials Purcha,60089115,LANTERN RECOVERY SPECIALISTS PLC,850.00,24/11/2017
Commissioning,Commissioning,Building Repairs & Maintenance,60088585,S W BRUCE & CO LTD,"1,188.41",27/11/2017
Commissioning,Commissioning,Building Repairs & Maintenance,60089286,S W BRUCE & CO LTD,"1,258.76",24/11/2017
Commissioning,Commissioning,Building Repairs & Maintenance,60089295,S W BRUCE & CO LTD,"2,305.65",03/11/2017
Commissioning,Commissioning,Building Repairs & Maintenance,60089365,S W BRUCE & CO LTD,247.16,24/11/2017
Commissioning,Commissioning,Building Repairs & Maintenance,60089371,S W BRUCE & CO LTD,600.00,24/11/2017
Commissioning,Commissioning,Building Repairs & Maintenance,60089396,S W BRUCE & CO LTD,156.00,02/11/2017
Commissioning,Commissioning,Building Repairs & Maintenance,60092484,S W BRUCE & CO LTD,"1,800.00",30/11/2017
Commissioning,Commissioning,Building Repairs & Maintenance,60092492,S W BRUCE & CO LTD,456.00,27/11/2017
Commissioning,Commissioning,Consultants Fees,60090163,WILLMOTT DIXON CONSTRUCTION LTD,"17,328.00",01/11/2017
Commissioning,Commissioning,Building Repairs & Maintenance,60090656,S W BRUCE & CO LTD,105.83,24/11/2017
Commissioning,Commissioning,Building Repairs & Maintenance,60092799,S W BRUCE & CO LTD,"2,511.60",30/11/2017
Commissioning,Commissioning,Consultants Fees,60089953,APT CONTROLS LTD,176.00,16/11/2017
Commissioning,Commissioning,Consultants Fees,60091409,CLIKAPAD LTD,"2,553.25",13/11/2017
Commissioning,Commissioning,Furniture-Purchase-Repair,60091878,CLIKAPAD LTD,40.00,30/11/2017
Commissioning,Commissioning,Consultants Fees,60091644,GALLIFORD TRY,"1,244,927.06",23/11/2017
Commissioning,Commissioning,Consultants Fees,60092166,PITMANS LLP,550.00,22/11/2017
Commissioning,Commissioning,Advertising,60089764,TMP (UK) LTD,683.00,24/11/2017
Commissioning,Commissioning,Equipment and Materials Purcha,60092207,TMP (UK) LTD,287.00,24/11/2017
Commissioning,Commissioning,Professional Services,60091782,TMP (UK) LTD,"2,009.70",15/11/2017
Commissioning,Commissioning,Professional Services,60087469,ROSSENDALES (COLLECT) LTD,3.57,15/11/2017
Commissioning,Commissioning,Professional Services,60087476,ROSSENDALES (COLLECT) LTD,3.57,15/11/2017
Commissioning,Commissioning,Professional Services,60087501,ROSSENDALES (COLLECT) LTD,3.57,15/11/2017
Commissioning,Commissioning,Professional Services,60087535,ROSSENDALES (COLLECT) LTD,3.57,15/11/2017
Commissioning,Commissioning,Professional Services,60085403,BRITISH TELECOM PLC,104.49,21/11/2017
Commissioning,Commissioning,Training,60092772,PDP TRAINING,475.00,30/11/2017
Commissioning,Commissioning,Other Services,60089090,SHRED-IT,95.85,02/11/2017
Commissioning,Commissioning,Other Services,60089444,SHRED-IT,57.51,02/11/2017
Commissioning,Commissioning,Other Services,60089586,SHRED-IT,105.44,09/11/2017
Commissioning,Commissioning,Other Services,60090310,SHRED-IT,57.51,16/11/2017
Commissioning,Commissioning,Other Services,60090413,SHRED-IT,95.85,16/11/2017
Commissioning,Commissioning,Other Services,60090800,SHRED-IT,105.44,23/11/2017
Commissioning,Commissioning,Other Services,60090818,SHRED-IT,143.78,23/11/2017
Commissioning,Commissioning,Other Services,60091398,SHRED-IT,57.51,30/11/2017
Commissioning,Commissioning,Ttl IT & Comms,60091169,STOR-A FILE LTD,"5,825.52",29/11/2017
Commissioning,Commissioning,Grant Payments,80013889,THE HOPE OF CHI,"2,500.00",22/11/2017
Commissioning,Commissioning,Stationery,40002617,OFFICE DEPOT UK LTD,473.66,01/11/2017
Commissioning,Commissioning,Cleaning and domestic material,40002629,OFFICE DEPOT UK LTD, 14.18 ,09/11/2017
Commissioning,Commissioning,Stationery,40002632,OFFICE DEPOT UK LTD, 1.48 ,09/11/2017
Commissioning,Commissioning,Training,60092766,DOD'S PARLIAMENTARY, 590.00 ,30/11/2017
Commissioning,Commissioning,Professional Services,60090731,KPMG FEES ACCOUNT, 875.00 ,01/11/2017
Commissioning,Commissioning,Ttl IT & Comms,60089084,LOGOTECH SYSTEMS," 4,833.28 ",02/11/2017
Commissioning,Commissioning,Training,80014042,DODS GROUP PLC, 245.00 ,29/11/2017
Commissioning,Commissioning,Other Services,80013514,PUBLISH - REDACT NAME, 12.30 ,03/11/2017
Commissioning,Commissioning,Other Services,60091429,SHRED-IT, 95.85 ,30/11/2017
Commissioning,Commissioning,Other Services,60091437,SHRED-IT, 143.78 ,30/11/2017
Commissioning,Commissioning,Professional Services,60089450,HBINFO LTD, 500.00 ,22/11/2017
Commissioning,Commissioning,Discretionary awards,80013978,THE JEWISH MIGRAINE FOUNDATION," 3,300.00 ",29/11/2017
Commissioning,Commissioning,Discretionary awards,80013979,THE JEWISH MIGRAINE FOUNDATION," 3,300.00 ",29/11/2017
Commissioning,Commissioning,Discretionary awards,80013980,THE JEWISH MIGRAINE FOUNDATION," 3,300.00 ",29/11/2017
Commissioning,Commissioning,Professional Services,60075655,GROUNDWORK LONDON,"20,000.00",15/11/2017
Commissioning,Commissioning,Equipment and Materials Purcha,60091033,OCS GROUP UK LIMITED," 47,050.00 ",30/11/2017
Commissioning,Commissioning,Equipment and Materials Purcha,60091041,OCS GROUP UK LIMITED,"47,050.00",08/11/2017
Commissioning,Commissioning,Other Services,60091352,GREENWICH LEISURE LTD,"2,380.50",13/11/2017
Commissioning,Commissioning,Transport Hire Charges,60084906,MOTT MACDONALD LTD/CAMBRIDGE EDUCATION, 335.00 ,08/11/2017
Commissioning,Commissioning,Consultants Fees,80013489,UK ACTIVE, 460.00 ,01/11/2017
Commissioning,Commissioning,Transport Hire Charges,60091831,SOUTHGATE COACHES LTD, 385.00 ,23/11/2017
Commissioning,Commissioning,Professional Services,60091399,MOTT MACDONALD LTD/CAMBRIDGE EDUCATION,113.00,27/11/2017
Commissioning,Commissioning,Other Transfer Payments to Soc,60091612,EMPOWERING COMMUNITIES," 5,949.00 ",15/11/2017
Commissioning,Commissioning,Other Transfer Payments to Soc,60091634,EMPOWERING COMMUNITIES," 5,949.00 ",15/11/2017
Commissioning,Commissioning,Equipment and Materials Purcha,60091356,GLOBAL MSC SECURITY LIMITED," 7,482.50 ",29/11/2017
Commissioning,Commissioning,Equipment and Materials Purcha,60091379,GLOBAL MSC SECURITY LIMITED," 7,482.50 ",09/11/2017
Commissioning,Commissioning,Training,60091546,GLOBAL MSC SECURITY LIMITED,150.00,30/11/2017
Commissioning,Commissioning,Health authorities - Third Par,60082101,PUBLISH - REDACT NAME,50.00,13/11/2017
Commissioning,Commissioning,Consultants Fees,60084036,PUBLISH - REDACT NAME, 25.00 ,06/11/2017
Commissioning,Commissioning,Consultants Fees,60091090,PUBLISH - REDACT NAME, 50.00 ,13/11/2017
Commissioning,Commissioning,Health authorities - Third Par,60091102,PUBLISH - REDACT NAME, 25.00 ,13/11/2017
Commissioning,Commissioning,Consultants Fees,60091520,PUBLISH - REDACT NAME, 89.26 ,17/11/2017
Commissioning,Commissioning,Professional Services,60092792,HESTIA,"14,270.00",30/11/2017
Commissioning,Commissioning,Other Services,60087410,EDGWARE PCC-ST PETER'S," 2,854.00 ",13/11/2017
Commissioning,Commissioning,Professional Services,60091675,MIDDLESEX UNIVERSITY," 1,800.00 ",27/11/2017
Commissioning,Commissioning,Other Services,60090530,SAS POSITIVE ACTIVITIES LTD,"1,403.00",13/11/2017
Commissioning,Commissioning,Other Services,60091889,STONEGROVE ESTATES' YOUTH PROJECT," 2,754.00 ",17/11/2017
Commissioning,Commissioning,Other Services,60090019,PUBLISH - REDACT NAME," 2,067.50 ",15/11/2017
Commissioning,Commissioning,Consultants Fees,60090088,CAPITA PLC," 117,648.00 ",01/11/2017
Commissioning,Commissioning,Consultants Fees,80013539,HOSPITALITY2,59.25,22/11/2017
Commissioning,Commissioning,Consultants Fees,60091328,THE BARNETGROUP LIMITED," 45,415.50 ",15/11/2017
Commissioning,Commissioning,Consultants Fees,60089466,OPUS INTERNATIONAL CONSULTANTS UK LTD," 5,186.25 ",02/11/2017
Commissioning,Commissioning,Professional Services,80012552,DEPARTMENT FOR WORK AND PENSIONS," 25,605.81 ",16/11/2017
Commissioning,Commissioning,Professional Services,60090482,LONDON BOROUGH OF EALING," 5,000.00 ",20/11/2017
Commissioning,Commissioning,Consultants Fees,60090778,PUBLISH - REDACT NAME," 2,500.00 ",06/11/2017
Commissioning,Commissioning,Professional Services,60091604,AV2HIRE, 105.00 ,28/11/2017
Commissioning,Commissioning,Training,60089140,LONDON COUNCILS, 750.00 ,02/11/2017
Commissioning,Commissioning,Professional Services,80013512,MERCER MYERSA, 800.00 ,03/11/2017
Commissioning,Commissioning,Professional Services,80013642,METRANOMES ST, 180.00 ,08/11/2017
Commissioning,Commissioning,Professional Services,80013644,PUBLISH - REDACT NAME, 35.00 ,08/11/2017
Commissioning,Commissioning,Professional Services,80013661,PUBLISH - REDACT NAME, 150.00 ,08/11/2017
Commissioning,Commissioning,Consultants Fees,80013795,LBB HACKNEY,"2,548.40",15/11/2017
Commissioning,Commissioning,Consultants Fees,80013799,LBB HACKNEY," 1,000.00 ",15/11/2017
Commissioning,Commissioning,Professional Services,60087725,MYSTERY SHOPPERS LTD,314.90,08/11/2017
Commissioning,Commissioning,Professional Services,60091532,MYSTERY SHOPPERS LTD, 433.55 ,29/11/2017
Commissioning,Commissioning,Professional Services,60092099,ALPHA RESEARCH LIMITED," 3,390.00 ",29/11/2017
Commissioning,Commissioning,Advertising,60092747,AVENUE HOUSE SERVICES LTD, 297.50 ,29/11/2017
Commissioning,Commissioning,Publications,60092583,MELTWATER UK LTD,"1,565.00",28/11/2017
Commissioning,Commissioning,Advertising,60090170,TMP (UK) LTD," 1,371.00 ",17/11/2017
Commissioning,Commissioning,Publications,60089852,DIGITALISSUE LIMITED, 150.00 ,15/11/2017
Commissioning,Commissioning,Publications,60089984,PUBLISH - REDACT NAME, 100.00 ,13/11/2017
Commissioning,Commissioning,Consultants Fees,60091154,FMG CONSULTING LTD, 945.77 ,16/11/2017
Commissioning,Commissioning,Consultants Fees,60092520,FMG CONSULTING LTD, 933.53 ,29/11/2017
Commissioning,Commissioning,Other Services,60091139,BLUE 9 SECURITY LIMITED,"3,191.85",28/11/2017
Commissioning,Commissioning,Other Services,60091151,BLUE 9 SECURITY LIMITED," 1,806.12 ",28/11/2017
Commissioning,Commissioning,Other Services,60091165,BLUE 9 SECURITY LIMITED," 2,413.35 ",28/11/2017
Commissioning,Commissioning,Other Services,60091244,BLUE 9 SECURITY LIMITED," 2,436.71 ",28/11/2017
Commissioning,Commissioning,Other Services,60091259,BLUE 9 SECURITY LIMITED, 731.79 ,28/11/2017
Commissioning,Commissioning,Other Services,60092683,BLUE 9 SECURITY LIMITED," 5,161.46 ",29/11/2017
Commissioning,Commissioning,Other Services,60092698,BLUE 9 SECURITY LIMITED," 2,413.35 ",29/11/2017
Commissioning,Commissioning,Other Services,60092744,BLUE 9 SECURITY LIMITED," 2,101.95 ",29/11/2017
Commissioning,Commissioning,Other Services,60092751,BLUE 9 SECURITY LIMITED," 2,452.28 ",29/11/2017
Commissioning,Commissioning,Other Services,60092758,BLUE 9 SECURITY LIMITED," 2,413.35 ",29/11/2017
Commissioning,Commissioning,Grant Payments,80012551,LOVE BURNT OAK COMMUNITY RESOURCE & SUPP," 13,714.50 ",16/11/2017
Commissioning,Commissioning,Professional Services,60091472,EJH TRAINING SERVICES LTD,"2,392.51",30/11/2017
Commissioning,Commissioning,Professional Services,60089283,THE BARNETGROUP LIMITED," 300,000.00 ",08/11/2017
Commissioning,Commissioning,Professional Services,60089361,THE BARNETGROUP LIMITED," 75,000.00 ",09/11/2017
Commissioning,Commissioning,Professional Services,60090007,THE BARNETGROUP LIMITED," 25,000.00 ",10/11/2017
Commissioning,Commissioning,Professional Services,80012611,DEPARTMENT FOR WORK AND PENSIONS," 8,528.52 ",16/11/2017
Commissioning,Commissioning,Other Services,60090496,LONDON BOROUGH OF EALING," 20,350.25 ",20/11/2017
Commissioning,Commissioning,Other Local Authorities - Thir,EBX0199556,NORTH LONDON WASTE," 872,077.00 ",11/11/2017
Corporate Accounting,Corporate Accounting,Refunds,80014040,NEW WAVE MARKETS LIMITED," 2,568.83 ",29/11/2017
Corporate Accounting,Corporate Accounting,Interest Temporary Loans,80013461,MAYOR OF THE LBB BENEVOLENT FUND," 1,091.54 ",06/11/2017
Corporate Accounting,Corporate Accounting,Government departments - Third,80013450,DEPARTMENT FOR COMMUNITIES & LOCAL GOV.," 9,379.62 ",21/11/2017
Corporate Accounting,Corporate Accounting,Grant Payments,80013263,ACTION ON HEARING LOSS," 2,400.00 ",01/11/2017
Corporate Accounting,Corporate Accounting,Grant Payments,80013624,THE LAST CUPPA," 1,000.00 ",08/11/2017
Corporate Accounting,Corporate Accounting,Other Agencies - Third Party P,60091927,THE BARNETGROUP LIMITED," 91,666.67 ",17/11/2017
Corporate Accounting,Corporate Accounting,Other Agencies - Third Party P,80013763,THE SHARE FOUN,"1,851.27",17/11/2017
Corporate Accounting,Corporate Accounting,Other Transfer Payments,80013505,ANTHONY GOLD SOLICITORS," 1,000.00 ",02/11/2017
Corporate Accounting,Corporate Accounting,Other Transfer Payments,80013634,STAPLETONS SOLICITORS," 1,000.00 ",08/11/2017
Corporate Accounting,Corporate Accounting,Refunds,80013554,MOTT MACDONALD LTD/CAMBRIDGE EDUCATION, 406.80 ,09/11/2017
Corporate Accounting,Corporate Accounting,Refunds,80013864,MOTT MACDONALD LTD/CAMBRIDGE EDUCATION, 216.00 ,23/11/2017
Corporate Accounting,Corporate Accounting,Other Local Authorities - Thir,EBX0200345,GREATER LONDON AUTHORITY," 49,828.80 ",23/11/2017
Corporate Accounting,Corporate Accounting,Other Local Authorities - Thir,EBX0199548,GREATER LONDON AUTHORITY," 4,014,752.61 ",16/11/2017
Corporate Accounting,Corporate Accounting,Other Local Authorities - Thir,EBX0197970,GREATER LONDON AUTHORITY," 3,428,215.84 ",10/11/2017
Corporate Accounting,Corporate Accounting,Other Local Authorities - Thir,EBX0200241,GREATER LONDON AUTHORITY,"234,605.00",22/11/2017
Delivery Units,Adults and Communities,Equipment and Materials Purcha,60091420,AKS WARD LTD," 2,000.00 ",29/11/2017
Delivery Units,Adults and Communities,Equipment and Materials Purcha,60091743,AKS WARD LTD,"5,500.00",15/11/2017
Delivery Units,Adults and Communities,Voluntary Associations - Third,30172887,ASRA GREATER LONDON HOUSING ASSOC, 379.30 ,24/11/2017
Delivery Units,Adults and Communities,Voluntary Associations - Third,30172889,CHRISTIAN ACTION (ENFIELD), 365.80 ,24/11/2017
Delivery Units,Adults and Communities,Voluntary Associations - Third,30172890,ELEANOR PALMER TRUST NO 2 A/C.,486.50,24/11/2017
Delivery Units,Adults and Communities,Voluntary Associations - Third,30172891,GENESIS HOUSING ASSOCIATION LIMITED," 35,676.00 ",24/11/2017
Delivery Units,Adults and Communities,Voluntary Associations - Third,30172893,HABINTEG HOUSING ASSOCIATION, 446.37 ,24/11/2017
Delivery Units,Adults and Communities,Voluntary Associations - Third,30172894,JEWISH COMMUNITY HOUSING ASSOCIATIO, 568.17 ,24/11/2017
Delivery Units,Adults and Communities,Voluntary Associations - Third,30172899,LINEN & WOOLLEN DRAPERS COTTAGE, 730.11 ,24/11/2017
Delivery Units,Adults and Communities,Voluntary Associations - Third,30172897,ORCHARD HOUSING ASSOCIATION,196.62,24/11/2017
Delivery Units,Adults and Communities,Voluntary Associations - Third,30172901,SCOTSCARE, 361.52 ,24/11/2017
Delivery Units,Adults and Communities,Voluntary Associations - Third,30172898,ST PANCRAS & HUMANIST H.A., 661.55 ,24/11/2017
Delivery Units,Adults and Communities,Other Services,30172902,WILLOW HOUSING & CARE LTD., 711.38 ,24/11/2017
Delivery Units,Adults and Communities,Other Services,80013880,SATS, 184.00 ,17/11/2017
Delivery Units,Adults and Communities,Equipment and Materials Purcha,60092005,BLAZIE ENGINEERING LTD, 650.00 ,20/11/2017
Delivery Units,Adults and Communities,Other Services,60090635,M1 EXPRESS CAR SERVICES, 125.00 ,01/11/2017
Delivery Units,Adults and Communities,Other Services,60090654,M1 EXPRESS CAR SERVICES, 273.00 ,01/11/2017
Delivery Units,Adults and Communities,Other Services,60092016,M1 EXPRESS CAR SERVICES, 208.00 ,20/11/2017
Delivery Units,Adults and Communities,Ttl IT & Comms,60089651,P A CONSULTING SERVICES LTD," 186,759.00 ",15/11/2017
Delivery Units,Adults and Communities,Ttl IT & Comms,60091440,THE BARNETGROUP LIMITED," 33,301.57 ",10/11/2017
Delivery Units,Adults and Communities,Other Agencies - Third Party P,90032248,ASHTON LODGE CARE CENTRE,"-1,822.42 ",09/11/2017
Delivery Units,Adults and Communities,Other Agencies - Third Party P,30172969,ABBEY RAVENSCROFT PARK NURSING HOME,228.57,28/11/2017
Delivery Units,Adults and Communities,Other Agencies - Third Party P,30172970,ABBEY RAVENSCROFT PARK NURSING HOME, 200.00 ,28/11/2017
Delivery Units,Adults and Communities,Other Agencies - Third Party P,90034109,ABBEY RAVENSCROFT PARK NURSING HOME,"3,214.29",13/11/2017
Delivery Units,Adults and Communities,Other Agencies - Third Party P,90034113,ABBEY RAVENSCROFT PARK NURSING HOME," 2,698.37 ",13/11/2017
Delivery Units,Adults and Communities,Other Agencies - Third Party P,90034114,ABBEY RAVENSCROFT PARK NURSING HOME," 3,214.29 ",13/11/2017
Delivery Units,Adults and Communities,Other Agencies - Third Party P,90034115,ABBEY RAVENSCROFT PARK NURSING HOME," 3,214.29 ",13/11/2017
Delivery Units,Adults and Communities,Other Agencies - Third Party P,90034118,ABBEY RAVENSCROFT PARK NURSING HOME," 3,679.24 ",13/11/2017
Delivery Units,Adults and Communities,Other Agencies - Third Party P,90034119,ABBEY RAVENSCROFT PARK NURSING HOME,"2,698.37",13/11/2017
Delivery Units,Adults and Communities,Other Agencies - Third Party P,90034120,ABBEY RAVENSCROFT PARK NURSING HOME," 3,150.00 ",13/11/2017
Delivery Units,Adults and Communities,Other Agencies - Third Party P,90034122,ABBEY RAVENSCROFT PARK NURSING HOME," 2,698.37 ",13/11/2017
Delivery Units,Adults and Communities,Other Agencies - Third Party P,90034125,ABBEY RAVENSCROFT PARK NURSING HOME," 2,698.37 ",13/11/2017
Delivery Units,Adults and Communities,Other Agencies - Third Party P,90034127,ABBEY RAVENSCROFT PARK NURSING HOME,"3,150.00",13/11/2017
Delivery Units,Adults and Communities,Other Agencies - Third Party P,90034130,ABBEY RAVENSCROFT PARK NURSING HOME," 2,698.37 ",13/11/2017
Delivery Units,Adults and Communities,Other Agencies - Third Party P,90034131,ABBEY RAVENSCROFT PARK NURSING HOME,"3,214.29",13/11/2017
Delivery Units,Adults and Communities,Other Agencies - Third Party P,90034132,ABBEY RAVENSCROFT PARK NURSING HOME," 2,698.37 ",13/11/2017
Delivery Units,Adults and Communities,Other Agencies - Third Party P,90034133,ABBEY RAVENSCROFT PARK NURSING HOME," 2,698.37 ",13/11/2017
Delivery Units,Adults and Communities,Other Agencies - Third Party P,90034134,ABBEY RAVENSCROFT PARK NURSING HOME,"3,150.00",13/11/2017
Delivery Units,Adults and Communities,Other Agencies - Third Party P,90034135,ABBEY RAVENSCROFT PARK NURSING HOME," 3,214.29 ",13/11/2017
Delivery Units,Adults and Communities,Other Agencies - Third Party P,90034137,ABBEY RAVENSCROFT PARK NURSING HOME," 3,150.00 ",13/11/2017
Delivery Units,Adults and Communities,Other Agencies - Third Party P,90034138,ABBEY RAVENSCROFT PARK NURSING HOME," 2,698.37 ",13/11/2017
Delivery Units,Adults and Communities,Other Agencies - Third Party P,90035071,ABBEY RAVENSCROFT PARK NURSING HOME," 2,788.32 ",15/11/2017
Delivery Units,Adults and Communities,Other Agencies - Third Party P,90035072,ABBEY RAVENSCROFT PARK NURSING HOME,"3,321.43",15/11/2017
Delivery Units,Adults and Communities,Other Agencies - Third Party P,90035073,ABBEY RAVENSCROFT PARK NURSING HOME," 2,788.32 ",15/11/2017
Delivery Units,Adults and Communities,Other Agencies - Third Party P,90035116,ABBEY RAVENSCROFT PARK NURSING HOME," 1,716.98 ",15/11/2017
Delivery Units,Adults and Communities,Other Agencies - Third Party P,90035117,ABBEY RAVENSCROFT PARK NURSING HOME," 3,679.24 ",15/11/2017
Delivery Units,Adults and Communities,Other Agencies - Third Party P,90032260,AGUDAS ISRAEL HOUSING ASSCTN LTD," 2,736.86 ",15/11/2017
Delivery Units,Adults and Communities,Other Agencies - Third Party P,90029946,APPLE TREE COURT CARE HOME," 3,771.43 ",02/11/2017
Delivery Units,Adults and Communities,Other Agencies - Third Party P,90035632,APPLE TREE COURT CARE HOME," 2,320.37 ",16/11/2017
Delivery Units,Adults and Communities,Other Agencies - Third Party P,90035633,APPLE TREE COURT CARE HOME, 157.14 ,16/11/2017
Delivery Units,Adults and Communities,Other Agencies - Third Party P,90035634,APPLE TREE COURT CARE HOME," 4,714.29 ",16/11/2017
Delivery Units,Adults and Communities,Other Agencies - Third Party P,90035642,APPLE TREE COURT CARE HOME," 2,487.77 ",16/11/2017
Delivery Units,Adults and Communities,Other Agencies - Third Party P,90035643,APPLE TREE COURT CARE HOME," 2,487.77 ",16/11/2017
Delivery Units,Adults and Communities,Other Agencies - Third Party P,90035647,APPLE TREE COURT CARE HOME," 4,714.29 ",16/11/2017
Delivery Units,Adults and Communities,Other Agencies - Third Party P,90037494,APPLE TREE COURT CARE HOME," 4,714.29 ",24/11/2017
Delivery Units,Adults and Communities,Other Agencies - Third Party P,90037495,APPLE TREE COURT CARE HOME," 4,871.43 ",24/11/2017
Delivery Units,Adults and Communities,Other Agencies - Third Party P,90037496,APPLE TREE COURT CARE HOME," 4,871.43 ",24/11/2017
Delivery Units,Adults and Communities,Other Agencies - Third Party P,90029948,ASHTON LODGE CARE CENTRE,"3,520.49",02/11/2017
Delivery Units,Adults and Communities,Other Agencies - Third Party P,90029949,ASHTON LODGE CARE CENTRE," 3,077.64 ",02/11/2017
Delivery Units,Adults and Communities,Other Agencies - Third Party P,90029953,ASHTON LODGE CARE CENTRE," 1,915.59 ",02/11/2017
Delivery Units,Adults and Communities,Other Agencies - Third Party P,90032247,ASHTON LODGE CARE CENTRE," 2,485.11 ",09/11/2017
Delivery Units,Adults and Communities,Other Agencies - Third Party P,90037142,ASHTON LODGE CARE CENTRE," 3,428.57 ",22/11/2017
Delivery Units,Adults and Communities,Other Agencies - Third Party P,90037144,ASHTON LODGE CARE CENTRE," 2,752.33 ",22/11/2017
Delivery Units,Adults and Communities,Other Agencies - Third Party P,90037147,ASHTON LODGE CARE CENTRE," 2,752.33 ",22/11/2017
Delivery Units,Adults and Communities,Other Agencies - Third Party P,90037150,ASHTON LODGE CARE CENTRE," 2,485.11 ",22/11/2017
Delivery Units,Adults and Communities,Other Agencies - Third Party P,90037151,ASHTON LODGE CARE CENTRE," 2,752.33 ",22/11/2017
Delivery Units,Adults and Communities,Other Agencies - Third Party P,90037152,ASHTON LODGE CARE CENTRE," 2,978.36 ",22/11/2017
Delivery Units,Adults and Communities,Other Agencies - Third Party P,90037153,ASHTON LODGE CARE CENTRE," 2,841.43 ",22/11/2017
Delivery Units,Adults and Communities,Other Agencies - Third Party P,90037155,ASHTON LODGE CARE CENTRE," 3,642.86 ",22/11/2017
Delivery Units,Adults and Communities,Other Agencies - Third Party P,90037156,ASHTON LODGE CARE CENTRE," 3,160.50 ",22/11/2017
Delivery Units,Adults and Communities,Other Agencies - Third Party P,90037157,ASHTON LODGE CARE CENTRE," 3,406.93 ",22/11/2017
Delivery Units,Adults and Communities,Other Agencies - Third Party P,90037158,ASHTON LODGE CARE CENTRE," 2,752.33 ",22/11/2017
Delivery Units,Adults and Communities,Other Agencies - Third Party P,90037159,ASHTON LODGE CARE CENTRE," 3,032.70 ",22/11/2017
Delivery Units,Adults and Communities,Other Agencies - Third Party P,90037160,ASHTON LODGE CARE CENTRE," 3,214.29 ",22/11/2017
Delivery Units,Adults and Communities,Other Agencies - Third Party P,90039011,AUTUMN GARDENS," 4,800.00 ",28/11/2017
Delivery Units,Adults and Communities,Other Agencies - Third Party P,90039012,AUTUMN GARDENS," 4,800.00 ",28/11/2017
Delivery Units,Adults and Communities,Other Agencies - Third Party P,90034108,BONDCARE LONDON (THE FOUNTAINS)," 2,138.00 ",13/11/2017
Delivery Units,Adults and Communities,Other Agencies - Third Party P,90032233,BROAD OAK MANOR NURSING HOME," 6,311.91 ",09/11/2017
Delivery Units,Adults and Communities,Other Agencies - Third Party P,90035067,BROAD OAK MANOR NURSING HOME," 6,311.91 ",15/11/2017
Delivery Units,Adults and Communities,Other Agencies - Third Party P,90035068,BROAD OAK MANOR NURSING HOME," 6,108.30 ",15/11/2017
Delivery Units,Adults and Communities,Other Agencies - Third Party P,90035069,BROAD OAK MANOR NURSING HOME," 6,311.91 ",15/11/2017
Delivery Units,Adults and Communities,Other Agencies - Third Party P,90037627,BROAD OAK MANOR NURSING HOME," 6,108.30 ",27/11/2017
Delivery Units,Adults and Communities,Other Agencies - Third Party P,90031913,BUPA CARE HOMES," 2,730.97 ",10/11/2017
Delivery Units,Adults and Communities,Other Agencies - Third Party P,90029930,BUPA CARE HOMES," 2,321.92 ",02/11/2017
Delivery Units,Adults and Communities,Other Agencies - Third Party P,90029931,BUPA CARE HOMES," 2,094.52 ",02/11/2017
Delivery Units,Adults and Communities,Other Agencies - Third Party P,90029932,BUPA CARE HOMES," 2,549.32 ",02/11/2017
Delivery Units,Adults and Communities,Other Agencies - Third Party P,90031186,BUPA CARE HOMES," 2,466.76 ",09/11/2017
Delivery Units,Adults and Communities,Other Agencies - Third Party P,90031908,BUPA CARE HOMES," 2,466.05 ",15/11/2017
Delivery Units,Adults and Communities,Other Agencies - Third Party P,90031910,BUPA CARE HOMES,"2,466.05",15/11/2017
Delivery Units,Adults and Communities,Other Agencies - Third Party P,90031914,BUPA CARE HOMES, 84.24 ,14/11/2017
Delivery Units,Adults and Communities,Other Agencies - Third Party P,90035102,BUPA CARE HOMES," 3,305.91 ",15/11/2017
Delivery Units,Adults and Communities,Other Agencies - Third Party P,90035422,BUPA CARE HOMES," 2,387.19 ",16/11/2017
Delivery Units,Adults and Communities,Other Agencies - Third Party P,90035739,BUPA CARE HOMES,"1,448.49",16/11/2017
Delivery Units,Adults and Communities,Other Agencies - Third Party P,90035740,BUPA CARE HOMES," 2,464.06 ",16/11/2017
Delivery Units,Adults and Communities,Other Agencies - Third Party P,90035743,BUPA CARE HOMES," 2,321.92 ",16/11/2017
Delivery Units,Adults and Communities,Other Agencies - Third Party P,90035744,BUPA CARE HOMES," 2,094.52 ",16/11/2017
Delivery Units,Adults and Communities,Other Agencies - Third Party P,90035745,BUPA CARE HOMES,"2,549.32",16/11/2017
Delivery Units,Adults and Communities,Other Agencies - Third Party P,90038427,BUPA NURSING HOMES LTD - ARKLEY,"2,227.52",28/11/2017
Delivery Units,Adults and Communities,Other Agencies - Third Party P,90038428,BUPA NURSING HOMES LTD - ARKLEY," 2,227.24 ",28/11/2017
Delivery Units,Adults and Communities,Other Agencies - Third Party P,90038429,BUPA NURSING HOMES LTD - ARKLEY," 2,227.24 ",28/11/2017
Delivery Units,Adults and Communities,Other Agencies - Third Party P,90038431,BUPA NURSING HOMES LTD - ARKLEY," 2,227.40 ",28/11/2017
Delivery Units,Adults and Communities,Other Agencies - Third Party P,90038432,BUPA NURSING HOMES LTD - ARKLEY," 2,214.76 ",28/11/2017
Delivery Units,Adults and Communities,Other Agencies - Third Party P,90037499,CARE UK COMMUNITY PARTNERSHIPS," 3,316.07 ",24/11/2017
Delivery Units,Adults and Communities,Other Agencies - Third Party P,90037500,CARE UK COMMUNITY PARTNERSHIPS,"3,426.61",24/11/2017
Delivery Units,Adults and Communities,Other Agencies - Third Party P,90037501,CARE UK COMMUNITY PARTNERSHIPS," 3,316.07 ",24/11/2017
Delivery Units,Adults and Communities,Other Agencies - Third Party P,90035092,CARLTON COURT (TLC GROUP)," 2,569.89 ",15/11/2017
Delivery Units,Adults and Communities,Other Agencies - Third Party P,90035093,CARLTON COURT (TLC GROUP)," 2,569.89 ",15/11/2017
Delivery Units,Adults and Communities,Other Agencies - Third Party P,90035095,CARLTON COURT (TLC GROUP)," 3,616.07 ",15/11/2017
Delivery Units,Adults and Communities,Other Agencies - Third Party P,90035098,CARLTON COURT (TLC GROUP)," 2,369.79 ",15/11/2017
Delivery Units,Adults and Communities,Other Agencies - Third Party P,90037622,CARLTON COURT (TLC GROUP)," 3,736.61 ",27/11/2017
Delivery Units,Adults and Communities,Other Agencies - Third Party P,90031862,CHISWICK HOUSE," 3,321.14 ",09/11/2017
Delivery Units,Adults and Communities,Other Agencies - Third Party P,90035074,CHISWICK HOUSE," 3,214.20 ",30/11/2017
Delivery Units,Adults and Communities,Other Agencies - Third Party P,90035120,CHISWICK HOUSE,"3,321.34",15/11/2017
Delivery Units,Adults and Communities,Other Agencies - Third Party P,90031348,CLARE HOUSE NURSING HOME,"2,228.72",07/11/2017
Delivery Units,Adults and Communities,Other Agencies - Third Party P,90023210,ERSKINE HALL (BUPA)," 3,498.57 ",01/11/2017
Delivery Units,Adults and Communities,Other Agencies - Third Party P,90029934,FERNBANK NURSING HOME.," 2,320.20 ",02/11/2017
Delivery Units,Adults and Communities,Other Agencies - Third Party P,90029952,FERNBANK NURSING HOME.," 2,318.80 ",02/11/2017
Delivery Units,Adults and Communities,Other Agencies - Third Party P,90036430,FERNBANK NURSING HOME.," 2,244.00 ",20/11/2017
Delivery Units,Adults and Communities,Other Agencies - Third Party P,90036431,FERNBANK NURSING HOME.," 2,320.20 ",20/11/2017
Delivery Units,Adults and Communities,Other Agencies - Third Party P,90036433,FERNBANK NURSING HOME.," 2,244.00 ",20/11/2017
Delivery Units,Adults and Communities,Other Agencies - Third Party P,90036434,FERNBANK NURSING HOME.,"2,244.00",20/11/2017
Delivery Units,Adults and Communities,Other Agencies - Third Party P,90036435,FERNBANK NURSING HOME.," 2,320.20 ",20/11/2017
Delivery Units,Adults and Communities,Other Agencies - Third Party P,90036437,FERNBANK NURSING HOME.," 2,320.20 ",20/11/2017
Delivery Units,Adults and Communities,Other Agencies - Third Party P,90036438,FERNBANK NURSING HOME.," 2,973.00 ",20/11/2017
Delivery Units,Adults and Communities,Other Agencies - Third Party P,90036439,FERNBANK NURSING HOME.,"2,320.20",20/11/2017
Delivery Units,Adults and Communities,Other Agencies - Third Party P,30172569,FOUR SEASONS HEALTH CARE," 2,399.36 ",10/11/2017
Delivery Units,Adults and Communities,Other Agencies - Third Party P,30172570,FOUR SEASONS HEALTH CARE," 2,246.44 ",10/11/2017
Delivery Units,Adults and Communities,Other Agencies - Third Party P,30172571,FOUR SEASONS HEALTH CARE, 641.84 ,10/11/2017
Delivery Units,Adults and Communities,Other Agencies - Third Party P,30172850,FOUR SEASONS HEALTH CARE, 685.30 ,22/11/2017
Delivery Units,Adults and Communities,Other Agencies - Third Party P,30172851,FOUR SEASONS HEALTH CARE, 3.57 ,22/11/2017
Delivery Units,Adults and Communities,Other Agencies - Third Party P,90031178,FOUR SEASONS HEALTH CARE," 2,823.24 ",07/11/2017
Delivery Units,Adults and Communities,Other Agencies - Third Party P,90031181,FOUR SEASONS HEALTH CARE," 2,371.57 ",07/11/2017
Delivery Units,Adults and Communities,Other Agencies - Third Party P,90031182,FOUR SEASONS HEALTH CARE," 2,371.57 ",07/11/2017
Delivery Units,Adults and Communities,Other Agencies - Third Party P,90031190,FOUR SEASONS HEALTH CARE," 2,371.57 ",07/11/2017
Delivery Units,Adults and Communities,Other Agencies - Third Party P,90031874,FOUR SEASONS HEALTH CARE," 3,313.65 ",09/11/2017
Delivery Units,Adults and Communities,Other Agencies - Third Party P,90031894,FOUR SEASONS HEALTH CARE," 2,640.01 ",09/11/2017
Delivery Units,Adults and Communities,Other Agencies - Third Party P,90031900,FOUR SEASONS HEALTH CARE," 2,371.58 ",09/11/2017
Delivery Units,Adults and Communities,Other Agencies - Third Party P,90031901,FOUR SEASONS HEALTH CARE,"2,640.01",09/11/2017
Delivery Units,Adults and Communities,Other Agencies - Third Party P,90031902,FOUR SEASONS HEALTH CARE," 2,550.72 ",09/11/2017
Delivery Units,Adults and Communities,Other Agencies - Third Party P,90031903,FOUR SEASONS HEALTH CARE," 1,516.77 ",09/11/2017
Delivery Units,Adults and Communities,Other Agencies - Third Party P,90031904,FOUR SEASONS HEALTH CARE," 2,550.72 ",09/11/2017
Delivery Units,Adults and Communities,Other Agencies - Third Party P,90035629,FOUR SEASONS HEALTH CARE," 2,246.44 ",16/11/2017
Delivery Units,Adults and Communities,Other Agencies - Third Party P,90035630,FOUR SEASONS HEALTH CARE,"2,500.72",16/11/2017
Delivery Units,Adults and Communities,Other Agencies - Third Party P,90035631,FOUR SEASONS HEALTH CARE," 2,550.72 ",16/11/2017
Delivery Units,Adults and Communities,Other Agencies - Third Party P,90035648,FOUR SEASONS HEALTH CARE," 2,459.62 ",16/11/2017
Delivery Units,Adults and Communities,Other Agencies - Third Party P,90035649,FOUR SEASONS HEALTH CARE,455.49,16/11/2017
Delivery Units,Adults and Communities,Other Agencies - Third Party P,90035650,FOUR SEASONS HEALTH CARE," 1,184.26 ",16/11/2017
Delivery Units,Adults and Communities,Other Agencies - Third Party P,90035651,FOUR SEASONS HEALTH CARE," 1,713.26 ",16/11/2017
Delivery Units,Adults and Communities,Other Agencies - Third Party P,90035657,FOUR SEASONS HEALTH CARE," 1,093.17 ",16/11/2017
Delivery Units,Adults and Communities,Other Agencies - Third Party P,90035658,FOUR SEASONS HEALTH CARE, 85.71 ,16/11/2017
Delivery Units,Adults and Communities,Other Agencies - Third Party P,90035111,FRISTON HOUSE,"3,192.64",15/11/2017
Delivery Units,Adults and Communities,Other Agencies - Third Party P,90035112,FRISTON HOUSE," 3,299.06 ",15/11/2017
Delivery Units,Adults and Communities,Other Agencies - Third Party P,90036453,GCH (HERTFORDSHIRE) LTD T/A," 8,424.14 ",20/11/2017
Delivery Units,Adults and Communities,Other Agencies - Third Party P,90036454,GCH (HERTFORDSHIRE) LTD T/A," 2,358.76 ",20/11/2017
Delivery Units,Adults and Communities,Other Agencies - Third Party P,30172367,HENRY NIHILL HOUSE," 3,479.66 ",06/11/2017
Delivery Units,Adults and Communities,Other Agencies - Third Party P,30172368,HENRY NIHILL HOUSE, 342.65 ,06/11/2017
Delivery Units,Adults and Communities,Other Agencies - Third Party P,90029966,HENRY NIHILL HOUSE," 1,701.61 ",02/11/2017
Delivery Units,Adults and Communities,Other Agencies - Third Party P,90029967,HENRY NIHILL HOUSE," 1,701.61 ",02/11/2017
Delivery Units,Adults and Communities,Other Agencies - Third Party P,90029969,HENRY NIHILL HOUSE," 1,701.61 ",02/11/2017
Delivery Units,Adults and Communities,Other Agencies - Third Party P,90029970,HENRY NIHILL HOUSE," 1,701.61 ",02/11/2017
Delivery Units,Adults and Communities,Other Agencies - Third Party P,90029971,HENRY NIHILL HOUSE," 1,701.61 ",02/11/2017
Delivery Units,Adults and Communities,Other Agencies - Third Party P,90029973,HENRY NIHILL HOUSE,"1,701.61",02/11/2017
Delivery Units,Adults and Communities,Other Agencies - Third Party P,90029974,HENRY NIHILL HOUSE," 1,701.61 ",02/11/2017
Delivery Units,Adults and Communities,Other Agencies - Third Party P,90029976,HENRY NIHILL HOUSE," 2,165.68 ",02/11/2017
Delivery Units,Adults and Communities,Other Agencies - Third Party P,90029977,HENRY NIHILL HOUSE," 2,165.68 ",02/11/2017
Delivery Units,Adults and Communities,Other Agencies - Third Party P,90029978,HENRY NIHILL HOUSE," 2,165.68 ",02/11/2017
Delivery Units,Adults and Communities,Other Agencies - Third Party P,90029979,HENRY NIHILL HOUSE,"2,165.68",02/11/2017
Delivery Units,Adults and Communities,Other Agencies - Third Party P,90029980,HENRY NIHILL HOUSE," 2,165.68 ",02/11/2017
Delivery Units,Adults and Communities,Other Agencies - Third Party P,90029982,HENRY NIHILL HOUSE,"2,088.33",02/11/2017
Delivery Units,Adults and Communities,Other Agencies - Third Party P,90029983,HENRY NIHILL HOUSE," 3,013.48 ",02/11/2017
Delivery Units,Adults and Communities,Other Agencies - Third Party P,90029984,HENRY NIHILL HOUSE," 2,088.33 ",02/11/2017
Delivery Units,Adults and Communities,Other Agencies - Third Party P,90029985,HENRY NIHILL HOUSE," 2,088.33 ",02/11/2017
Delivery Units,Adults and Communities,Other Agencies - Third Party P,90029986,HENRY NIHILL HOUSE," 1,160.18 ",02/11/2017
Delivery Units,Adults and Communities,Other Agencies - Third Party P,90029987,HENRY NIHILL HOUSE," 2,088.33 ",02/11/2017
Delivery Units,Adults and Communities,Other Agencies - Third Party P,90029989,HENRY NIHILL HOUSE,"2,088.33",02/11/2017
Delivery Units,Adults and Communities,Other Agencies - Third Party P,90029990,HENRY NIHILL HOUSE," 2,165.68 ",02/11/2017
Delivery Units,Adults and Communities,Other Agencies - Third Party P,90029991,HENRY NIHILL HOUSE," 2,165.68 ",02/11/2017
Delivery Units,Adults and Communities,Other Agencies - Third Party P,90029992,HENRY NIHILL HOUSE,"2,165.68",02/11/2017
Delivery Units,Adults and Communities,Other Agencies - Third Party P,90029993,HENRY NIHILL HOUSE," 2,165.68 ",02/11/2017
Delivery Units,Adults and Communities,Other Agencies - Third Party P,90029994,HENRY NIHILL HOUSE," 2,165.68 ",02/11/2017
Delivery Units,Adults and Communities,Other Agencies - Third Party P,90029995,HENRY NIHILL HOUSE," 2,165.68 ",02/11/2017
Delivery Units,Adults and Communities,Other Agencies - Third Party P,90029997,HENRY NIHILL HOUSE," 2,165.68 ",02/11/2017
Delivery Units,Adults and Communities,Other Agencies - Third Party P,90032605,JEWISH CARE," 2,319.44 ",10/11/2017
Delivery Units,Adults and Communities,Other Agencies - Third Party P,90032615,JEWISH CARE," 2,319.44 ",10/11/2017
Delivery Units,Adults and Communities,Other Agencies - Third Party P,90033136,JEWISH CARE," 2,319.44 ",13/11/2017
Delivery Units,Adults and Communities,Other Agencies - Third Party P,90033138,JEWISH CARE," 2,319.44 ",13/11/2017
Delivery Units,Adults and Communities,Other Agencies - Third Party P,90033140,JEWISH CARE,"2,568.84",13/11/2017
Delivery Units,Adults and Communities,Other Agencies - Third Party P,90033141,JEWISH CARE," 2,568.84 ",13/11/2017
Delivery Units,Adults and Communities,Other Agencies - Third Party P,90033142,JEWISH CARE," 2,319.44 ",13/11/2017
Delivery Units,Adults and Communities,Other Agencies - Third Party P,90033143,JEWISH CARE," 2,319.44 ",13/11/2017
Delivery Units,Adults and Communities,Other Agencies - Third Party P,90033144,JEWISH CARE," 2,568.84 ",13/11/2017
Delivery Units,Adults and Communities,Other Agencies - Third Party P,90033145,JEWISH CARE,"2,319.44",13/11/2017
Delivery Units,Adults and Communities,Other Agencies - Third Party P,90033146,JEWISH CARE," 2,568.84 ",13/11/2017
Delivery Units,Adults and Communities,Other Agencies - Third Party P,90033147,JEWISH CARE,"2,568.84",13/11/2017
Delivery Units,Adults and Communities,Other Agencies - Third Party P,90033148,JEWISH CARE,"2,568.84",13/11/2017
Delivery Units,Adults and Communities,Other Agencies - Third Party P,90033149,JEWISH CARE," 2,319.44 ",13/11/2017
Delivery Units,Adults and Communities,Other Agencies - Third Party P,90033150,JEWISH CARE," 2,568.84 ",13/11/2017
Delivery Units,Adults and Communities,Other Agencies - Third Party P,90033151,JEWISH CARE," 2,568.84 ",13/11/2017
Delivery Units,Adults and Communities,Other Agencies - Third Party P,90033152,JEWISH CARE," 2,319.44 ",13/11/2017
Delivery Units,Adults and Communities,Other Agencies - Third Party P,90033153,JEWISH CARE," 2,319.44 ",13/11/2017
Delivery Units,Adults and Communities,Other Agencies - Third Party P,90033155,JEWISH CARE," 2,568.84 ",13/11/2017
Delivery Units,Adults and Communities,Other Agencies - Third Party P,90033156,JEWISH CARE," 1,159.72 ",13/11/2017
Delivery Units,Adults and Communities,Other Agencies - Third Party P,90033157,JEWISH CARE," 2,568.84 ",13/11/2017
Delivery Units,Adults and Communities,Other Agencies - Third Party P,90033158,JEWISH CARE," 2,319.44 ",13/11/2017
Delivery Units,Adults and Communities,Other Agencies - Third Party P,90033159,JEWISH CARE," 2,568.84 ",13/11/2017
Delivery Units,Adults and Communities,Other Agencies - Third Party P,90033160,JEWISH CARE," 2,201.86 ",13/11/2017
Delivery Units,Adults and Communities,Other Agencies - Third Party P,90038435,JEWISH CARE," 2,319.44 ",28/11/2017
Delivery Units,Adults and Communities,Other Agencies - Third Party P,90038436,JEWISH CARE,"2,319.44",28/11/2017
Delivery Units,Adults and Communities,Other Agencies - Third Party P,90038437,JEWISH CARE," 2,319.44 ",28/11/2017
Delivery Units,Adults and Communities,Other Agencies - Third Party P,90038438,JEWISH CARE, 168.92 ,28/11/2017
Delivery Units,Adults and Communities,Other Agencies - Third Party P,90038440,JEWISH CARE," 2,568.84 ",28/11/2017
Delivery Units,Adults and Communities,Other Agencies - Third Party P,90038441,JEWISH CARE," 2,568.84 ",28/11/2017
Delivery Units,Adults and Communities,Other Agencies - Third Party P,90038442,JEWISH CARE," 2,568.84 ",28/11/2017
Delivery Units,Adults and Communities,Other Agencies - Third Party P,90038443,JEWISH CARE, 187.05 ,28/11/2017
Delivery Units,Adults and Communities,Other Agencies - Third Party P,90035388,KARUNA MANOR," 4,071.43 ",16/11/2017
Delivery Units,Adults and Communities,Other Agencies - Third Party P,90037629,LADY OF THE VALE NURSING HOME," 1,457.14 ",27/11/2017
Delivery Units,Adults and Communities,Other Agencies - Third Party P,90037630,LADY OF THE VALE NURSING HOME," 2,657.14 ",27/11/2017
Delivery Units,Adults and Communities,Other Agencies - Third Party P,90037631,LADY OF THE VALE NURSING HOME," 2,571.43 ",27/11/2017
Delivery Units,Adults and Communities,Other Agencies - Third Party P,90032263,LIFESTYLE CARE 2011 PLC,76.36,09/11/2017
Delivery Units,Adults and Communities,Other Agencies - Third Party P,90035715,LIFESTYLE CARE PLC," 2,655.55 ",16/11/2017
Delivery Units,Adults and Communities,Other Agencies - Third Party P,90035716,LIFESTYLE CARE PLC,"2,655.55",16/11/2017
Delivery Units,Adults and Communities,Other Agencies - Third Party P,90035717,LIFESTYLE CARE PLC," 8,043.96 ",16/11/2017
Delivery Units,Adults and Communities,Other Agencies - Third Party P,90031176,MEERA NURSING HOME LIMITED," 2,814.13 ",07/11/2017
Delivery Units,Adults and Communities,Other Agencies - Third Party P,90035405,MEERA NURSING HOME LIMITED," 2,366.79 ",16/11/2017
Delivery Units,Adults and Communities,Other Agencies - Third Party P,90035406,MEERA NURSING HOME LIMITED,"2,366.79",16/11/2017
Delivery Units,Adults and Communities,Other Agencies - Third Party P,90035407,MEERA NURSING HOME LIMITED,"2,621.27",16/11/2017
Delivery Units,Adults and Communities,Other Agencies - Third Party P,90035408,MEERA NURSING HOME LIMITED,"2,366.79",16/11/2017
Delivery Units,Adults and Communities,Other Agencies - Third Party P,90035409,MEERA NURSING HOME LIMITED,"2,366.79",16/11/2017
Delivery Units,Adults and Communities,Other Agencies - Third Party P,90035410,MEERA NURSING HOME LIMITED,"2,621.27",16/11/2017
Delivery Units,Adults and Communities,Other Agencies - Third Party P,90035421,MEERA NURSING HOME LIMITED," 2,814.13 ",16/11/2017
Delivery Units,Adults and Communities,Other Agencies - Third Party P,90035432,NEWCENTURY CARE LTD,"2,569.89",16/11/2017
Delivery Units,Adults and Communities,Other Agencies - Third Party P,90035434,NEWCENTURY CARE LTD," 2,569.89 ",16/11/2017
Delivery Units,Adults and Communities,Other Agencies - Third Party P,90035436,NEWCENTURY CARE LTD,"3,642.86",16/11/2017
Delivery Units,Adults and Communities,Other Agencies - Third Party P,90035437,NEWCENTURY CARE LTD,"3,340.86",16/11/2017
Delivery Units,Adults and Communities,Other Agencies - Third Party P,90035438,NEWCENTURY CARE LTD,"3,642.86",16/11/2017
Delivery Units,Adults and Communities,Other Agencies - Third Party P,90035439,NEWCENTURY CARE LTD," 3,016.48 ",16/11/2017
Delivery Units,Adults and Communities,Other Agencies - Third Party P,90035440,NEWCENTURY CARE LTD," 2,398.56 ",16/11/2017
Delivery Units,Adults and Communities,Other Agencies - Third Party P,90031921,NIGHTINGALE HOUSE,"2,900.71",09/11/2017
Delivery Units,Adults and Communities,Other Agencies - Third Party P,90037481,NIGHTINGALE HOUSE," 2,807.14 ",24/11/2017
Delivery Units,Adults and Communities,Other Agencies - Third Party P,90032269,SAGE NURSING HOME,"5,314.29",09/11/2017
Delivery Units,Adults and Communities,Other Agencies - Third Party P,90032272,SAGE NURSING HOME," 2,397.72 ",09/11/2017
Delivery Units,Adults and Communities,Other Agencies - Third Party P,90032273,SAGE NURSING HOME,"2,397.72",09/11/2017
Delivery Units,Adults and Communities,Other Agencies - Third Party P,90032275,SAGE NURSING HOME," 2,788.32 ",09/11/2017
Delivery Units,Adults and Communities,Other Agencies - Third Party P,90032276,SAGE NURSING HOME,"2,517.60",09/11/2017
Delivery Units,Adults and Communities,Other Agencies - Third Party P,90035645,SANCTUARY CARE LTD," 2,490.81 ",16/11/2017
Delivery Units,Adults and Communities,Other Agencies - Third Party P,90035423,SONESTA NURSING HOME LTD.,"2,320.37",16/11/2017
Delivery Units,Adults and Communities,Other Agencies - Third Party P,90035425,SONESTA NURSING HOME LTD.," 2,569.89 ",16/11/2017
Delivery Units,Adults and Communities,Other Agencies - Third Party P,90031984,ST ANNS HOME-LITTLE SISTERS OF THE POOR," 2,397.73 ",09/11/2017
Delivery Units,Adults and Communities,Other Agencies - Third Party P,90029933,THE LEONARD CHESHIRE FOUNDATION," 6,321.43 ",02/11/2017
Delivery Units,Adults and Communities,Other Agencies - Third Party P,90031191,THE LEONARD CHESHIRE FOUNDATION," 6,532.14 ",24/11/2017
Delivery Units,Adults and Communities,Other Agencies - Third Party P,90031906,VICTORIA CARE CENTRE," 2,958.95 ",09/11/2017
Delivery Units,Adults and Communities,Other Agencies - Third Party P,90029936,WESTGATE HOUSE CARE CENTRE,"3,605.57",03/11/2017
Delivery Units,Adults and Communities,Other Agencies - Third Party P,90035431,WESTGATE HOUSE CARE CENTRE," 3,605.57 ",17/11/2017
Delivery Units,Adults and Communities,Other Agencies - Third Party P,90035122,WESTMINSTER HEALTH CARE LTD," 2,249.27 ",15/11/2017
Delivery Units,Adults and Communities,Other Agencies - Third Party P,90035123,WESTMINSTER HEALTH CARE LTD," 2,232.94 ",15/11/2017
Delivery Units,Adults and Communities,Other Agencies - Third Party P,90035124,WESTMINSTER HEALTH CARE LTD," 2,249.27 ",15/11/2017
Delivery Units,Adults and Communities,Other Agencies - Third Party P,90035625,WESTMINSTER HEALTH CARE LTD," 2,324.25 ",16/11/2017
Delivery Units,Adults and Communities,Other Agencies - Third Party P,90035626,WESTMINSTER HEALTH CARE LTD," 2,307.37 ",16/11/2017
Delivery Units,Adults and Communities,Other Agencies - Third Party P,90035627,WESTMINSTER HEALTH CARE LTD,"2,324.25",16/11/2017
Delivery Units,Adults and Communities,Other Agencies - Third Party P,90035734,WESTMINSTER HEALTH CARE LTD," 2,318.93 ",16/11/2017
Delivery Units,Adults and Communities,Other Agencies - Third Party P,90031911,BUPA CARE HOMES,"(2,356.00)",15/11/2017
Delivery Units,Adults and Communities,Other Agencies - Third Party P,90031864,AARANDALE LODGE," 2,600.00 ",09/11/2017
Delivery Units,Adults and Communities,Other Agencies - Third Party P,90033078,AARON COURT CARE HOME,"2,144.91",13/11/2017
Delivery Units,Adults and Communities,Other Agencies - Third Party P,90034110,ABBEY RAVENSCROFT PARK NURSING HOME," 2,571.43 ",13/11/2017
Delivery Units,Adults and Communities,Other Agencies - Third Party P,90031188,ALEXANDRA HOUSE (RUNWOOD HOMES)," 2,262.69 ",07/11/2017
Delivery Units,Adults and Communities,Other Agencies - Third Party P,90031845,ANASTASIA LODGE," 3,000.00 ",09/11/2017
Delivery Units,Adults and Communities,Other Agencies - Third Party P,90031846,ANASTASIA LODGE," 2,800.00 ",09/11/2017
Delivery Units,Adults and Communities,Other Agencies - Third Party P,90031298,ANGEL HEALTHCARE LTD - GLENMUIR HOUSE,"2,211.72",07/11/2017
Delivery Units,Adults and Communities,Other Agencies - Third Party P,90035638,APPLE TREE COURT CARE HOME," 2,369.79 ",16/11/2017
Delivery Units,Adults and Communities,Other Agencies - Third Party P,90035639,APPLE TREE COURT CARE HOME, 457.14 ,16/11/2017
Delivery Units,Adults and Communities,Other Agencies - Third Party P,90035641,APPLE TREE COURT CARE HOME," 2,340.04 ",16/11/2017
Delivery Units,Adults and Communities,Other Agencies - Third Party P,90032249,ASHFIELDS RESIDENTIAL CARE HOME,"2,369.79",09/11/2017
Delivery Units,Adults and Communities,Other Agencies - Third Party P,90032250,ASHFIELDS RESIDENTIAL CARE HOME,"2,369.79",09/11/2017
Delivery Units,Adults and Communities,Other Agencies - Third Party P,90032251,ASHFIELDS RESIDENTIAL CARE HOME," 1,026.91 ",09/11/2017
Delivery Units,Adults and Communities,Other Agencies - Third Party P,90032252,ASHFIELDS RESIDENTIAL CARE HOME," 2,369.79 ",09/11/2017
Delivery Units,Adults and Communities,Other Agencies - Third Party P,90032253,ASHFIELDS RESIDENTIAL CARE HOME,"2,369.79",09/11/2017
Delivery Units,Adults and Communities,Other Agencies - Third Party P,90032255,ASHFIELDS RESIDENTIAL CARE HOME,"2,369.79",09/11/2017
Delivery Units,Adults and Communities,Other Agencies - Third Party P,90032257,ASHFIELDS RESIDENTIAL CARE HOME," 2,176.71 ",09/11/2017
Delivery Units,Adults and Communities,Other Agencies - Third Party P,90037143,ASHTON LODGE CARE CENTRE," 3,295.19 ",22/11/2017
Delivery Units,Adults and Communities,Other Agencies - Third Party P,90037145,ASHTON LODGE CARE CENTRE," 2,538.04 ",22/11/2017
Delivery Units,Adults and Communities,Other Agencies - Third Party P,90039010,AUTUMN GARDENS,"2,880.00",28/11/2017
Delivery Units,Adults and Communities,Other Agencies - Third Party P,90039013,AUTUMN GARDENS,"3,160.00",28/11/2017
Delivery Units,Adults and Communities,Other Agencies - Third Party P,90038997,B & M CARE,"2,878.57",28/11/2017
Delivery Units,Adults and Communities,Other Agencies - Third Party P,90031863,BIRCHWOOD GRANGE CARE HOME," 2,571.43 ",09/11/2017
Delivery Units,Adults and Communities,Other Agencies - Third Party P,90035394,BIRCHWOOD GRANGE CARE HOME," 2,571.43 ",16/11/2017
Delivery Units,Adults and Communities,Other Agencies - Third Party P,90031183,BUPA CARE HOMES," 2,314.24 ",09/11/2017
Delivery Units,Adults and Communities,Other Agencies - Third Party P,90031184,BUPA CARE HOMES,"2,448.78",09/11/2017
Delivery Units,Adults and Communities,Other Agencies - Third Party P,90031185,BUPA CARE HOMES,"2,314.24",09/11/2017
Delivery Units,Adults and Communities,Other Agencies - Third Party P,90031909,BUPA CARE HOMES," 3,007.40 ",15/11/2017
Delivery Units,Adults and Communities,Other Agencies - Third Party P,90035103,BUPA CARE HOMES,"2,437.24",15/11/2017
Delivery Units,Adults and Communities,Other Agencies - Third Party P,90038430,BUPA NURSING HOMES LTD - ARKLEY," 2,089.68 ",28/11/2017
Delivery Units,Adults and Communities,Other Agencies - Third Party P,90035089,CARLTON COURT (TLC GROUP),"2,176.89",15/11/2017
Delivery Units,Adults and Communities,Other Agencies - Third Party P,90031880,CATHERINE LODGE,"2,211.80",15/11/2017
Delivery Units,Adults and Communities,Other Agencies - Third Party P,90031882,CATHERINE LODGE,"2,211.80",15/11/2017
Delivery Units,Adults and Communities,Other Agencies - Third Party P,90031883,CATHERINE LODGE,"2,920.00",15/11/2017
Delivery Units,Adults and Communities,Other Agencies - Third Party P,90031884,CATHERINE LODGE," 2,211.80 ",15/11/2017
Delivery Units,Adults and Communities,Other Agencies - Third Party P,90031886,CATHERINE LODGE," 3,040.00 ",09/11/2017
Delivery Units,Adults and Communities,Other Agencies - Third Party P,90039005,CATHERINE LODGE,"3,040.00",28/11/2017
Delivery Units,Adults and Communities,Other Agencies - Third Party P,90031835,CLOVELLY HOUSE RESID. HOME LTD,"2,600.00",09/11/2017
Delivery Units,Adults and Communities,Other Agencies - Third Party P,90031837,CLOVELLY HOUSE RESID. HOME LTD," 2,211.80 ",09/11/2017
Delivery Units,Adults and Communities,Other Agencies - Third Party P,90031838,CLOVELLY HOUSE RESID. HOME LTD," 2,600.00 ",09/11/2017
Delivery Units,Adults and Communities,Other Agencies - Third Party P,90031839,CLOVELLY HOUSE RESID. HOME LTD," 2,211.80 ",09/11/2017
Delivery Units,Adults and Communities,Other Agencies - Third Party P,90031842,CLOVELLY HOUSE RESID. HOME LTD," 2,780.00 ",09/11/2017
Delivery Units,Adults and Communities,Other Agencies - Third Party P,90031843,CLOVELLY HOUSE RESID. HOME LTD," 2,600.00 ",09/11/2017
Delivery Units,Adults and Communities,Other Agencies - Third Party P,90031844,CLOVELLY HOUSE RESID. HOME LTD,"2,780.00",09/11/2017
Delivery Units,Adults and Communities,Other Agencies - Third Party P,90032560,DELAMER HOUSE,"2,357.14",10/11/2017
Delivery Units,Adults and Communities,Other Agencies - Third Party P,90035376,DOWNLANDS CARE LTD," 2,012.10 ",16/11/2017
Delivery Units,Adults and Communities,Other Agencies - Third Party P,90031345,EASTSIDE HOUSE RESIDENTIAL CARE HOM," 3,080.00 ",07/11/2017
Delivery Units,Adults and Communities,Other Agencies - Third Party P,90032548,ELEANOR PALMER TRUST NO 2 A/C.," 2,546.74 ",10/11/2017
Delivery Units,Adults and Communities,Other Agencies - Third Party P,90032549,ELEANOR PALMER TRUST NO 2 A/C.,"2,546.74",10/11/2017
Delivery Units,Adults and Communities,Other Agencies - Third Party P,90032550,ELEANOR PALMER TRUST NO 2 A/C.," 2,339.44 ",10/11/2017
Delivery Units,Adults and Communities,Other Agencies - Third Party P,90032551,ELEANOR PALMER TRUST NO 2 A/C.," 2,339.44 ",10/11/2017
Delivery Units,Adults and Communities,Other Agencies - Third Party P,90032552,ELEANOR PALMER TRUST NO 2 A/C.,"2,546.74",10/11/2017
Delivery Units,Adults and Communities,Other Agencies - Third Party P,90032553,ELEANOR PALMER TRUST NO 2 A/C.," 2,546.74 ",10/11/2017
Delivery Units,Adults and Communities,Other Agencies - Third Party P,90032555,ELEANOR PALMER TRUST NO 2 A/C.," 2,339.44 ",10/11/2017
Delivery Units,Adults and Communities,Other Agencies - Third Party P,90032556,ELEANOR PALMER TRUST NO 2 A/C.,328.61,10/11/2017
Delivery Units,Adults and Communities,Other Agencies - Third Party P,90032558,ELEANOR PALMER TRUST NO 2 A/C.,"2,546.74",10/11/2017
Delivery Units,Adults and Communities,Other Agencies - Third Party P,90032561,ELEANOR PALMER TRUST NO 2 A/C.," 2,464.59 ",10/11/2017
Delivery Units,Adults and Communities,Other Agencies - Third Party P,90032562,ELEANOR PALMER TRUST NO 2 A/C.," 2,464.59 ",10/11/2017
Delivery Units,Adults and Communities,Other Agencies - Third Party P,90032563,ELEANOR PALMER TRUST NO 2 A/C.," 2,263.97 ",10/11/2017
Delivery Units,Adults and Communities,Other Agencies - Third Party P,90032564,ELEANOR PALMER TRUST NO 2 A/C.," 2,263.97 ",10/11/2017
Delivery Units,Adults and Communities,Other Agencies - Third Party P,90032565,ELEANOR PALMER TRUST NO 2 A/C.," 2,464.59 ",10/11/2017
Delivery Units,Adults and Communities,Other Agencies - Third Party P,90032566,ELEANOR PALMER TRUST NO 2 A/C.,"2,464.59",10/11/2017
Delivery Units,Adults and Communities,Other Agencies - Third Party P,90032568,ELEANOR PALMER TRUST NO 2 A/C.,"2,263.97",10/11/2017
Delivery Units,Adults and Communities,Other Agencies - Third Party P,90032570,ELEANOR PALMER TRUST NO 2 A/C.,"2,263.97",10/11/2017
Delivery Units,Adults and Communities,Other Agencies - Third Party P,90032571,ELEANOR PALMER TRUST NO 2 A/C.," 2,464.59 ",10/11/2017
Delivery Units,Adults and Communities,Other Agencies - Third Party P,90031875,ELIZA HOUSE," 2,448.78 ",09/11/2017
Delivery Units,Adults and Communities,Other Agencies - Third Party P,90031876,ELIZA HOUSE," 2,369.79 ",09/11/2017
Delivery Units,Adults and Communities,Other Agencies - Third Party P,90031877,ELIZA HOUSE," 2,448.78 ",09/11/2017
Delivery Units,Adults and Communities,Other Agencies - Third Party P,90035100,ELIZA HOUSE," 2,369.79 ",15/11/2017
Delivery Units,Adults and Communities,Other Agencies - Third Party P,90031945,ELM PARK LODGE," 3,170.86 ",09/11/2017
Delivery Units,Adults and Communities,Other Agencies - Third Party P,30172842,ELMHURST RESIDENTIAL HOME," 10,035.17 ",22/11/2017
Delivery Units,Adults and Communities,Other Agencies - Third Party P,30172843,ELMHURST RESIDENTIAL HOME," 18,390.01 ",22/11/2017
Delivery Units,Adults and Communities,Other Agencies - Third Party P,90031878,FOUR SEASONS HEALTH CARE,"2,371.57",09/11/2017
Delivery Units,Adults and Communities,Other Agencies - Third Party P,30172844,FREMANTLE TRUST, 743.00 ,22/11/2017
Delivery Units,Adults and Communities,Other Agencies - Third Party P,30172846,FREMANTLE TRUST," 3,010.64 ",22/11/2017
Delivery Units,Adults and Communities,Other Agencies - Third Party P,90035723,FREMANTLE TRUST,"2,653.72",16/11/2017
Delivery Units,Adults and Communities,Other Agencies - Third Party P,90035724,FREMANTLE TRUST," 2,284.00 ",16/11/2017
Delivery Units,Adults and Communities,Other Agencies - Third Party P,90038897,FREMANTLE TRUST,"2,096.00",28/11/2017
Delivery Units,Adults and Communities,Other Agencies - Third Party P,90038898,FREMANTLE TRUST," 2,096.00 ",28/11/2017
Delivery Units,Adults and Communities,Other Agencies - Third Party P,90038900,FREMANTLE TRUST,"2,096.00",28/11/2017
Delivery Units,Adults and Communities,Other Agencies - Third Party P,90038902,FREMANTLE TRUST," 2,096.00 ",28/11/2017
Delivery Units,Adults and Communities,Other Agencies - Third Party P,90038903,FREMANTLE TRUST," 2,096.00 ",28/11/2017
Delivery Units,Adults and Communities,Other Agencies - Third Party P,90038904,FREMANTLE TRUST,"2,096.00",28/11/2017
Delivery Units,Adults and Communities,Other Agencies - Third Party P,90038906,FREMANTLE TRUST," 2,096.00 ",28/11/2017
Delivery Units,Adults and Communities,Other Agencies - Third Party P,90038907,FREMANTLE TRUST,"2,096.00",28/11/2017
Delivery Units,Adults and Communities,Other Agencies - Third Party P,90038909,FREMANTLE TRUST," 2,096.00 ",28/11/2017
Delivery Units,Adults and Communities,Other Agencies - Third Party P,90038911,FREMANTLE TRUST,"2,096.00",28/11/2017
Delivery Units,Adults and Communities,Other Agencies - Third Party P,90038912,FREMANTLE TRUST," 2,096.00 ",28/11/2017
Delivery Units,Adults and Communities,Other Agencies - Third Party P,90038913,FREMANTLE TRUST,"2,096.00",28/11/2017
Delivery Units,Adults and Communities,Other Agencies - Third Party P,90038914,FREMANTLE TRUST," 2,096.00 ",28/11/2017
Delivery Units,Adults and Communities,Other Agencies - Third Party P,90038915,FREMANTLE TRUST," 2,284.00 ",28/11/2017
Delivery Units,Adults and Communities,Other Agencies - Third Party P,90038916,FREMANTLE TRUST," 2,284.00 ",28/11/2017
Delivery Units,Adults and Communities,Other Agencies - Third Party P,90038919,FREMANTLE TRUST," 2,096.00 ",28/11/2017
Delivery Units,Adults and Communities,Other Agencies - Third Party P,90038920,FREMANTLE TRUST,"2,096.00",28/11/2017
Delivery Units,Adults and Communities,Other Agencies - Third Party P,90038921,FREMANTLE TRUST," 2,284.00 ",28/11/2017
Delivery Units,Adults and Communities,Other Agencies - Third Party P,90038923,FREMANTLE TRUST,"2,284.00",28/11/2017
Delivery Units,Adults and Communities,Other Agencies - Third Party P,90038925,FREMANTLE TRUST," 2,096.00 ",28/11/2017
Delivery Units,Adults and Communities,Other Agencies - Third Party P,90038926,FREMANTLE TRUST,"2,096.00",28/11/2017
Delivery Units,Adults and Communities,Other Agencies - Third Party P,90038927,FREMANTLE TRUST,"2,284.00",28/11/2017
Delivery Units,Adults and Communities,Other Agencies - Third Party P,90038928,FREMANTLE TRUST,"2,096.00",28/11/2017
Delivery Units,Adults and Communities,Other Agencies - Third Party P,90038929,FREMANTLE TRUST,"2,284.00",28/11/2017
Delivery Units,Adults and Communities,Other Agencies - Third Party P,90038930,FREMANTLE TRUST," 2,284.00 ",28/11/2017
Delivery Units,Adults and Communities,Other Agencies - Third Party P,90038931,FREMANTLE TRUST,"2,096.00",28/11/2017
Delivery Units,Adults and Communities,Other Agencies - Third Party P,90038932,FREMANTLE TRUST,"2,284.00",28/11/2017
Delivery Units,Adults and Communities,Other Agencies - Third Party P,90038933,FREMANTLE TRUST,"2,096.00",28/11/2017
Delivery Units,Adults and Communities,Other Agencies - Third Party P,90038934,FREMANTLE TRUST," 2,284.00 ",28/11/2017
Delivery Units,Adults and Communities,Other Agencies - Third Party P,90038935,FREMANTLE TRUST,"2,284.00",28/11/2017
Delivery Units,Adults and Communities,Other Agencies - Third Party P,90038936,FREMANTLE TRUST," 2,284.00 ",28/11/2017
Delivery Units,Adults and Communities,Other Agencies - Third Party P,90038940,FREMANTLE TRUST,"2,284.00",28/11/2017
Delivery Units,Adults and Communities,Other Agencies - Third Party P,90038942,FREMANTLE TRUST," 2,096.00 ",28/11/2017
Delivery Units,Adults and Communities,Other Agencies - Third Party P,90038943,FREMANTLE TRUST," 2,096.00 ",28/11/2017
Delivery Units,Adults and Communities,Other Agencies - Third Party P,90038944,FREMANTLE TRUST,"1,721.71",28/11/2017
Delivery Units,Adults and Communities,Other Agencies - Third Party P,90038945,FREMANTLE TRUST," 2,096.00 ",28/11/2017
Delivery Units,Adults and Communities,Other Agencies - Third Party P,90038946,FREMANTLE TRUST,"2,284.00",28/11/2017
Delivery Units,Adults and Communities,Other Agencies - Third Party P,90038947,FREMANTLE TRUST," 2,096.00 ",28/11/2017
Delivery Units,Adults and Communities,Other Agencies - Third Party P,90038948,FREMANTLE TRUST," 2,096.00 ",28/11/2017
Delivery Units,Adults and Communities,Other Agencies - Third Party P,90038949,FREMANTLE TRUST,"2,096.00",28/11/2017
Delivery Units,Adults and Communities,Other Agencies - Third Party P,90038950,FREMANTLE TRUST,"2,284.00",28/11/2017
Delivery Units,Adults and Communities,Other Agencies - Third Party P,90038951,FREMANTLE TRUST," 2,096.00 ",28/11/2017
Delivery Units,Adults and Communities,Other Agencies - Third Party P,90038952,FREMANTLE TRUST,"2,284.00",28/11/2017
Delivery Units,Adults and Communities,Other Agencies - Third Party P,90038953,FREMANTLE TRUST," 2,096.00 ",28/11/2017
Delivery Units,Adults and Communities,Other Agencies - Third Party P,90038954,FREMANTLE TRUST,"2,096.00",28/11/2017
Delivery Units,Adults and Communities,Other Agencies - Third Party P,90038955,FREMANTLE TRUST,"2,284.00",28/11/2017
Delivery Units,Adults and Communities,Other Agencies - Third Party P,90038956,FREMANTLE TRUST,"2,284.00",28/11/2017
Delivery Units,Adults and Communities,Other Agencies - Third Party P,90038957,FREMANTLE TRUST," 2,284.00 ",28/11/2017
Delivery Units,Adults and Communities,Other Agencies - Third Party P,90038960,FREMANTLE TRUST," 2,096.00 ",28/11/2017
Delivery Units,Adults and Communities,Other Agencies - Third Party P,90038961,FREMANTLE TRUST,"2,096.00",28/11/2017
Delivery Units,Adults and Communities,Other Agencies - Third Party P,90038962,FREMANTLE TRUST," 2,284.00 ",28/11/2017
Delivery Units,Adults and Communities,Other Agencies - Third Party P,90038963,FREMANTLE TRUST," 2,096.00 ",28/11/2017
Delivery Units,Adults and Communities,Other Agencies - Third Party P,90038964,FREMANTLE TRUST," 2,284.00 ",28/11/2017
Delivery Units,Adults and Communities,Other Agencies - Third Party P,90038966,FREMANTLE TRUST," 2,096.00 ",28/11/2017
Delivery Units,Adults and Communities,Other Agencies - Third Party P,90038967,FREMANTLE TRUST," 2,284.00 ",28/11/2017
Delivery Units,Adults and Communities,Other Agencies - Third Party P,90038971,FREMANTLE TRUST," 2,096.00 ",28/11/2017
Delivery Units,Adults and Communities,Other Agencies - Third Party P,90038973,FREMANTLE TRUST," 2,284.00 ",28/11/2017
Delivery Units,Adults and Communities,Other Agencies - Third Party P,90038974,FREMANTLE TRUST," 2,096.00 ",28/11/2017
Delivery Units,Adults and Communities,Other Agencies - Third Party P,90038975,FREMANTLE TRUST,"2,284.00",28/11/2017
Delivery Units,Adults and Communities,Other Agencies - Third Party P,90038977,FREMANTLE TRUST," 2,284.00 ",28/11/2017
Delivery Units,Adults and Communities,Other Agencies - Third Party P,90038978,FREMANTLE TRUST," 2,284.00 ",28/11/2017
Delivery Units,Adults and Communities,Other Agencies - Third Party P,90038979,FREMANTLE TRUST," 2,284.00 ",28/11/2017
Delivery Units,Adults and Communities,Other Agencies - Third Party P,90038980,FREMANTLE TRUST,"2,096.00",28/11/2017
Delivery Units,Adults and Communities,Other Agencies - Third Party P,90038982,FREMANTLE TRUST,"2,096.00",28/11/2017
Delivery Units,Adults and Communities,Other Agencies - Third Party P,90038983,FREMANTLE TRUST,"2,284.00",28/11/2017
Delivery Units,Adults and Communities,Other Agencies - Third Party P,90038984,FREMANTLE TRUST," 2,284.00 ",28/11/2017
Delivery Units,Adults and Communities,Other Agencies - Third Party P,90038985,FREMANTLE TRUST,"2,096.00",28/11/2017
Delivery Units,Adults and Communities,Other Agencies - Third Party P,90038986,FREMANTLE TRUST," 2,284.00 ",28/11/2017
Delivery Units,Adults and Communities,Other Agencies - Third Party P,90038987,FREMANTLE TRUST," 2,284.00 ",28/11/2017
Delivery Units,Adults and Communities,Other Agencies - Third Party P,90038990,FREMANTLE TRUST,"2,284.00",28/11/2017
Delivery Units,Adults and Communities,Other Agencies - Third Party P,90038991,FREMANTLE TRUST,"2,284.00",28/11/2017
Delivery Units,Adults and Communities,Other Agencies - Third Party P,90038992,FREMANTLE TRUST," 20,556.00 ",28/11/2017
Delivery Units,Adults and Communities,Other Agencies - Third Party P,90038993,FREMANTLE TRUST,"6,288.00",28/11/2017
Delivery Units,Adults and Communities,Other Agencies - Third Party P,90038994,FREMANTLE TRUST, 374.29 ,28/11/2017
Delivery Units,Adults and Communities,Other Agencies - Third Party P,90035079,HALLMARK CARE (KINGS LYNN) LTD," 2,797.07 ",15/11/2017
Delivery Units,Adults and Communities,Other Agencies - Third Party P,90031177,HILTON LODGE LTD.," 4,560.00 ",09/11/2017
Delivery Units,Adults and Communities,Other Agencies - Third Party P,90039020,HILTON LODGE LTD.,"2,480.00",30/11/2017
Delivery Units,Adults and Communities,Other Agencies - Third Party P,90039028,HILTON LODGE LTD.,"2,480.00",30/11/2017
Delivery Units,Adults and Communities,Other Agencies - Third Party P,90039029,HILTON LODGE LTD.," 2,880.00 ",30/11/2017
Delivery Units,Adults and Communities,Other Agencies - Third Party P,30172928,JEWISH CARE," 5,875.73 ",27/11/2017
Delivery Units,Adults and Communities,Other Agencies - Third Party P,30172971,JEWISH CARE," 21,316.32 ",28/11/2017
Delivery Units,Adults and Communities,Other Agencies - Third Party P,90031866,JEWISH CARE,344.98,09/11/2017
Delivery Units,Adults and Communities,Other Agencies - Third Party P,90032572,JEWISH CARE," 2,415.28 ",10/11/2017
Delivery Units,Adults and Communities,Other Agencies - Third Party P,90032573,JEWISH CARE," 2,415.28 ",10/11/2017
Delivery Units,Adults and Communities,Other Agencies - Third Party P,90032574,JEWISH CARE,"2,415.28",10/11/2017
Delivery Units,Adults and Communities,Other Agencies - Third Party P,90032575,JEWISH CARE," 2,415.28 ",10/11/2017
Delivery Units,Adults and Communities,Other Agencies - Third Party P,90032576,JEWISH CARE," 2,415.28 ",10/11/2017
Delivery Units,Adults and Communities,Other Agencies - Third Party P,90032577,JEWISH CARE," 1,207.64 ",10/11/2017
Delivery Units,Adults and Communities,Other Agencies - Third Party P,90032579,JEWISH CARE," 2,415.28 ",10/11/2017
Delivery Units,Adults and Communities,Other Agencies - Third Party P,90032581,JEWISH CARE," 2,415.28 ",10/11/2017
Delivery Units,Adults and Communities,Other Agencies - Third Party P,90032582,JEWISH CARE," 2,415.28 ",10/11/2017
Delivery Units,Adults and Communities,Other Agencies - Third Party P,90032583,JEWISH CARE," 2,218.68 ",10/11/2017
Delivery Units,Adults and Communities,Other Agencies - Third Party P,90032584,JEWISH CARE,"2,415.28",10/11/2017
Delivery Units,Adults and Communities,Other Agencies - Third Party P,90032585,JEWISH CARE," 2,415.28 ",10/11/2017
Delivery Units,Adults and Communities,Other Agencies - Third Party P,90032586,JEWISH CARE," 2,415.28 ",10/11/2017
Delivery Units,Adults and Communities,Other Agencies - Third Party P,90032587,JEWISH CARE,"2,415.28",10/11/2017
Delivery Units,Adults and Communities,Other Agencies - Third Party P,90032589,JEWISH CARE," 2,415.28 ",10/11/2017
Delivery Units,Adults and Communities,Other Agencies - Third Party P,90032591,JEWISH CARE," 2,415.28 ",10/11/2017
Delivery Units,Adults and Communities,Other Agencies - Third Party P,90032592,JEWISH CARE,"2,415.28",10/11/2017
Delivery Units,Adults and Communities,Other Agencies - Third Party P,90032593,JEWISH CARE," 2,218.68 ",10/11/2017
Delivery Units,Adults and Communities,Other Agencies - Third Party P,90032594,JEWISH CARE," 2,415.28 ",10/11/2017
Delivery Units,Adults and Communities,Other Agencies - Third Party P,90032595,JEWISH CARE,"2,415.28",10/11/2017
Delivery Units,Adults and Communities,Other Agencies - Third Party P,90032596,JEWISH CARE,"2,218.68",10/11/2017
Delivery Units,Adults and Communities,Other Agencies - Third Party P,90032597,JEWISH CARE," 2,415.28 ",10/11/2017
Delivery Units,Adults and Communities,Other Agencies - Third Party P,90032599,JEWISH CARE,"2,218.68",10/11/2017
Delivery Units,Adults and Communities,Other Agencies - Third Party P,90032600,JEWISH CARE," 2,415.28 ",10/11/2017
Delivery Units,Adults and Communities,Other Agencies - Third Party P,90032601,JEWISH CARE," 2,218.68 ",10/11/2017
Delivery Units,Adults and Communities,Other Agencies - Third Party P,90032603,JEWISH CARE," 2,415.28 ",10/11/2017
Delivery Units,Adults and Communities,Other Agencies - Third Party P,90032604,JEWISH CARE," 2,415.28 ",10/11/2017
Delivery Units,Adults and Communities,Other Agencies - Third Party P,90033080,JEWISH CARE," 2,415.28 ",13/11/2017
Delivery Units,Adults and Communities,Other Agencies - Third Party P,90033081,JEWISH CARE," 2,218.68 ",13/11/2017
Delivery Units,Adults and Communities,Other Agencies - Third Party P,90033082,JEWISH CARE," 2,218.68 ",13/11/2017
Delivery Units,Adults and Communities,Other Agencies - Third Party P,90033083,JEWISH CARE," 2,218.68 ",13/11/2017
Delivery Units,Adults and Communities,Other Agencies - Third Party P,90033085,JEWISH CARE," 2,415.28 ",13/11/2017
Delivery Units,Adults and Communities,Other Agencies - Third Party P,90033086,JEWISH CARE,"2,415.68",13/11/2017
Delivery Units,Adults and Communities,Other Agencies - Third Party P,90033087,JEWISH CARE," 2,218.68 ",13/11/2017
Delivery Units,Adults and Communities,Other Agencies - Third Party P,90033089,JEWISH CARE," 2,218.68 ",13/11/2017
Delivery Units,Adults and Communities,Other Agencies - Third Party P,90033090,JEWISH CARE," 2,218.68 ",13/11/2017
Delivery Units,Adults and Communities,Other Agencies - Third Party P,90033091,JEWISH CARE,"2,218.68",13/11/2017
Delivery Units,Adults and Communities,Other Agencies - Third Party P,90033092,JEWISH CARE,"2,218.68",13/11/2017
Delivery Units,Adults and Communities,Other Agencies - Third Party P,90033093,JEWISH CARE,"2,218.68",13/11/2017
Delivery Units,Adults and Communities,Other Agencies - Third Party P,90033094,JEWISH CARE,"2,415.28",13/11/2017
Delivery Units,Adults and Communities,Other Agencies - Third Party P,90033095,JEWISH CARE," 2,415.28 ",13/11/2017
Delivery Units,Adults and Communities,Other Agencies - Third Party P,90033097,JEWISH CARE," 2,218.68 ",13/11/2017
Delivery Units,Adults and Communities,Other Agencies - Third Party P,90033099,JEWISH CARE," 2,218.68 ",13/11/2017
Delivery Units,Adults and Communities,Other Agencies - Third Party P,90033100,JEWISH CARE,"2,218.68",13/11/2017
Delivery Units,Adults and Communities,Other Agencies - Third Party P,90033101,JEWISH CARE,"2,218.68",13/11/2017
Delivery Units,Adults and Communities,Other Agencies - Third Party P,90033102,JEWISH CARE,"2,415.28",13/11/2017
Delivery Units,Adults and Communities,Other Agencies - Third Party P,90033103,JEWISH CARE," 2,415.28 ",13/11/2017
Delivery Units,Adults and Communities,Other Agencies - Third Party P,90033104,JEWISH CARE," 2,218.68 ",13/11/2017
Delivery Units,Adults and Communities,Other Agencies - Third Party P,90033105,JEWISH CARE," 4,216.00 ",13/11/2017
Delivery Units,Adults and Communities,Other Agencies - Third Party P,90033106,JEWISH CARE," 2,415.28 ",13/11/2017
Delivery Units,Adults and Communities,Other Agencies - Third Party P,90033107,JEWISH CARE,"2,415.28",13/11/2017
Delivery Units,Adults and Communities,Other Agencies - Third Party P,90033108,JEWISH CARE," 2,218.68 ",13/11/2017
Delivery Units,Adults and Communities,Other Agencies - Third Party P,90033109,JEWISH CARE,"4,508.00",13/11/2017
Delivery Units,Adults and Communities,Other Agencies - Third Party P,90033110,JEWISH CARE,"2,218.68",13/11/2017
Delivery Units,Adults and Communities,Other Agencies - Third Party P,90033111,JEWISH CARE," 2,218.68 ",13/11/2017
Delivery Units,Adults and Communities,Other Agencies - Third Party P,90033112,JEWISH CARE," 1,293.90 ",13/11/2017
Delivery Units,Adults and Communities,Other Agencies - Third Party P,90033113,JEWISH CARE,"2,415.28",13/11/2017
Delivery Units,Adults and Communities,Other Agencies - Third Party P,90033114,JEWISH CARE," 2,156.50 ",13/11/2017
Delivery Units,Adults and Communities,Other Agencies - Third Party P,90033115,JEWISH CARE,"2,218.68",13/11/2017
Delivery Units,Adults and Communities,Other Agencies - Third Party P,90033117,JEWISH CARE," 2,415.28 ",13/11/2017
Delivery Units,Adults and Communities,Other Agencies - Third Party P,90033118,JEWISH CARE,"2,102.00",13/11/2017
Delivery Units,Adults and Communities,Other Agencies - Third Party P,90033122,JEWISH CARE," 2,415.28 ",13/11/2017
Delivery Units,Adults and Communities,Other Agencies - Third Party P,90033123,JEWISH CARE,"2,415.28",13/11/2017
Delivery Units,Adults and Communities,Other Agencies - Third Party P,90033127,JEWISH CARE," 2,415.28 ",13/11/2017
Delivery Units,Adults and Communities,Other Agencies - Third Party P,90033129,JEWISH CARE," 2,415.28 ",13/11/2017
Delivery Units,Adults and Communities,Other Agencies - Third Party P,90033130,JEWISH CARE," 2,415.28 ",13/11/2017
Delivery Units,Adults and Communities,Other Agencies - Third Party P,90033132,JEWISH CARE," 2,415.28 ",13/11/2017
Delivery Units,Adults and Communities,Other Agencies - Third Party P,90033133,JEWISH CARE," 2,415.28 ",13/11/2017
Delivery Units,Adults and Communities,Other Agencies - Third Party P,90033135,JEWISH CARE," 2,415.28 ",13/11/2017
Delivery Units,Adults and Communities,Other Agencies - Third Party P,90033139,JEWISH CARE," 2,568.84 ",13/11/2017
Delivery Units,Adults and Communities,Other Agencies - Third Party P,90037166,JEWISH CARE," 2,415.28 ",22/11/2017
Delivery Units,Adults and Communities,Other Agencies - Third Party P,90037167,JEWISH CARE,"2,322.40",22/11/2017
Delivery Units,Adults and Communities,Other Agencies - Third Party P,90037168,JEWISH CARE,344.98,22/11/2017
Delivery Units,Adults and Communities,Other Agencies - Third Party P,90037508,JEWISH CARE,"8,971.04",24/11/2017
Delivery Units,Adults and Communities,Other Agencies - Third Party P,90037509,JEWISH CARE,"2,415.28",24/11/2017
Delivery Units,Adults and Communities,Other Agencies - Third Party P,90037510,JEWISH CARE," 2,415.28 ",24/11/2017
Delivery Units,Adults and Communities,Other Agencies - Third Party P,90038434,JEWISH CARE,554.67,28/11/2017
Delivery Units,Adults and Communities,Other Agencies - Third Party P,90038439,JEWISH CARE,"2,415.28",28/11/2017
Delivery Units,Adults and Communities,Other Agencies - Third Party P,90038444,JEWISH CARE,776.34,28/11/2017
Delivery Units,Adults and Communities,Other Agencies - Third Party P,90035387,KARUNA MANOR,"3,857.14",16/11/2017
Delivery Units,Adults and Communities,Other Agencies - Third Party P,90035389,KARUNA MANOR,"3,981.43",16/11/2017
Delivery Units,Adults and Communities,Other Agencies - Third Party P,90031917,LEWIS.W.HAMMERSON MEMORIAL HOME,"2,387.35",09/11/2017
Delivery Units,Adults and Communities,Other Agencies - Third Party P,90031919,LEWIS.W.HAMMERSON MEMORIAL HOME,"2,387.35",09/11/2017
Delivery Units,Adults and Communities,Other Agencies - Third Party P,90031920,LEWIS.W.HAMMERSON MEMORIAL HOME,"2,387.35",09/11/2017
Delivery Units,Adults and Communities,Other Agencies - Third Party P,90037482,LEWIS.W.HAMMERSON MEMORIAL HOME,"2,310.34",24/11/2017
Delivery Units,Adults and Communities,Other Agencies - Third Party P,90037484,LEWIS.W.HAMMERSON MEMORIAL HOME," 2,310.34 ",24/11/2017
Delivery Units,Adults and Communities,Other Agencies - Third Party P,90037485,LEWIS.W.HAMMERSON MEMORIAL HOME,"2,310.34",24/11/2017
Delivery Units,Adults and Communities,Other Agencies - Third Party P,90035110,LIVABILITY,"2,400.00",15/11/2017
Delivery Units,Adults and Communities,Other Agencies - Third Party P,90039004,MADELAYNE COURT," 2,144.91 ",28/11/2017
Delivery Units,Adults and Communities,Other Agencies - Third Party P,90031832,METHODIST HOMES FOR THE AGED,"2,001.92",09/11/2017
Delivery Units,Adults and Communities,Other Agencies - Third Party P,90031833,METHODIST HOMES FOR THE AGED," 2,631.76 ",09/11/2017
Delivery Units,Adults and Communities,Other Agencies - Third Party P,90029956,NAZARETH HOUSE," 1,233.57 ",02/11/2017
Delivery Units,Adults and Communities,Other Agencies - Third Party P,90029957,NAZARETH HOUSE,"1,523.82",02/11/2017
Delivery Units,Adults and Communities,Other Agencies - Third Party P,90031299,NAZARETH HOUSE," 2,211.80 ",07/11/2017
Delivery Units,Adults and Communities,Other Agencies - Third Party P,90031300,NAZARETH HOUSE," 2,031.76 ",07/11/2017
Delivery Units,Adults and Communities,Other Agencies - Third Party P,90031301,NAZARETH HOUSE,"2,031.76",07/11/2017
Delivery Units,Adults and Communities,Other Agencies - Third Party P,90031302,NAZARETH HOUSE," 2,211.80 ",07/11/2017
Delivery Units,Adults and Communities,Other Agencies - Third Party P,90031303,NAZARETH HOUSE," 2,650.40 ",07/11/2017
Delivery Units,Adults and Communities,Other Agencies - Third Party P,90031305,NAZARETH HOUSE," 2,031.76 ",07/11/2017
Delivery Units,Adults and Communities,Other Agencies - Third Party P,90031306,NAZARETH HOUSE," 2,211.80 ",07/11/2017
Delivery Units,Adults and Communities,Other Agencies - Third Party P,90031307,NAZARETH HOUSE," 2,031.76 ",07/11/2017
Delivery Units,Adults and Communities,Other Agencies - Third Party P,90031308,NAZARETH HOUSE," 2,031.76 ",07/11/2017
Delivery Units,Adults and Communities,Other Agencies - Third Party P,90031309,NAZARETH HOUSE,"3,036.00",07/11/2017
Delivery Units,Adults and Communities,Other Agencies - Third Party P,90031310,NAZARETH HOUSE,"2,031.76",07/11/2017
Delivery Units,Adults and Communities,Other Agencies - Third Party P,90031311,NAZARETH HOUSE," 2,031.76 ",07/11/2017
Delivery Units,Adults and Communities,Other Agencies - Third Party P,90031312,NAZARETH HOUSE," 2,031.76 ",07/11/2017
Delivery Units,Adults and Communities,Other Agencies - Third Party P,90035104,NAZARETH HOUSE,"2,144.91",15/11/2017
Delivery Units,Adults and Communities,Other Agencies - Third Party P,90029947,QUANTUM CARE LIMITED," 2,448.78 ",02/11/2017
Delivery Units,Adults and Communities,Other Agencies - Third Party P,90037173,QUANTUM CARE LIMITED," 2,448.78 ",22/11/2017
Delivery Units,Adults and Communities,Other Agencies - Third Party P,90037170,ROLAND RESIDENTIAL CARE HOMES LTD,"3,559.37",22/11/2017
Delivery Units,Adults and Communities,Other Agencies - Third Party P,80013544,ROSEACRES CARE HOME LIMITED," 1,968.14 ",07/11/2017
Delivery Units,Adults and Communities,Other Agencies - Third Party P,90032271,SAGE NURSING HOME," 2,249.45 ",09/11/2017
Delivery Units,Adults and Communities,Other Agencies - Third Party P,90032274,SAGE NURSING HOME," 2,657.14 ",09/11/2017
Delivery Units,Adults and Communities,Other Agencies - Third Party P,90032268,SCIMITAR CARE HOTELS PLC," 3,600.00 ",09/11/2017
Delivery Units,Adults and Communities,Other Agencies - Third Party P,90035670,SCIMITAR CARE HOTELS PLC," 3,857.14 ",30/11/2017
Delivery Units,Adults and Communities,Other Agencies - Third Party P,90035671,SCIMITAR CARE HOTELS PLC," 3,310.71 ",30/11/2017
Delivery Units,Adults and Communities,Other Agencies - Third Party P,90031867,SEAFORTH LODGE," 2,369.79 ",15/11/2017
Delivery Units,Adults and Communities,Other Agencies - Third Party P,90031868,SEAFORTH LODGE,"2,571.43",15/11/2017
Delivery Units,Adults and Communities,Other Agencies - Third Party P,90031869,SEAFORTH LODGE," 2,369.79 ",15/11/2017
Delivery Units,Adults and Communities,Other Agencies - Third Party P,90031870,SEAFORTH LODGE," 2,369.79 ",15/11/2017
Delivery Units,Adults and Communities,Other Agencies - Third Party P,90031872,SEAFORTH LODGE,"2,369.79",15/11/2017
Delivery Units,Adults and Communities,Other Agencies - Third Party P,90031873,SEAFORTH LODGE," 2,369.79 ",15/11/2017
Delivery Units,Adults and Communities,Other Agencies - Third Party P,90035428,SEVA CARE HOME," 2,144.91 ",16/11/2017
Delivery Units,Adults and Communities,Other Agencies - Third Party P,90035429,SEVA CARE HOME," 2,144.91 ",16/11/2017
Delivery Units,Adults and Communities,Other Agencies - Third Party P,90035384,SONNET CARE HOMES (ESSEX) LTD," 4,714.29 ",30/11/2017
Delivery Units,Adults and Communities,Other Agencies - Third Party P,90029960,SPRINGDENE," 3,321.43 ",02/11/2017
Delivery Units,Adults and Communities,Other Agencies - Third Party P,90029961,SPRINGVIEW," 3,100.00 ",02/11/2017
Delivery Units,Adults and Communities,Other Agencies - Third Party P,90035412,SUNRIDGE HOUSING ASSOCIATION LTD," 2,893.14 ",16/11/2017
Delivery Units,Adults and Communities,Other Agencies - Third Party P,90035413,SUNRIDGE HOUSING ASSOCIATION LTD," 2,808.77 ",16/11/2017
Delivery Units,Adults and Communities,Other Agencies - Third Party P,90035684,SYDMAR LODGE," 2,342.23 ",16/11/2017
Delivery Units,Adults and Communities,Other Agencies - Third Party P,90035685,SYDMAR LODGE," 2,808.00 ",16/11/2017
Delivery Units,Adults and Communities,Other Agencies - Third Party P,90035686,SYDMAR LODGE,"2,377.16",16/11/2017
Delivery Units,Adults and Communities,Other Agencies - Third Party P,90035687,SYDMAR LODGE,"2,377.16",16/11/2017
Delivery Units,Adults and Communities,Other Agencies - Third Party P,90035688,SYDMAR LODGE," 2,587.80 ",16/11/2017
Delivery Units,Adults and Communities,Other Agencies - Third Party P,90035689,SYDMAR LODGE,"2,377.16",16/11/2017
Delivery Units,Adults and Communities,Other Agencies - Third Party P,90035690,SYDMAR LODGE," 2,377.16 ",16/11/2017
Delivery Units,Adults and Communities,Other Agencies - Third Party P,90035691,SYDMAR LODGE," 3,042.00 ",16/11/2017
Delivery Units,Adults and Communities,Other Agencies - Third Party P,90033077,TENTERDEN HOUSE,"3,829.84",15/11/2017
Delivery Units,Adults and Communities,Other Agencies - Third Party P,90031314,THE CHRISTIAN CARE TRUST," 2,211.80 ",07/11/2017
Delivery Units,Adults and Communities,Other Agencies - Third Party P,90031349,THE CHRISTIAN CARE TRUST," 2,031.76 ",07/11/2017
Delivery Units,Adults and Communities,Other Agencies - Third Party P,90037169,THE CHRISTIAN CARE TRUST," 2,211.80 ",22/11/2017
Delivery Units,Adults and Communities,Other Agencies - Third Party P,90031848,THE GRANGE," 2,300.28 ",09/11/2017
Delivery Units,Adults and Communities,Other Agencies - Third Party P,90031850,THE GRANGE," 2,496.00 ",09/11/2017
Delivery Units,Adults and Communities,Other Agencies - Third Party P,90039006,THE KINGSDOWNE SOCIETY," 2,539.70 ",28/11/2017
Delivery Units,Adults and Communities,Other Agencies - Third Party P,90037497,THE LEONARD CHESHIRE FOUNDATION," 3,032.69 ",24/11/2017
Delivery Units,Adults and Communities,Other Agencies - Third Party P,90037498,THE LEONARD CHESHIRE FOUNDATION," 2,739.20 ",24/11/2017
Delivery Units,Adults and Communities,Other Agencies - Third Party P,90037502,THE LEONARD CHESHIRE FOUNDATION,"3,039.73",24/11/2017
Delivery Units,Adults and Communities,Other Agencies - Third Party P,90031923,THE LIMES RESIDENTIAL HOME," 2,176.89 ",16/11/2017
Delivery Units,Adults and Communities,Other Agencies - Third Party P,90031924,THE LIMES RESIDENTIAL HOME," 2,369.79 ",16/11/2017
Delivery Units,Adults and Communities,Other Agencies - Third Party P,90031926,THE LIMES RESIDENTIAL HOME," 2,176.89 ",16/11/2017
Delivery Units,Adults and Communities,Other Agencies - Third Party P,90031927,THE LIMES RESIDENTIAL HOME,"2,176.89",16/11/2017
Delivery Units,Adults and Communities,Other Agencies - Third Party P,90031929,THE LIMES RESIDENTIAL HOME," 2,785.71 ",16/11/2017
Delivery Units,Adults and Communities,Other Agencies - Third Party P,90031930,THE LIMES RESIDENTIAL HOME," 2,369.79 ",16/11/2017
Delivery Units,Adults and Communities,Other Agencies - Third Party P,90031931,THE LIMES RESIDENTIAL HOME," 2,369.79 ",16/11/2017
Delivery Units,Adults and Communities,Other Agencies - Third Party P,90031932,THE LIMES RESIDENTIAL HOME,"2,369.79",16/11/2017
Delivery Units,Adults and Communities,Other Agencies - Third Party P,90031933,THE LIMES RESIDENTIAL HOME,"2,369.79",16/11/2017
Delivery Units,Adults and Communities,Other Agencies - Third Party P,90031934,THE LIMES RESIDENTIAL HOME,"2,176.89",16/11/2017
Delivery Units,Adults and Communities,Other Agencies - Third Party P,90035737,THE RED HOUSE," 2,094.52 ",16/11/2017
Delivery Units,Adults and Communities,Other Agencies - Third Party P,90032244,THE WINDMILL CARE HOME,"1,872.40",09/11/2017
Delivery Units,Adults and Communities,Other Agencies - Third Party P,90037628,THE WINDMILL CARE HOME," 1,872.40 ",27/11/2017
Delivery Units,Adults and Communities,Other Agencies - Third Party P,90031852,THE WOODSIDE HOME,"2,278.16",09/11/2017
Delivery Units,Adults and Communities,Other Agencies - Third Party P,90031854,THE WOODSIDE HOME," 2,092.72 ",09/11/2017
Delivery Units,Adults and Communities,Other Agencies - Third Party P,90031855,THE WOODSIDE HOME,"2,278.16",09/11/2017
Delivery Units,Adults and Communities,Other Agencies - Third Party P,90031856,THE WOODSIDE HOME," 2,092.72 ",09/11/2017
Delivery Units,Adults and Communities,Other Agencies - Third Party P,90031857,THE WOODSIDE HOME,896.88,09/11/2017
Delivery Units,Adults and Communities,Other Agencies - Third Party P,90031858,THE WOODSIDE HOME,"2,278.16",09/11/2017
Delivery Units,Adults and Communities,Other Agencies - Third Party P,90031859,THE WOODSIDE HOME,"2,092.72",09/11/2017
Delivery Units,Adults and Communities,Other Agencies - Third Party P,90031860,THE WOODSIDE HOME,"2,092.72",09/11/2017
Delivery Units,Adults and Communities,Other Agencies - Third Party P,90031861,THE WOODSIDE HOME,"2,092.72",09/11/2017
Delivery Units,Adults and Communities,Other Agencies - Third Party P,90037174,TORRINGTON HOMES," 2,448.69 ",22/11/2017
Delivery Units,Adults and Communities,Other Agencies - Third Party P,90037175,TORRINGTON HOMES,"2,369.78",22/11/2017
Delivery Units,Adults and Communities,Other Agencies - Third Party P,90037176,TORRINGTON HOMES," 2,249.45 ",22/11/2017
Delivery Units,Adults and Communities,Other Agencies - Third Party P,90037177,TORRINGTON HOMES," 2,176.88 ",22/11/2017
Delivery Units,Adults and Communities,Other Agencies - Third Party P,90037178,TORRINGTON HOMES," 2,448.78 ",22/11/2017
Delivery Units,Adults and Communities,Other Agencies - Third Party P,90037179,TORRINGTON HOMES," 2,369.78 ",22/11/2017
Delivery Units,Adults and Communities,Other Agencies - Third Party P,90037180,TORRINGTON HOMES," 1,737.84 ",22/11/2017
Delivery Units,Adults and Communities,Other Agencies - Third Party P,90037181,TORRINGTON HOMES," 2,448.78 ",22/11/2017
Delivery Units,Adults and Communities,Other Agencies - Third Party P,90037182,TORRINGTON HOMES,"2,369.78",22/11/2017
Delivery Units,Adults and Communities,Other Agencies - Third Party P,90037183,TORRINGTON HOMES," 2,448.78 ",22/11/2017
Delivery Units,Adults and Communities,Other Agencies - Third Party P,90037184,TORRINGTON HOMES," 2,369.78 ",22/11/2017
Delivery Units,Adults and Communities,Other Agencies - Third Party P,90031966,VENTRY RESIDENTIAL CARE LTD," 2,211.80 ",09/11/2017
Delivery Units,Adults and Communities,Other Agencies - Third Party P,90029339,VILLA SCALABRINI," 1,049.29 ",07/11/2017
Delivery Units,Adults and Communities,Other Agencies - Third Party P,90029340,VILLA SCALABRINI," 2,502.14 ",07/11/2017
Delivery Units,Adults and Communities,Other Agencies - Third Party P,90035391,VILLA SCALABRINI," 2,421.43 ",23/11/2017
